Workbook

Sheet KENZO Summary
B9: 8th August 2022 FIG REF: 5YAB
B10: Exclusively direct from the international fashion brand house: LVMH
B11: All required paperwork and Releases will be supplied by KENZO.
B12: This stock is 100% new in its original packaging
B13: The stock is all first quality and not store returns.
B14: This merchandise can only be sold in North America, Central America, Caribbean, and South America
B15: We have each and every item in high definition photos upon request.
B16: Total Quantity: 68,176 units
B17: Total Retail Value: 14,922,865.00€
B18: TAKE ALL PRICE: 80% discount from the official Retail Price
B19: For purchase requests that are of smaller quantities, please send in a purchase order so we can
B20: give you a quote price.
B21: Minimum Order Quantity: 150 000€
B24: PRODUCTS | C24: Quantity | D24: TOT RETAIL PRICE EUR
B25: ACC MEN | C25: 12235 | D25: 1906805
B26: ACC WOMEN | C26: 2104 | D26: 517645
B27: KIDS | C27: 4608 | D27: 563620
B28: RTW (Ready To Wear) MEN | C28: 9947 | D28: 2562475
B29: RTW (Ready To Wear) WOMEN | C29: 30587 | D29: 7094060
B30: SHOES MEN | C30: 3153 | D30: 857595
B31: SHOES WOMEN | C31: 5542 | D31: 1490665
B32: TOTAL | C32: =SUM(C25:C31) -> 68176 | D32: =SUM(D25:D31) -> 14992865

Sheet Acc M
A1: PHOTOS | B1: MTC | C1: Mtct | D1: EAN | E1: Size | F1: L2 Department | G1: L3 Category | H1: Knowhow new | I1: Creation season | J1: Universe | K1: Quantity | L1: Prix retail EUR | M1: TOT Prix retail EUR | N1: Purchase Order Quantity
A2: High Defintion Photos Upon Request | B2: F765SF301F21.76 | C2: F765SF301F21.76.TU | D2: 3603679021412 | E2: TU | F2: LG.Men | G2: LG.M.Bag | H2: Leather items | I2: Automne-Hiver 2017 | J2: Tiger | K2: 43 | L2: =IFERROR(IFERROR(VLOOKUP( IF(RIGHT(LEFT(C2,16),1)=".",LEFT(C2,15),LEFT(C2,16)),[1]MTC!$B:$C,2,FALSE),VLOOKUP(C2,[1]MTCT!$B:$C,2,FALSE)),"") -> 185 | M2: =+K2*L2 -> 7955
A3: High Defintion Photos Upon Request | B3: F765SF302F20.76 | C3: F765SF302F20.76.TU | D3: 3603679084691 | E3: TU | F3: LG.Men | G3: LG.M.Bag | H3: Leather items | I3: Automne-Hiver 2017 | J3: Tiger | K3: 1 | L3: 175 | M3: =+K3*L3 -> 175
A4: High Defintion Photos Upon Request | B4: F855SA602F32.76 | C4: F855SA602F32.76.TU | D4: 3603679246051 | E4: TU | F4: LG.Men | G4: LG.M.Bag | H4: Leather items | I4: Printemps-Ete 2018 | J4: - | K4: 3 | L4: 295 | M4: 885
A5: High Defintion Photos Upon Request | B5: F855SF213F24.50 | C5: F855SF213F24.50.TU | D5: 3603679580773 | E5: TU | F5: LG.Men | G5: LG.M.Bag | H5: Leather items | I5: Automne-Hiver 2019 | J5: Kenzo Sport | K5: 2 | L5: 195 | M5: 390
A6: High Defintion Photos Upon Request | B6: F855SF300F20.14 | C6: F855SF300F20.14.TU | D6: 3603679263034 | E6: TU | F6: LG.Men | G6: LG.M.Bag | H6: Leather items | I6: Automne-Hiver 2018 | J6: Tiger | K6: 4 | L6: 220 | M6: 880
A7: High Defintion Photos Upon Request | B7: F855SF300F20.74A | C7: F855SF300F20.74A.TU | D7: 3603679646264 | E7: TU | F7: LG.Men | G7: LG.M.Bag | H7: Leather items | I7: Automne-Hiver 2019 | J7: Tiger | K7: 1 | L7: 220 | M7: 220
A8: High Defintion Photos Upon Request | B8: F855SF300F20.99C | C8: F855SF300F20.99C.TU | D8: 3603679646257 | E8: TU | F8: LG.Men | G8: LG.M.Bag | H8: Leather items | I8: Automne-Hiver 2019 | J8: Tiger | K8: 5 | L8: 220 | M8: 1100
A9: High Defintion Photos Upon Request | B9: F855SF300F20.99D | C9: F855SF300F20.99D.TU | D9: 3603679799540 | E9: TU | F9: LG.Men | G9: LG.M.Bag | H9: Leather items | I9: Printemps-Ete 2020 | J9: Tiger | K9: 2 | L9: 220 | M9: 440
A10: High Defintion Photos Upon Request | B10: F855SF301F20.76A | C10: F855SF301F20.76A.TU | D10: 3603679263072 | E10: TU | F10: LG.Men | G10: LG.M.Bag | H10: Leather items | I10: Automne-Hiver 2018 | J10: Tiger | K10: 3 | L10: 180 | M10: 540
A11: High Defintion Photos Upon Request | B11: F855SF301F20.99C | C11: F855SF301F20.99C.TU | D11: 3603679646271 | E11: TU | F11: LG.Men | G11: LG.M.Bag | H11: Leather items | I11: Automne-Hiver 2019 | J11: Tiger | K11: 9 | L11: 180 | M11: 1620
A12: High Defintion Photos Upon Request | B12: F855SF301F20.99D | C12: F855SF301F20.99D.TU | D12: 3603679799564 | E12: TU | F12: LG.Men | G12: LG.M.Bag | H12: Leather items | I12: Printemps-Ete 2020 | J12: Tiger | K12: 56 | L12: 180 | M12: 10080
A13: High Defintion Photos Upon Request | B13: F865SF300L49.76 | C13: F865SF300L49.76.TU | D13: 3603679685751 | E13: TU | F13: LG.Men | G13: LG.M.Bag | H13: Leather items | I13: Automne-Hiver 2019 | J13: Tiger | K13: 5 | L13: 695 | M13: 3475
A14: High Defintion Photos Upon Request | B14: F865SF300L49.99 | C14: F865SF300L49.99.TU | D14: 3603679351892 | E14: TU | F14: LG.Men | G14: LG.M.Bag | H14: Leather items | I14: Automne-Hiver 2018 | J14: Tiger | K14: 137 | L14: 695 | M14: 95215
A15: High Defintion Photos Upon Request | B15: F865SF300L49.99A | C15: F865SF300L49.99A.TU | D15: 3603679507022 | E15: TU | F15: LG.Men | G15: LG.M.Bag | H15: Leather items | I15: Printemps-Ete 2019 | J15: Tiger | K15: 1 | L15: 695 | M15: 695
A16: High Defintion Photos Upon Request | B16: F865SF300L49.99C | C16: F865SF300L49.99C.TU | D16: 3603679761219 | E16: TU | F16: LG.Men | G16: LG.M.Bag | H16: Leather items | I16: Printemps-Ete 2020 | J16: Tiger | K16: 6 | L16: 695 | M16: 4170
A17: High Defintion Photos Upon Request | B17: F865SF305F20.99D | C17: F865SF305F20.99D.TU | D17: 3603679799571 | E17: TU | F17: LG.Men | G17: LG.M.Bag | H17: Leather items | I17: Printemps-Ete 2020 | J17: Tiger | K17: 19 | L17: 170 | M17: 3230
A18: High Defintion Photos Upon Request | B18: F955SA010F46.01 | C18: F955SA010F46.01.TU | D18: 3603679532413 | E18: TU | F18: LG.Men | G18: LG.M.Bag | H18: Leather items | I18: Printemps-Ete 2019 | J18: - | K18: 2 | L18: 145 | M18: 290
A19: High Defintion Photos Upon Request | B19: F955SA010F46.70 | C19: F955SA010F46.70.TU | D19: 3603679532390 | E19: TU | F19: LG.Men | G19: LG.M.Bag | H19: Leather items | I19: Printemps-Ete 2019 | J19: - | K19: 1 | L19: 145 | M19: 145
A20: High Defintion Photos Upon Request | B20: F955SA013F46.01 | C20: F955SA013F46.01.TU | D20: 3603679532505 | E20: TU | F20: LG.Men | G20: LG.M.Bag | H20: Leather items | I20: Printemps-Ete 2019 | J20: - | K20: 2 | L20: 195 | M20: 390
A21: High Defintion Photos Upon Request | B21: F955SA015F46.01 | C21: F955SA015F46.01.TU | D21: 3603679532543 | E21: TU | F21: LG.Men | G21: LG.M.Bag | H21: Leather items | I21: Printemps-Ete 2019 | J21: - | K21: 1 | L21: 195 | M21: 195
A22: High Defintion Photos Upon Request | B22: F965SA001F43.01 | C22: F965SA001F43.01.TU | D22: 3603679707439 | E22: TU | F22: LG.Men | G22: LG.M.Bag | H22: ND | I22: Automne-Hiver 2019 | J22: Print | K22: 6 | L22: 150 | M22: 900
A23: High Defintion Photos Upon Request | B23: F965SA001FO7.98 | C23: F965SA001FO7.98.TU | D23: 3603679725785 | E23: TU | F23: LG.Men | G23: LG.M.Bag | H23: ND | I23: Automne-Hiver 2019 | J23: - | K23: 2 | L23: 130 | M23: 260
A24: High Defintion Photos Upon Request | B24: F965SA003F43.99 | C24: F965SA003F43.99.TU | D24: 3603679693206 | E24: TU | F24: LG.Men | G24: LG.M.Bag | H24: ND | I24: Automne-Hiver 2019 | J24: Print | K24: 4 | L24: 170 | M24: 680
A25: High Defintion Photos Upon Request | B25: F965SA507LO7.32 | C25: F965SA507LO7.32.TU | D25: 3603679725792 | E25: TU | F25: LG.Men | G25: LG.M.Bag | H25: ND | I25: Automne-Hiver 2019 | J25: - | K25: 4 | L25: 325 | M25: 1300
A26: High Defintion Photos Upon Request | B26: F965SA701L42.23 | C26: F965SA701L42.23.TU | D26: 3603679688837 | E26: TU | F26: LG.Men | G26: LG.M.Bag | H26: ND | I26: Automne-Hiver 2019 | J26: Bamboo Tiger | K26: 2 | L26: 395 | M26: 790
A27: High Defintion Photos Upon Request | B27: F965SA800F49.21 | C27: F965SA800F49.21.TU | D27: 3603679693275 | E27: TU | F27: LG.Men | G27: LG.M.Bag | H27: ND | I27: Automne-Hiver 2019 | J27: - | K27: 2 | L27: 450 | M27: 900
A28: High Defintion Photos Upon Request | B28: F965SF212BO9.11 | C28: F965SF212BO9.11.TU | D28: 3603679730925 | E28: TU | F28: LG.Men | G28: LG.M.Bag | H28: ND | I28: Automne-Hiver 2019 | J28: - | K28: 2 | L28: 225 | M28: 450
A29: High Defintion Photos Upon Request | B29: F965SF212BO9.99 | C29: F965SF212BO9.99.TU | D29: 3603679730918 | E29: TU | F29: LG.Men | G29: LG.M.Bag | H29: ND | I29: Automne-Hiver 2019 | J29: - | K29: 3 | L29: 225 | M29: 675
A30: High Defintion Photos Upon Request | B30: F965SF212F25.41 | C30: F965SF212F25.41.TU | D30: 3603679693282 | E30: TU | F30: LG.Men | G30: LG.M.Bag | H30: ND | I30: Automne-Hiver 2019 | J30: Kenzo Sport | K30: 2 | L30: 195 | M30: 390
A31: High Defintion Photos Upon Request | B31: F965SF213BO9.11 | C31: F965SF213BO9.11.TU | D31: 3603679730949 | E31: TU | F31: LG.Men | G31: LG.M.Bag | H31: ND | I31: Automne-Hiver 2019 | J31: - | K31: 10 | L31: 295 | M31: 2950
A32: High Defintion Photos Upon Request | B32: F965SF213BO9.99 | C32: F965SF213BO9.99.TU | D32: 3603679730932 | E32: TU | F32: LG.Men | G32: LG.M.Bag | H32: ND | I32: Automne-Hiver 2019 | J32: - | K32: 5 | L32: 295 | M32: 1475
A33: High Defintion Photos Upon Request | B33: F965SF213F25.41 | C33: F965SF213F25.41.TU | D33: 3603679693299 | E33: TU | F33: LG.Men | G33: LG.M.Bag | H33: ND | I33: Automne-Hiver 2019 | J33: Kenzo Sport | K33: 2 | L33: 255 | M33: 510
A34: High Defintion Photos Upon Request | B34: F965SF300FO6.26 | C34: F965SF300FO6.26.TU | D34: 3603679725815 | E34: TU | F34: LG.Men | G34: LG.M.Bag | H34: ND | I34: Automne-Hiver 2019 | J34: Tiger | K34: 14 | L34: 225 | M34: 3150
A35: High Defintion Photos Upon Request | B35: F965SF300FO6.98 | C35: F965SF300FO6.98.TU | D35: 3603679725808 | E35: TU | F35: LG.Men | G35: LG.M.Bag | H35: ND | I35: Automne-Hiver 2019 | J35: Tiger | K35: 1 | L35: 225 | M35: 225
A36: High Defintion Photos Upon Request | B36: F965SF300FO9.98 | C36: F965SF300FO9.98.TU | D36: 3603679730956 | E36: TU | F36: LG.Men | G36: LG.M.Bag | H36: ND | I36: Automne-Hiver 2019 | J36: Tiger | K36: 2 | L36: 245 | M36: 490
A37: High Defintion Photos Upon Request | B37: F965SF305F30.21 | C37: F965SF305F30.21.TU | D37: 3603679693367 | E37: TU | F37: LG.Men | G37: LG.M.Bag | H37: ND | I37: Automne-Hiver 2019 | J37: Tiger | K37: 1 | L37: 185 | M37: 185
A38: High Defintion Photos Upon Request | B38: F965SF305L49.99C | C38: F965SF305L49.99C.TU | D38: 3603679761462 | E38: TU | F38: LG.Men | G38: LG.M.Bag | H38: ND | I38: Printemps-Ete 2020 | J38: Tiger | K38: 24 | L38: 420 | M38: 10080
A39: High Defintion Photos Upon Request | B39: F965SF307F30.21 | C39: F965SF307F30.21.TU | D39: 3603679693398 | E39: TU | F39: LG.Men | G39: LG.M.Bag | H39: ND | I39: Automne-Hiver 2019 | J39: Tiger | K39: 1 | L39: 175 | M39: 175
A40: High Defintion Photos Upon Request | B40: F965SF307F30.41 | C40: F965SF307F30.41.TU | D40: 3603679693411 | E40: TU | F40: LG.Men | G40: LG.M.Bag | H40: ND | I40: Automne-Hiver 2019 | J40: Tiger | K40: 1 | L40: 175 | M40: 175
A41: High Defintion Photos Upon Request | B41: F965SF307L49.99 | C41: F965SF307L49.99.TU | D41: 3603679687106 | E41: TU | F41: LG.Men | G41: LG.M.Bag | H41: ND | I41: Automne-Hiver 2019 | J41: Tiger | K41: 397 | L41: 370 | M41: 146890
A42: High Defintion Photos Upon Request | B42: F965SF307L49.99C | C42: F965SF307L49.99C.TU | D42: 3603679761479 | E42: TU | F42: LG.Men | G42: LG.M.Bag | H42: ND | I42: Printemps-Ete 2020 | J42: Tiger | K42: 9 | L42: 370 | M42: 3330
A43: High Defintion Photos Upon Request | B43: FA55SA603FP5.23 | C43: FA55SA603FP5.23.TU | D43: 3603679838812 | E43: TU | F43: LG.Men | G43: LG.M.Bag | H43: ND | I43: Printemps-Ete 2020 | J43: Seasonal Logo | K43: 2 | L43: 175 | M43: 350
A44: High Defintion Photos Upon Request | B44: FA55SF212FP8.02 | C44: FA55SF212FP8.02.TU | D44: 3603679840570 | E44: TU | F44: LG.Men | G44: LG.M.Bag | H44: ND | I44: Printemps-Ete 2020 | J44: Print | K44: 1 | L44: 175 | M44: 175
A45: High Defintion Photos Upon Request | B45: FA55SF300F22.99 | C45: FA55SF300F22.99.TU | D45: 3603679811112 | E45: TU | F45: LG.Men | G45: LG.M.Bag | H45: ND | I45: Printemps-Ete 2020 | J45: Tiger | K45: 246 | L45: 270 | M45: 66420
A46: High Defintion Photos Upon Request | B46: FA55SF300FP3.99 | C46: FA55SF300FP3.99.TU | D46: 3603679818579 | E46: TU | F46: LG.Men | G46: LG.M.Bag | H46: ND | I46: Printemps-Ete 2020 | J46: Tiger | K46: 156 | L46: 270 | M46: 42120
A47: High Defintion Photos Upon Request | B47: FA55SF300VA1.99 | C47: FA55SF300VA1.99.TU | D47: 3603679839970 | E47: TU | F47: LG.Men | G47: LG.M.Bag | H47: ND | I47: Printemps-Ete 2020 | J47: Print | K47: 229 | L47: 275 | M47: 62975
A48: High Defintion Photos Upon Request | B48: FA55SF301F22.99 | C48: FA55SF301F22.99.TU | D48: 3603679811150 | E48: TU | F48: LG.Men | G48: LG.M.Bag | H48: ND | I48: Printemps-Ete 2020 | J48: Tiger | K48: 168 | L48: 220 | M48: 36960
A49: High Defintion Photos Upon Request | B49: FA55SF305F22.99 | C49: FA55SF305F22.99.TU | D49: 3603679811181 | E49: TU | F49: LG.Men | G49: LG.M.Bag | H49: ND | I49: Printemps-Ete 2020 | J49: Tiger | K49: 16 | L49: 220 | M49: 3520
A50: High Defintion Photos Upon Request | B50: FA55SF305VA1.99 | C50: FA55SF305VA1.99.TU | D50: 3603679839987 | E50: TU | F50: LG.Men | G50: LG.M.Bag | H50: ND | I50: Printemps-Ete 2020 | J50: Print | K50: 4 | L50: 195 | M50: 780
A51: High Defintion Photos Upon Request | B51: FA55SF307F22.99 | C51: FA55SF307F22.99.TU | D51: 3603679811228 | E51: TU | F51: LG.Men | G51: LG.M.Bag | H51: ND | I51: Printemps-Ete 2020 | J51: Tiger | K51: 92 | L51: 190 | M51: 17480
A52: High Defintion Photos Upon Request | B52: FA55SF308F20.99D | C52: FA55SF308F20.99D.TU | D52: 3603679811266 | E52: TU | F52: LG.Men | G52: LG.M.Bag | H52: ND | I52: Printemps-Ete 2020 | J52: Tiger | K52: 7 | L52: 190 | M52: 1330
A53: High Defintion Photos Upon Request | B53: FA65SA001F08.54 | C53: FA65SA001F08.54.TU | D53: 3603679919122 | E53: TU | F53: LG.Men | G53: LG.M.Bag | H53: ND | I53: Automne-Hiver 2020 | J53: - | K53: 4 | L53: 220 | M53: 880
A54: High Defintion Photos Upon Request | B54: FA65SA001F08.76 | C54: FA65SA001F08.76.TU | D54: 3603679919115 | E54: TU | F54: LG.Men | G54: LG.M.Bag | H54: ND | I54: Automne-Hiver 2020 | J54: - | K54: 2 | L54: 220 | M54: 440
A55: High Defintion Photos Upon Request | B55: FA65SA001F24.99 | C55: FA65SA001F24.99.TU | D55: 3603679919146 | E55: TU | F55: LG.Men | G55: LG.M.Bag | H55: ND | I55: Automne-Hiver 2020 | J55: - | K55: 6 | L55: 250 | M55: 1500
A56: High Defintion Photos Upon Request | B56: FA65SA003F08.76 | C56: FA65SA003F08.76.TU | D56: 3603679919245 | E56: TU | F56: LG.Men | G56: LG.M.Bag | H56: ND | I56: Automne-Hiver 2020 | J56: - | K56: 2 | L56: 350 | M56: 700
A57: High Defintion Photos Upon Request | B57: FA65SA210F21.51 | C57: FA65SA210F21.51.TU | D57: 3603679916411 | E57: TU | F57: LG.Men | G57: LG.M.Bag | H57: ND | I57: Automne-Hiver 2020 | J57: Kenzo Sport | K57: 8 | L57: 350 | M57: 2800
A58: High Defintion Photos Upon Request | B58: FA65SA210F21.99 | C58: FA65SA210F21.99.TU | D58: 3603679916398 | E58: TU | F58: LG.Men | G58: LG.M.Bag | H58: ND | I58: Automne-Hiver 2020 | J58: Kenzo Sport | K58: 21 | L58: 350 | M58: 7350
A59: High Defintion Photos Upon Request | B59: FA65SA213F21.16 | C59: FA65SA213F21.16.TU | D59: 3603679960834 | E59: TU | F59: LG.Men | G59: LG.M.Bag | H59: ND | I59: Printemps-Ete 2021 | J59: Kenzo Sport | K59: 36 | L59: 250 | M59: 9000
A60: High Defintion Photos Upon Request | B60: FA65SA213F21.70 | C60: FA65SA213F21.70.TU | D60: 3603679960810 | E60: TU | F60: LG.Men | G60: LG.M.Bag | H60: ND | I60: Printemps-Ete 2021 | J60: Kenzo Sport | K60: 19 | L60: 250 | M60: 4750
A61: High Defintion Photos Upon Request | B61: FA65SA213F21.92 | C61: FA65SA213F21.92.TU | D61: 3612230227118 | E61: TU | F61: LG.Men | G61: LG.M.Bag | H61: ND | I61: Printemps-Ete 2022 | J61: Kenzo Sport | K61: 4 | L61: 250 | M61: 1000
A62: High Defintion Photos Upon Request | B62: FA65SA213F21.99 | C62: FA65SA213F21.99.TU | D62: 3603679916534 | E62: TU | F62: LG.Men | G62: LG.M.Bag | H62: ND | I62: Automne-Hiver 2020 | J62: Kenzo Sport | K62: 101 | L62: 250 | M62: 25250
A63: High Defintion Photos Upon Request | B63: FA65SA214F21.09 | C63: FA65SA214F21.09.TU | D63: 3603679960858 | E63: TU | F63: LG.Men | G63: LG.M.Bag | H63: ND | I63: Printemps-Ete 2021 | J63: Kenzo Sport | K63: 40 | L63: 135 | M63: 5400
A64: High Defintion Photos Upon Request | B64: FA65SA214F21.47 | C64: FA65SA214F21.47.TU | D64: 3603679916572 | E64: TU | F64: LG.Men | G64: LG.M.Bag | H64: ND | I64: Automne-Hiver 2020 | J64: Kenzo Sport | K64: 1 | L64: 135 | M64: 135
A65: High Defintion Photos Upon Request | B65: FA65SA214F21.99 | C65: FA65SA214F21.99.TU | D65: 3603679916558 | E65: TU | F65: LG.Men | G65: LG.M.Bag | H65: ND | I65: Automne-Hiver 2020 | J65: Kenzo Sport | K65: 161 | L65: 135 | M65: 21735
A66: High Defintion Photos Upon Request | B66: FA65SA220F21.16 | C66: FA65SA220F21.16.TU | D66: 3603679960902 | E66: TU | F66: LG.Men | G66: LG.M.Bag | H66: ND | I66: Printemps-Ete 2021 | J66: Kenzo Sport | K66: 29 | L66: 225 | M66: 6525
A67: High Defintion Photos Upon Request | B67: FA65SA220F21.51 | C67: FA65SA220F21.51.TU | D67: 3603679916633 | E67: TU | F67: LG.Men | G67: LG.M.Bag | H67: ND | I67: Automne-Hiver 2020 | J67: Kenzo Sport | K67: 29 | L67: 225 | M67: =+K67*L67 -> 6525
A68: High Defintion Photos Upon Request | B68: FA65SA220F21.70 | C68: FA65SA220F21.70.TU | D68: 3603679960926 | E68: TU | F68: LG.Men | G68: LG.M.Bag | H68: ND | I68: Printemps-Ete 2021 | J68: Kenzo Sport | K68: 40 | L68: 225 | M68: 9000
A69: High Defintion Photos Upon Request | B69: FA65SA220F21.99 | C69: FA65SA220F21.99.TU | D69: 3603679916664 | E69: TU | F69: LG.Men | G69: LG.M.Bag | H69: ND | I69: Automne-Hiver 2020 | J69: Kenzo Sport | K69: 76 | L69: 225 | M69: 17100
A70: High Defintion Photos Upon Request | B70: FA65SA222F21.99 | C70: FA65SA222F21.99.TU | D70: 3603679916688 | E70: TU | F70: LG.Men | G70: LG.M.Bag | H70: ND | I70: Automne-Hiver 2020 | J70: Kenzo Sport | K70: 79 | L70: 195 | M70: 15405
A71: High Defintion Photos Upon Request | B71: FA65SA223F21.99 | C71: FA65SA223F21.99.TU | D71: 3603679916718 | E71: TU | F71: LG.Men | G71: LG.M.Bag | H71: ND | I71: Automne-Hiver 2020 | J71: Kenzo Sport | K71: 5 | L71: 250 | M71: 1250
A72: High Defintion Photos Upon Request | B72: FA65SA501L45.99 | C72: FA65SA501L45.99.TU | D72: 3603679916756 | E72: TU | F72: LG.Men | G72: LG.M.Bag | H72: ND | I72: Automne-Hiver 2020 | J72: Kenzo Logo | K72: 24 | L72: 590 | M72: 14160
A73: High Defintion Photos Upon Request | B73: FA65SA503L45.99 | C73: FA65SA503L45.99.TU | D73: 3603679916787 | E73: TU | F73: LG.Men | G73: LG.M.Bag | H73: ND | I73: Automne-Hiver 2020 | J73: Kenzo Logo | K73: 11 | L73: 340 | M73: 3740
A74: High Defintion Photos Upon Request | B74: FA65SA507L45.99 | C74: FA65SA507L45.99.TU | D74: 3603679916831 | E74: TU | F74: LG.Men | G74: LG.M.Bag | H74: ND | I74: Automne-Hiver 2020 | J74: Kenzo Logo | K74: 50 | L74: 320 | M74: 16000
A75: High Defintion Photos Upon Request | B75: FA65SA509L45.99 | C75: FA65SA509L45.99.TU | D75: 3603679916855 | E75: TU | F75: LG.Men | G75: LG.M.Bag | H75: ND | I75: Automne-Hiver 2020 | J75: Kenzo Logo | K75: 6 | L75: 420 | M75: 2520
A76: High Defintion Photos Upon Request | B76: FA65SF300F20.11 | C76: FA65SF300F20.11.TU | D76: 3603679961374 | E76: TU | F76: LG.Men | G76: LG.M.Bag | H76: ND | I76: Printemps-Ete 2021 | J76: Tiger | K76: 20 | L76: 220 | M76: 4400
A77: High Defintion Photos Upon Request | B77: FA65SF300F20.50 | C77: FA65SF300F20.50.TU | D77: 3603679961350 | E77: TU | F77: LG.Men | G77: LG.M.Bag | H77: ND | I77: Printemps-Ete 2021 | J77: Tiger | K77: 4 | L77: 220 | M77: 880
A78: High Defintion Photos Upon Request | B78: FA65SF300F20.99E | C78: FA65SF300F20.99E.TU | D78: 3603679868420 | E78: TU | F78: LG.Men | G78: LG.M.Bag | H78: ND | I78: Automne-Hiver 2020 | J78: Tiger | K78: 206 | L78: 220 | M78: 45320
A79: High Defintion Photos Upon Request | B79: FA65SF301F20.50 | C79: FA65SF301F20.50.TU | D79: 3603679961435 | E79: TU | F79: LG.Men | G79: LG.M.Bag | H79: ND | I79: Printemps-Ete 2021 | J79: Tiger | K79: 4 | L79: 180 | M79: 720
A80: High Defintion Photos Upon Request | B80: FA65SF301F20.52 | C80: FA65SF301F20.52.TU | D80: 3612230109636 | E80: TU | F80: LG.Men | G80: LG.M.Bag | H80: ND | I80: Automne-Hiver 2021 | J80: Tiger | K80: 1 | L80: 180 | M80: 180
A81: High Defintion Photos Upon Request | B81: FA65SF301F20.99E | C81: FA65SF301F20.99E.TU | D81: 3603679868451 | E81: TU | F81: LG.Men | G81: LG.M.Bag | H81: ND | I81: Automne-Hiver 2020 | J81: Tiger | K81: 146 | L81: 180 | M81: 26280
A82: High Defintion Photos Upon Request | B82: FA65SF301F20.99F | C82: FA65SF301F20.99F.TU | D82: 3603679961404 | E82: TU | F82: LG.Men | G82: LG.M.Bag | H82: ND | I82: Printemps-Ete 2021 | J82: Tiger | K82: 24 | L82: 180 | M82: 4320
A83: High Defintion Photos Upon Request | B83: FA65SF301FQ6.99 | C83: FA65SF301FQ6.99.TU | D83: 3603679985844 | E83: TU | F83: LG.Men | G83: LG.M.Bag | H83: ND | I83: Automne-Hiver 2020 | J83: Tiger | K83: 18 | L83: 180 | M83: 3240
A84: High Defintion Photos Upon Request | B84: FA65SF305F20.11 | C84: FA65SF305F20.11.TU | D84: 3603679961466 | E84: TU | F84: LG.Men | G84: LG.M.Bag | H84: ND | I84: Printemps-Ete 2021 | J84: Tiger | K84: 1 | L84: 170 | M84: 170
A85: High Defintion Photos Upon Request | B85: FA65SF305F20.34 | C85: FA65SF305F20.34.TU | D85: 3612230228344 | E85: TU | F85: LG.Men | G85: LG.M.Bag | H85: ND | I85: Printemps-Ete 2022 | J85: Tiger | K85: 9 | L85: 170 | M85: 1530
A86: High Defintion Photos Upon Request | B86: FA65SF305F20.99E | C86: FA65SF305F20.99E.TU | D86: 3603679868512 | E86: TU | F86: LG.Men | G86: LG.M.Bag | H86: ND | I86: Automne-Hiver 2020 | J86: Tiger | K86: 88 | L86: 170 | M86: 14960
A87: High Defintion Photos Upon Request | B87: FA65SF305L49.99 | C87: FA65SF305L49.99.TU | D87: 3603679868550 | E87: TU | F87: LG.Men | G87: LG.M.Bag | H87: ND | I87: Automne-Hiver 2020 | J87: Tiger | K87: 16 | L87: 420 | M87: 6720
A88: High Defintion Photos Upon Request | B88: FA65SF307F20.25 | C88: FA65SF307F20.25.TU | D88: 3603679868611 | E88: TU | F88: LG.Men | G88: LG.M.Bag | H88: ND | I88: Automne-Hiver 2020 | J88: Tiger | K88: 9 | L88: 150 | M88: 1350
A89: High Defintion Photos Upon Request | B89: FA65SF307F20.99E | C89: FA65SF307F20.99E.TU | D89: 3603679868581 | E89: TU | F89: LG.Men | G89: LG.M.Bag | H89: ND | I89: Automne-Hiver 2020 | J89: Tiger | K89: 93 | L89: 150 | M89: 13950
A90: High Defintion Photos Upon Request | B90: FA65SF307L49.99 | C90: FA65SF307L49.99.TU | D90: 3603679868628 | E90: TU | F90: LG.Men | G90: LG.M.Bag | H90: ND | I90: Automne-Hiver 2020 | J90: Tiger | K90: 6 | L90: 370 | M90: 2220
A91: High Defintion Photos Upon Request | B91: FA65SF308F20.99E | C91: FA65SF308F20.99E.TU | D91: 3603679868673 | E91: TU | F91: LG.Men | G91: LG.M.Bag | H91: ND | I91: Automne-Hiver 2020 | J91: Tiger | K91: 17 | L91: 190 | M91: 3230
A92: High Defintion Photos Upon Request | B92: FB55SA214FQ7.21 | C92: FB55SA214FQ7.21.TU | D92: 3612230066045 | E92: TU | F92: LG.Men | G92: LG.M.Bag | H92: ND | I92: Printemps-Ete 2021 | J92: Print | K92: 5 | L92: 165 | M92: 825
A93: High Defintion Photos Upon Request | B93: FB55SA218F22.95 | C93: FB55SA218F22.95.TU | D93: 3612230053984 | E93: TU | F93: LG.Men | G93: LG.M.Bag | H93: ND | I93: Printemps-Ete 2021 | J93: Kenzo Sport | K93: 2 | L93: 220 | M93: 440
A94: High Defintion Photos Upon Request | B94: FB55SA225F21.99 | C94: FB55SA225F21.99.TU | D94: 3603679997632 | E94: TU | F94: LG.Men | G94: LG.M.Bag | H94: ND | I94: Printemps-Ete 2021 | J94: Kenzo Sport | K94: 126 | L94: 145 | M94: 18270
A95: High Defintion Photos Upon Request | B95: FB55SA401F24.99 | C95: FB55SA401F24.99.TU | D95: 3612230054004 | E95: TU | F95: LG.Men | G95: LG.M.Bag | H95: ND | I95: Printemps-Ete 2021 | J95: Tiger Crest | K95: 64 | L95: 465 | M95: 29760
A96: High Defintion Photos Upon Request | B96: FB55SA403F24.50 | C96: FB55SA403F24.50.TU | D96: 3612230054035 | E96: TU | F96: LG.Men | G96: LG.M.Bag | H96: ND | I96: Printemps-Ete 2021 | J96: Tiger Crest | K96: 14 | L96: 250 | M96: 3500
A97: High Defintion Photos Upon Request | B97: FB55SA403F24.99 | C97: FB55SA403F24.99.TU | D97: 3612230054011 | E97: TU | F97: LG.Men | G97: LG.M.Bag | H97: ND | I97: Printemps-Ete 2021 | J97: Tiger Crest | K97: 53 | L97: 250 | M97: 13250
A98: High Defintion Photos Upon Request | B98: FB55SA403F35.10 | C98: FB55SA403F35.10.TU | D98: 3612230072343 | E98: TU | F98: LG.Men | G98: LG.M.Bag | H98: ND | I98: Printemps-Ete 2021 | J98: K-Tiger | K98: 43 | L98: 275 | M98: 11825
A99: High Defintion Photos Upon Request | B99: FB55SA403F35.62 | C99: FB55SA403F35.62.TU | D99: 3612230072336 | E99: TU | F99: LG.Men | G99: LG.M.Bag | H99: ND | I99: Printemps-Ete 2021 | J99: K-Tiger | K99: 88 | L99: 275 | M99: 24200
A100: High Defintion Photos Upon Request | B100: FB55SA407F24.99 | C100: FB55SA407F24.99.TU | D100: 3612230054059 | E100: TU | F100: LG.Men | G100: LG.M.Bag | H100: ND | I100: Printemps-Ete 2021 | J100: Tiger Crest | K100: 80 | L100: 195 | M100: 15600
A101: High Defintion Photos Upon Request | B101: FB55SA407F35.10 | C101: FB55SA407F35.10.TU | D101: 3612230072374 | E101: TU | F101: LG.Men | G101: LG.M.Bag | H101: ND | I101: Printemps-Ete 2021 | J101: K-Tiger | K101: 20 | L101: 220 | M101: 4400
A102: High Defintion Photos Upon Request | B102: FB55SA407F35.51 | C102: FB55SA407F35.51.TU | D102: 3612230072350 | E102: TU | F102: LG.Men | G102: LG.M.Bag | H102: ND | I102: Printemps-Ete 2021 | J102: K-Tiger | K102: 143 | L102: 220 | M102: 31460
A103: High Defintion Photos Upon Request | B103: FB55SA408F24.99 | C103: FB55SA408F24.99.TU | D103: 3612230054097 | E103: TU | F103: LG.Men | G103: LG.M.Bag | H103: ND | I103: Printemps-Ete 2021 | J103: Tiger Crest | K103: 75 | L103: 175 | M103: 13125
A104: High Defintion Photos Upon Request | B104: FB55SA408F35.62 | C104: FB55SA408F35.62.TU | D104: 3612230072381 | E104: TU | F104: LG.Men | G104: LG.M.Bag | H104: ND | I104: Printemps-Ete 2021 | J104: K-Tiger | K104: 48 | L104: 195 | M104: 9360
A105: High Defintion Photos Upon Request | B105: FB55SA413F35.51 | C105: FB55SA413F35.51.TU | D105: 3612230072428 | E105: TU | F105: LG.Men | G105: LG.M.Bag | H105: ND | I105: Printemps-Ete 2021 | J105: K-Tiger | K105: 83 | L105: 220 | M105: 18260
A106: High Defintion Photos Upon Request | B106: FB55SA413F35.62 | C106: FB55SA413F35.62.TU | D106: 3612230072411 | E106: TU | F106: LG.Men | G106: LG.M.Bag | H106: ND | I106: Printemps-Ete 2021 | J106: K-Tiger | K106: 85 | L106: 220 | M106: 18700
A107: High Defintion Photos Upon Request | B107: FB55SA708B02.96 | C107: FB55SA708B02.96.TU | D107: 3612230054257 | E107: TU | F107: LG.Men | G107: LG.M.Bag | H107: ND | I107: Printemps-Ete 2021 | J107: Kenzo Logo | K107: 128 | L107: 370 | M107: 47360
A108: High Defintion Photos Upon Request | B108: FB55SF300FR1.69A | C108: FB55SF300FR1.69A.TU | D108: 3612230104976 | E108: TU | F108: LG.Men | G108: LG.M.Bag | H108: ND | I108: Printemps-Ete 2021 | J108: Print | K108: 74 | L108: 295 | M108: 21830
A109: High Defintion Photos Upon Request | B109: FB65SA102L02.45 | C109: FB65SA102L02.45.TU | D109: 3612230194168 | E109: TU | F109: LG.Men | G109: LG.M.Bag | H109: ND | I109: Automne-Hiver 2021 | J109: - | K109: 2 | L109: 450 | M109: 900
A110: High Defintion Photos Upon Request | B110: FB65SA102L05.99 | C110: FB65SA102L05.99.TU | D110: 3612230194212 | E110: TU | F110: LG.Men | G110: LG.M.Bag | H110: ND | I110: Automne-Hiver 2021 | J110: - | K110: 2 | L110: 450 | M110: 900
A111: High Defintion Photos Upon Request | B111: FB65SA213F36.27 | C111: FB65SA213F36.27.TU | D111: 3612230227309 | E111: TU | F111: LG.Men | G111: LG.M.Bag | H111: ND | I111: Printemps-Ete 2022 | J111: Kenzo Logo | K111: 3 | L111: 195 | M111: 585
A112: High Defintion Photos Upon Request | B112: FB65SA218F36.27 | C112: FB65SA218F36.27.TU | D112: 3612230227354 | E112: TU | F112: LG.Men | G112: LG.M.Bag | H112: ND | I112: Printemps-Ete 2022 | J112: Kenzo Logo | K112: 1 | L112: 155 | M112: 155
A113: High Defintion Photos Upon Request | B113: FB65SA218F36.78 | C113: FB65SA218F36.78.TU | D113: 3612230212732 | E113: TU | F113: LG.Men | G113: LG.M.Bag | H113: ND | I113: Automne-Hiver 2021 | J113: Kenzo Logo | K113: 1 | L113: 155 | M113: 155
A114: High Defintion Photos Upon Request | B114: FB65SA709B02.74 | C114: FB65SA709B02.74.TU | D114: 3612230228474 | E114: TU | F114: LG.Men | G114: LG.M.Bag | H114: ND | I114: Printemps-Ete 2022 | J114: Kenzo Logo | K114: 14 | L114: 195 | M114: 2730
A115: High Defintion Photos Upon Request | B115: FA65CE210F25.99 | C115: FA65CE210F25.99.100 | D115: 3603679921071 | E115: 100 | F115: LG.Men | G115: LG.M.Belt | H115: ND | I115: Automne-Hiver 2020 | J115: Kenzo Sport | K115: 30 | L115: 125 | M115: 3750
A116: High Defintion Photos Upon Request | B116: FB65CE310L20.99 | C116: FB65CE310L20.99.90 | D116: 3612230170117 | E116: 90 | F116: LG.Men | G116: LG.M.Belt | H116: ND | I116: Automne-Hiver 2021 | J116: K Logo | K116: 3 | L116: 145 | M116: 435
A117: High Defintion Photos Upon Request | C117: FB65CE310L20.99.95 | D117: 3612230170148 | E117: 95 | F117: LG.Men | G117: LG.M.Belt | H117: ND | I117: Automne-Hiver 2021 | J117: K Logo | K117: 4 | L117: 145 | M117: 580
A118: High Defintion Photos Upon Request | B118: F855PM212F29.16 | C118: F855PM212F29.16.TU | D118: 3603679190668 | E118: TU | F118: LG.Men | G118: LG.M.Small Leathergoods | H118: Leather items | I118: Printemps-Ete 2018 | J118: - | K118: 2 | L118: 125 | M118: 250
A119: High Defintion Photos Upon Request | B119: F855PM212F29.74 | C119: F855PM212F29.74.TU | D119: 3603679190675 | E119: TU | F119: LG.Men | G119: LG.M.Small Leathergoods | H119: Leather items | I119: Printemps-Ete 2018 | J119: - | K119: 2 | L119: 125 | M119: 250
A120: High Defintion Photos Upon Request | B120: F865PM507L46.76 | C120: F865PM507L46.76.TU | D120: 3603679351274 | E120: TU | F120: LG.Men | G120: LG.M.Small Leathergoods | H120: Leather items | I120: Automne-Hiver 2018 | J120: Kenzo Paris | K120: 2 | L120: 125 | M120: 250
A121: High Defintion Photos Upon Request | B121: F955PM312L48.99 | C121: F955PM312L48.99.TU | D121: 3603679479114 | E121: TU | F121: LG.Men | G121: LG.M.Small Leathergoods | H121: Leather items | I121: Printemps-Ete 2019 | J121: Tiger Crest | K121: 5 | L121: 185 | M121: 925
A122: High Defintion Photos Upon Request | B122: F955PM505L46.99 | C122: F955PM505L46.99.TU | D122: 3603679426866 | E122: TU | F122: LG.Men | G122: LG.M.Small Leathergoods | H122: Leather items | I122: Printemps-Ete 2019 | J122: Kenzo Paris | K122: 20 | L122: 225 | M122: 4500
A123: High Defintion Photos Upon Request | B123: F965PM102F43.01 | C123: F965PM102F43.01.TU | D123: 3603679692674 | E123: TU | F123: LG.Men | G123: LG.M.Small Leathergoods | H123: ND | I123: Automne-Hiver 2019 | J123: Print | K123: 1 | L123: 120 | M123: 120
A124: High Defintion Photos Upon Request | B124: F965PM311L48.99 | C124: F965PM311L48.99.TU | D124: 3603679692780 | E124: TU | F124: LG.Men | G124: LG.M.Small Leathergoods | H124: ND | I124: Automne-Hiver 2019 | J124: Tiger Crest | K124: 2 | L124: 155 | M124: 310
A125: High Defintion Photos Upon Request | B125: F965PM322L49.99 | C125: F965PM322L49.99.TU | D125: 3603679686321 | E125: TU | F125: LG.Men | G125: LG.M.Small Leathergoods | H125: ND | I125: Automne-Hiver 2019 | J125: Tiger | K125: 1 | L125: 320 | M125: 320
A126: High Defintion Photos Upon Request | B126: F965PM323L49.99 | C126: F965PM323L49.99.TU | D126: 3603679686345 | E126: TU | F126: LG.Men | G126: LG.M.Small Leathergoods | H126: ND | I126: Automne-Hiver 2019 | J126: Tiger | K126: 2 | L126: 190 | M126: 380
A127: High Defintion Photos Upon Request | B127: F965PM325L49.99 | C127: F965PM325L49.99.TU | D127: 3603679686413 | E127: TU | F127: LG.Men | G127: LG.M.Small Leathergoods | H127: ND | I127: Automne-Hiver 2019 | J127: Tiger | K127: 2 | L127: 270 | M127: 540
A128: High Defintion Photos Upon Request | B128: F965PM326L49.99 | C128: F965PM326L49.99.TU | D128: 3603679686444 | E128: TU | F128: LG.Men | G128: LG.M.Small Leathergoods | H128: ND | I128: Automne-Hiver 2019 | J128: Tiger | K128: 2 | L128: 170 | M128: 340
A129: High Defintion Photos Upon Request | B129: F965PM327L49.99 | C129: F965PM327L49.99.TU | D129: 3603679686475 | E129: TU | F129: LG.Men | G129: LG.M.Small Leathergoods | H129: ND | I129: Automne-Hiver 2019 | J129: Tiger | K129: 123 | L129: 220 | M129: 27060
A130: High Defintion Photos Upon Request | B130: FA55PM302F20.99D | C130: FA55PM302F20.99D.TU | D130: 3603679810344 | E130: TU | F130: LG.Men | G130: LG.M.Small Leathergoods | H130: ND | I130: Printemps-Ete 2020 | J130: Tiger | K130: 4 | L130: 150 | M130: 600
A131: High Defintion Photos Upon Request | B131: FA55PM302F27.01 | C131: FA55PM302F27.01.TU | D131: 3603679810382 | E131: TU | F131: LG.Men | G131: LG.M.Small Leathergoods | H131: ND | I131: Printemps-Ete 2020 | J131: Tiger | K131: 2 | L131: 145 | M131: =+K131*L131 -> 290
A132: High Defintion Photos Upon Request | B132: FA55PM302L49.99 | C132: FA55PM302L49.99.TU | D132: 3603679810405 | E132: TU | F132: LG.Men | G132: LG.M.Small Leathergoods | H132: ND | I132: Printemps-Ete 2020 | J132: Tiger | K132: 61 | L132: 290 | M132: 17690
A133: High Defintion Photos Upon Request | B133: FA55PM302L49.99C | C133: FA55PM302L49.99C.TU | D133: 3603679810399 | E133: TU | F133: LG.Men | G133: LG.M.Small Leathergoods | H133: ND | I133: Printemps-Ete 2020 | J133: Tiger | K133: 56 | L133: 290 | M133: 16240
A134: High Defintion Photos Upon Request | B134: FA55PM306F20.99D | C134: FA55PM306F20.99D.TU | D134: 3603679810412 | E134: TU | F134: LG.Men | G134: LG.M.Small Leathergoods | H134: ND | I134: Printemps-Ete 2020 | J134: Tiger | K134: 68 | L134: 110 | M134: 7480
A135: High Defintion Photos Upon Request | B135: FA55PM311L48.99 | C135: FA55PM311L48.99.TU | D135: 3603679816636 | E135: TU | F135: LG.Men | G135: LG.M.Small Leathergoods | H135: ND | I135: Printemps-Ete 2020 | J135: Tiger Crest | K135: 23 | L135: 155 | M135: 3565
A136: High Defintion Photos Upon Request | B136: FA55PM312L48.99 | C136: FA55PM312L48.99.TU | D136: 3603679813802 | E136: TU | F136: LG.Men | G136: LG.M.Small Leathergoods | H136: ND | I136: Printemps-Ete 2020 | J136: Tiger Crest | K136: 16 | L136: 195 | M136: 3120
A137: High Defintion Photos Upon Request | B137: FA55PM313F20.99D | C137: FA55PM313F20.99D.TU | D137: 3603679810436 | E137: TU | F137: LG.Men | G137: LG.M.Small Leathergoods | H137: ND | I137: Printemps-Ete 2020 | J137: Tiger | K137: 38 | L137: 150 | M137: 5700
A138: High Defintion Photos Upon Request | B138: FA55PM313F22.99 | C138: FA55PM313F22.99.TU | D138: 3603679810450 | E138: TU | F138: LG.Men | G138: LG.M.Small Leathergoods | H138: ND | I138: Printemps-Ete 2020 | J138: Tiger | K138: 52 | L138: 160 | M138: 8320
A139: High Defintion Photos Upon Request | B139: FA55PM316L48.99 | C139: FA55PM316L48.99.TU | D139: 3603679816643 | E139: TU | F139: LG.Men | G139: LG.M.Small Leathergoods | H139: ND | I139: Printemps-Ete 2020 | J139: Tiger Crest | K139: 41 | L139: 110 | M139: 4510
A140: High Defintion Photos Upon Request | B140: FA55PM321L49.99 | C140: FA55PM321L49.99.TU | D140: 3603679810474 | E140: TU | F140: LG.Men | G140: LG.M.Small Leathergoods | H140: ND | I140: Printemps-Ete 2020 | J140: Tiger | K140: 13 | L140: 130 | M140: 1690
A141: High Defintion Photos Upon Request | B141: FA55PM321L49.99C | C141: FA55PM321L49.99C.TU | D141: 3603679810481 | E141: TU | F141: LG.Men | G141: LG.M.Small Leathergoods | H141: ND | I141: Printemps-Ete 2020 | J141: Tiger | K141: 1 | L141: 130 | M141: 130
A142: High Defintion Photos Upon Request | B142: FA55PM322L49.99 | C142: FA55PM322L49.99.TU | D142: 3603679810511 | E142: TU | F142: LG.Men | G142: LG.M.Small Leathergoods | H142: ND | I142: Printemps-Ete 2020 | J142: Tiger | K142: 73 | L142: 320 | M142: 23360
A143: High Defintion Photos Upon Request | B143: FA65AC222L40.99 | C143: FA65AC222L40.99.TU | D143: 3603679915339 | E143: TU | F143: LG.Men | G143: LG.M.Small Leathergoods | H143: ND | I143: Automne-Hiver 2020 | J143: Tiger | K143: 2 | L143: 95 | M143: 190
A144: High Defintion Photos Upon Request | B144: FA65PM222F21.99 | C144: FA65PM222F21.99.TU | D144: 3603679915711 | E144: TU | F144: LG.Men | G144: LG.M.Small Leathergoods | H144: ND | I144: Automne-Hiver 2020 | J144: Kenzo Sport | K144: 58 | L144: 125 | M144: 7250
A145: High Defintion Photos Upon Request | B145: FA65PM228F21.51 | C145: FA65PM228F21.51.TU | D145: 3603679915858 | E145: TU | F145: LG.Men | G145: LG.M.Small Leathergoods | H145: ND | I145: Automne-Hiver 2020 | J145: Kenzo Sport | K145: 1 | L145: 145 | M145: 145
A146: High Defintion Photos Upon Request | B146: FA65PM228F21.99 | C146: FA65PM228F21.99.TU | D146: 3603679915841 | E146: TU | F146: LG.Men | G146: LG.M.Small Leathergoods | H146: ND | I146: Automne-Hiver 2020 | J146: Kenzo Sport | K146: 92 | L146: 145 | M146: 13340
A147: High Defintion Photos Upon Request | B147: FA65PM229F21.99 | C147: FA65PM229F21.99.TU | D147: 3603679915889 | E147: TU | F147: LG.Men | G147: LG.M.Small Leathergoods | H147: ND | I147: Automne-Hiver 2020 | J147: Kenzo Sport | K147: 16 | L147: 95 | M147: 1520
A148: High Defintion Photos Upon Request | B148: FA65PM302F20.61 | C148: FA65PM302F20.61.TU | D148: 3603679857653 | E148: TU | F148: LG.Men | G148: LG.M.Small Leathergoods | H148: ND | I148: Automne-Hiver 2020 | J148: Tiger | K148: 7 | L148: 150 | M148: 1050
A149: High Defintion Photos Upon Request | B149: FA65PM302F20.99E | C149: FA65PM302F20.99E.TU | D149: 3603679857615 | E149: TU | F149: LG.Men | G149: LG.M.Small Leathergoods | H149: ND | I149: Automne-Hiver 2020 | J149: Tiger | K149: 32 | L149: 150 | M149: 4800
A150: High Defintion Photos Upon Request | B150: FA65PM302FQ6.99 | C150: FA65PM302FQ6.99.TU | D150: 3603679985752 | E150: TU | F150: LG.Men | G150: LG.M.Small Leathergoods | H150: ND | I150: Automne-Hiver 2020 | J150: Tiger | K150: 1 | L150: 150 | M150: 150
A151: High Defintion Photos Upon Request | B151: FA65PM302L49.99 | C151: FA65PM302L49.99.TU | D151: 3603679868109 | E151: TU | F151: LG.Men | G151: LG.M.Small Leathergoods | H151: ND | I151: Automne-Hiver 2020 | J151: Tiger | K151: 63 | L151: 290 | M151: 18270
A152: High Defintion Photos Upon Request | B152: FA65PM306F20.99E | C152: FA65PM306F20.99E.TU | D152: 3603679857660 | E152: TU | F152: LG.Men | G152: LG.M.Small Leathergoods | H152: ND | I152: Automne-Hiver 2020 | J152: Tiger | K152: 56 | L152: 110 | M152: 6160
A153: High Defintion Photos Upon Request | B153: FA65PM306F20.99F | C153: FA65PM306F20.99F.TU | D153: 3603679961251 | E153: TU | F153: LG.Men | G153: LG.M.Small Leathergoods | H153: ND | I153: Printemps-Ete 2021 | J153: Tiger | K153: 37 | L153: 110 | M153: 4070
A154: High Defintion Photos Upon Request | B154: FA65PM306FQ6.99 | C154: FA65PM306FQ6.99.TU | D154: 3603679985776 | E154: TU | F154: LG.Men | G154: LG.M.Small Leathergoods | H154: ND | I154: Automne-Hiver 2020 | J154: Tiger | K154: 16 | L154: 110 | M154: 1760
A155: High Defintion Photos Upon Request | B155: FA65PM310L48.99 | C155: FA65PM310L48.99.TU | D155: 3603679868130 | E155: TU | F155: LG.Men | G155: LG.M.Small Leathergoods | H155: ND | I155: Automne-Hiver 2020 | J155: Tiger Crest | K155: 37 | L155: 85 | M155: 3145
A156: High Defintion Photos Upon Request | B156: FA65PM312L48.99 | C156: FA65PM312L48.99.TU | D156: 3603679868154 | E156: TU | F156: LG.Men | G156: LG.M.Small Leathergoods | H156: ND | I156: Automne-Hiver 2020 | J156: Tiger Crest | K156: 2 | L156: 195 | M156: 390
A157: High Defintion Photos Upon Request | B157: FA65PM312L48.99A | C157: FA65PM312L48.99A.TU | D157: 3603679960742 | E157: TU | F157: LG.Men | G157: LG.M.Small Leathergoods | H157: ND | I157: Printemps-Ete 2021 | J157: Tiger Crest | K157: 26 | L157: 195 | M157: 5070
A158: High Defintion Photos Upon Request | B158: FA65PM316L48.99 | C158: FA65PM316L48.99.TU | D158: 3603679868215 | E158: TU | F158: LG.Men | G158: LG.M.Small Leathergoods | H158: ND | I158: Automne-Hiver 2020 | J158: Tiger Crest | K158: 22 | L158: 110 | M158: 2420
A159: High Defintion Photos Upon Request | B159: FA65PM322F20.99E | C159: FA65PM322F20.99E.TU | D159: 3603679868277 | E159: TU | F159: LG.Men | G159: LG.M.Small Leathergoods | H159: ND | I159: Automne-Hiver 2020 | J159: Tiger | K159: 25 | L159: 160 | M159: 4000
A160: High Defintion Photos Upon Request | B160: FA65PM322L49.99 | C160: FA65PM322L49.99.TU | D160: 3603679868291 | E160: TU | F160: LG.Men | G160: LG.M.Small Leathergoods | H160: ND | I160: Automne-Hiver 2020 | J160: Tiger | K160: 37 | L160: 320 | M160: 11840
A161: High Defintion Photos Upon Request | B161: FA65PM500L45.99 | C161: FA65PM500L45.99.TU | D161: 3603679915926 | E161: TU | F161: LG.Men | G161: LG.M.Small Leathergoods | H161: ND | I161: Automne-Hiver 2020 | J161: Kenzo Logo | K161: 28 | L161: 95 | M161: 2660
A162: High Defintion Photos Upon Request | B162: FA65PM502L45.99 | C162: FA65PM502L45.99.TU | D162: 3603679915957 | E162: TU | F162: LG.Men | G162: LG.M.Small Leathergoods | H162: ND | I162: Automne-Hiver 2020 | J162: Kenzo Logo | K162: 31 | L162: 195 | M162: 6045
A163: High Defintion Photos Upon Request | B163: FA65PM503L45.99 | C163: FA65PM503L45.99.TU | D163: 3603679915988 | E163: TU | F163: LG.Men | G163: LG.M.Small Leathergoods | H163: ND | I163: Automne-Hiver 2020 | J163: K Logo | K163: 11 | L163: 145 | M163: 1595
A164: High Defintion Photos Upon Request | B164: FA65PM506L45.99 | C164: FA65PM506L45.99.TU | D164: 3603679916046 | E164: TU | F164: LG.Men | G164: LG.M.Small Leathergoods | H164: ND | I164: Automne-Hiver 2020 | J164: Kenzo Logo | K164: 41 | L164: 110 | M164: 4510
A165: High Defintion Photos Upon Request | B165: FA65PM508L45.99 | C165: FA65PM508L45.99.TU | D165: 3603679916060 | E165: TU | F165: LG.Men | G165: LG.M.Small Leathergoods | H165: ND | I165: Automne-Hiver 2020 | J165: Kenzo Logo | K165: 63 | L165: 185 | M165: 11655
A166: High Defintion Photos Upon Request | B166: FA65PM900L41.78 | C166: FA65PM900L41.78.TU | D166: 3612230183353 | E166: TU | F166: LG.Men | G166: LG.M.Small Leathergoods | H166: ND | I166: Automne-Hiver 2021 | J166: Kenzo Logo | K166: 12 | L166: 85 | M166: 1020
A167: High Defintion Photos Upon Request | B167: FB55PM228F29.99 | C167: FB55PM228F29.99.TU | D167: 3603679997397 | E167: TU | F167: LG.Men | G167: LG.M.Small Leathergoods | H167: ND | I167: Printemps-Ete 2021 | J167: - | K167: 5 | L167: 165 | M167: 825
A168: High Defintion Photos Upon Request | B168: FB55PM228FQ7.99 | C168: FB55PM228FQ7.99.TU | D168: 3612230066007 | E168: TU | F168: LG.Men | G168: LG.M.Small Leathergoods | H168: ND | I168: Printemps-Ete 2021 | J168: Print | K168: 64 | L168: 145 | M168: 9280
A169: High Defintion Photos Upon Request | B169: FB55PM238F21.99 | C169: FB55PM238F21.99.TU | D169: 3603679997403 | E169: TU | F169: LG.Men | G169: LG.M.Small Leathergoods | H169: ND | I169: Printemps-Ete 2021 | J169: Kenzo Sport | K169: 84 | L169: 145 | M169: 12180
A170: High Defintion Photos Upon Request | B170: FB55PM400L46.96 | C170: FB55PM400L46.96.TU | D170: 3612230110014 | E170: TU | F170: LG.Men | G170: LG.M.Small Leathergoods | H170: ND | I170: Automne-Hiver 2021 | J170: Tiger Crest | K170: 4 | L170: 85 | M170: 340
A171: High Defintion Photos Upon Request | B171: FB55PM402F24.99 | C171: FB55PM402F24.99.TU | D171: 3612230053564 | E171: TU | F171: LG.Men | G171: LG.M.Small Leathergoods | H171: ND | I171: Printemps-Ete 2021 | J171: Tiger Crest | K171: 99 | L171: 155 | M171: 15345
A172: High Defintion Photos Upon Request | B172: FB55PM402F35.51 | C172: FB55PM402F35.51.TU | D172: 3612230074088 | E172: TU | F172: LG.Men | G172: LG.M.Small Leathergoods | H172: ND | I172: Printemps-Ete 2021 | J172: K-Tiger | K172: 68 | L172: 175 | M172: 11900
A173: High Defintion Photos Upon Request | B173: FB55PM402F35.62 | C173: FB55PM402F35.62.TU | D173: 3612230074095 | E173: TU | F173: LG.Men | G173: LG.M.Small Leathergoods | H173: ND | I173: Printemps-Ete 2021 | J173: K-Tiger | K173: 47 | L173: 175 | M173: 8225
A174: High Defintion Photos Upon Request | B174: FB55PM403L46.99 | C174: FB55PM403L46.99.TU | D174: 3612230053625 | E174: TU | F174: LG.Men | G174: LG.M.Small Leathergoods | H174: ND | I174: Printemps-Ete 2021 | J174: Tiger Crest | K174: 7 | L174: 145 | M174: 1015
A175: High Defintion Photos Upon Request | B175: FB55PM408F24.11 | C175: FB55PM408F24.11.TU | D175: 3612230053700 | E175: TU | F175: LG.Men | G175: LG.M.Small Leathergoods | H175: ND | I175: Printemps-Ete 2021 | J175: Tiger Crest | K175: 17 | L175: 165 | M175: 2805
A176: High Defintion Photos Upon Request | B176: FB55PM408F24.99 | C176: FB55PM408F24.99.TU | D176: 3612230053694 | E176: TU | F176: LG.Men | G176: LG.M.Small Leathergoods | H176: ND | I176: Printemps-Ete 2021 | J176: Tiger Crest | K176: 105 | L176: 165 | M176: 17325
A177: High Defintion Photos Upon Request | B177: FB55PM408F35.51 | C177: FB55PM408F35.51.TU | D177: 3612230074118 | E177: TU | F177: LG.Men | G177: LG.M.Small Leathergoods | H177: ND | I177: Printemps-Ete 2021 | J177: K-Tiger | K177: 52 | L177: 185 | M177: 9620
A178: High Defintion Photos Upon Request | B178: FB55PM408F35.62 | C178: FB55PM408F35.62.TU | D178: 3612230074125 | E178: TU | F178: LG.Men | G178: LG.M.Small Leathergoods | H178: ND | I178: Printemps-Ete 2021 | J178: K-Tiger | K178: 38 | L178: 185 | M178: 7030
A179: High Defintion Photos Upon Request | B179: FB55PM411L46.99 | C179: FB55PM411L46.99.TU | D179: 3612230053731 | E179: TU | F179: LG.Men | G179: LG.M.Small Leathergoods | H179: ND | I179: Printemps-Ete 2021 | J179: Tiger Crest | K179: 6 | L179: 195 | M179: 1170
A180: High Defintion Photos Upon Request | B180: FB55PM700L47.99 | C180: FB55PM700L47.99.TU | D180: 3612230053793 | E180: TU | F180: LG.Men | G180: LG.M.Small Leathergoods | H180: ND | I180: Printemps-Ete 2021 | J180: - | K180: 45 | L180: 95 | M180: 4275
A181: High Defintion Photos Upon Request | B181: FB55PM703B02.96 | C181: FB55PM703B02.96.TU | D181: 3612230053878 | E181: TU | F181: LG.Men | G181: LG.M.Small Leathergoods | H181: ND | I181: Printemps-Ete 2021 | J181: Kenzo Logo | K181: 101 | L181: 125 | M181: 12625
A182: High Defintion Photos Upon Request | B182: FB55PM900L40.98 | C182: FB55PM900L40.98.TU | D182: 3603679997441 | E182: TU | F182: LG.Men | G182: LG.M.Small Leathergoods | H182: ND | I182: Printemps-Ete 2021 | J182: Print | K182: 7 | L182: 85 | M182: 595
A183: High Defintion Photos Upon Request | B183: FB65PM228F22.83 | C183: FB65PM228F22.83.TU | D183: 3612230170391 | E183: TU | F183: LG.Men | G183: LG.M.Small Leathergoods | H183: ND | I183: Automne-Hiver 2021 | J183: Kenzo Sport | K183: 10 | L183: 145 | M183: 1450
A184: High Defintion Photos Upon Request | B184: FB65PM302FS3.99 | C184: FB65PM302FS3.99.TU | D184: 3612230203037 | E184: TU | F184: LG.Men | G184: LG.M.Small Leathergoods | H184: ND | I184: Automne-Hiver 2021 | J184: Tiger | K184: 6 | L184: 150 | M184: 900
A185: High Defintion Photos Upon Request | B185: FB65PM411L46.23 | C185: FB65PM411L46.23.TU | D185: 3612230188358 | E185: TU | F185: LG.Men | G185: LG.M.Small Leathergoods | H185: ND | I185: Automne-Hiver 2021 | J185: Tiger Crest | K185: 12 | L185: 195 | M185: 2340
A186: High Defintion Photos Upon Request | B186: FC55PM406L47.99 | C186: FC55PM406L47.99.TU | D186: 3612230236530 | E186: TU | F186: LG.Men | G186: LG.M.Small Leathergoods | H186: ND | I186: Printemps-Ete 2022 | J186: K-Tiger | K186: 3 | L186: 120 | M186: 360
A187: High Defintion Photos Upon Request | B187: FC55PM411L47.92 | C187: FC55PM411L47.92.TU | D187: 3612230236585 | E187: TU | F187: LG.Men | G187: LG.M.Small Leathergoods | H187: ND | I187: Printemps-Ete 2022 | J187: K-Tiger | K187: 6 | L187: 195 | M187: 1170
A188: High Defintion Photos Upon Request | B188: FB6100070JDC.76 | C188: FB6100070JDC.76.TU | D188: 3612230187122 | E188: TU | F188: OA.Men | G188: OA.M.Beach Towel | H188: ND | I188: Automne-Hiver 2021 | J188: ND | K188: 1 | L188: 115 | M188: 115
A189: High Defintion Photos Upon Request | B189: FB6102170PDC.01 | C189: FB6102170PDC.01.TU | D189: 3612230187146 | E189: TU | F189: OA.Men | G189: OA.M.Beach Towel | H189: ND | I189: Automne-Hiver 2021 | J189: ND | K189: 10 | L189: 95 | M189: 950
A190: High Defintion Photos Upon Request | B190: FC58DR012JDC.62 | C190: FC58DR012JDC.62.TU | D190: 3612230308459 | E190: TU | F190: OA.Men | G190: OA.M.Beach Towel | H190: ND | I190: Printemps-Ete 2022 | J190: - | K190: 2 | L190: 125 | M190: 250
A191: High Defintion Photos Upon Request | B191: FC58DR020PDC.62 | C191: FC58DR020PDC.62.TU | D191: 3612230308916 | E191: TU | F191: OA.Men | G191: OA.M.Beach Towel | H191: ND | I191: Printemps-Ete 2022 | J191: - | K191: 5 | L191: 115 | M191: 575
A192: High Defintion Photos Upon Request | B192: FC58DR022PDC.MU | C192: FC58DR022PDC.MU.TU | D192: 3612230308930 | E192: TU | F192: OA.Men | G192: OA.M.Beach Towel | H192: ND | I192: Printemps-Ete 2022 | J192: - | K192: 6 | L192: 115 | M192: 690
A193: High Defintion Photos Upon Request | B193: L95SUN40012I.30 | C193: L95SUN40012I.30.TU | D193: 1923370124956 | E193: TU | F193: OA.Men | G193: OA.M.Eyewear | H193: Accessories | I193: Printemps-Ete 2019 | J193: - | K193: 10 | L193: 140 | M193: 1400
A194: High Defintion Photos Upon Request | B194: LA5SUN70I53E.88 | C194: LA5SUN70I53E.88.TU | D194: 1923370353646 | E194: TU | F194: OA.Men | G194: OA.M.Eyewear | H194: ND | I194: Printemps-Ete 2020 | J194: - | K194: 3 | L194: 180 | M194: 540
A195: High Defintion Photos Upon Request | B195: LA5SUN75U01A.99 | C195: LA5SUN75U01A.99.TU | D195: 1923370353882 | E195: TU | F195: OA.Men | G195: OA.M.Eyewear | H195: ND | I195: Printemps-Ete 2020 | J195: - | K195: 57 | L195: 170 | M195: =+K195*L195 -> 9690
A196: High Defintion Photos Upon Request | B196: LA5SUN75U14E.98 | C196: LA5SUN75U14E.98.TU | D196: 1923370353950 | E196: TU | F196: OA.Men | G196: OA.M.Eyewear | H196: ND | I196: Printemps-Ete 2020 | J196: - | K196: 31 | L196: 170 | M196: 5270
A197: High Defintion Photos Upon Request | B197: LA5SUN75U16C.93 | C197: LA5SUN75U16C.93.TU | D197: 1923370354018 | E197: TU | F197: OA.Men | G197: OA.M.Eyewear | H197: ND | I197: Printemps-Ete 2020 | J197: - | K197: 46 | L197: 170 | M197: 7820
A198: High Defintion Photos Upon Request | B198: LA5SUN79U14C.98 | C198: LA5SUN79U14C.98.TU | D198: 1923370426210 | E198: TU | F198: OA.Men | G198: OA.M.Eyewear | H198: ND | I198: Printemps-Ete 2020 | J198: - | K198: 46 | L198: 170 | M198: 7820
A199: High Defintion Photos Upon Request | B199: LA5SUN85F14C.98 | C199: LA5SUN85F14C.98.TU | D199: 1923370400166 | E199: TU | F199: OA.Men | G199: OA.M.Eyewear | H199: ND | I199: Printemps-Ete 2020 | J199: - | K199: 39 | L199: 240 | M199: 9360
A200: High Defintion Photos Upon Request | B200: LA5SUN89F16Q.45 | C200: LA5SUN89F16Q.45.TU | D200: 1923370400920 | E200: TU | F200: OA.Men | G200: OA.M.Eyewear | H200: ND | I200: Printemps-Ete 2020 | J200: - | K200: 26 | L200: 140 | M200: 3640
... 149 more rows

Sheet Acc W
A1: PHOTOS | B1: MTC | C1: Mtct | D1: EAN | E1: Size | F1: L2 Department | G1: L3 Category | H1: Knowhow new | I1: Creation season | J1: Universe | K1: Quantity | L1: Prix retail EUR | M1: TOT Prix retail EUR | N1: Purchase Order Quantity
A2: High Definition Photos Upon Request | B2: F762SA107B10.AG | C2: F762SA107B10.AG.TU | D2: 3603679055783 | E2: TU | F2: LG.Women | G2: LG.W.Bag | H2: Leather items | I2: Automne-Hiver 2017 | J2: - | K2: 1 | L2: 450 | M2: =+L2*K2 -> 450
A3: High Definition Photos Upon Request | B3: F862SA804B14.86 | C3: F862SA804B14.86.TU | D3: 3603679366360 | E3: TU | F3: LG.Women | G3: LG.W.Bag | H3: Leather items | I3: Automne-Hiver 2018 | J3: Bamboo Tiger | K3: 2 | L3: 295 | M3: =+L3*K3 -> 590
A4: High Definition Photos Upon Request | B4: F862SA999F11.17 | C4: F862SA999F11.17.TU | D4: 3603679402785 | E4: TU | F4: LG.Women | G4: LG.W.Bag | H4: Leather items | I4: Automne-Hiver 2018 | J4: - | K4: 1 | L4: 180 | M4: 180
A5: High Definition Photos Upon Request | B5: F952SA520F10.39 | C5: F952SA520F10.39.TU | D5: 3603679529840 | E5: TU | F5: LG.Women | G5: LG.W.Bag | H5: Leather items | I5: Printemps-Ete 2019 | J5: Print | K5: 4 | L5: 290 | M5: 1160
A6: High Definition Photos Upon Request | B6: F952SA521F10.39 | C6: F952SA521F10.39.TU | D6: 3603679529932 | E6: TU | F6: LG.Women | G6: LG.W.Bag | H6: Leather items | I6: Printemps-Ete 2019 | J6: Print | K6: 4 | L6: 250 | M6: 1000
A7: High Definition Photos Upon Request | B7: FA52SA003F17.02 | C7: FA52SA003F17.02.TU | D7: 3603679809355 | E7: TU | F7: LG.Women | G7: LG.W.Bag | H7: ND | I7: Printemps-Ete 2020 | J7: Print | K7: 1 | L7: 190 | M7: 190
A8: High Definition Photos Upon Request | B8: FA52SA403F02.99 | C8: FA52SA403F02.99.TU | D8: 3603679809706 | E8: TU | F8: LG.Women | G8: LG.W.Bag | H8: ND | I8: Printemps-Ete 2020 | J8: Kenzo Paris | K8: 15 | L8: 380 | M8: 5700
A9: High Definition Photos Upon Request | B9: FA62SA007F08.76 | C9: FA62SA007F08.76.TU | D9: 3603679909659 | E9: TU | F9: LG.Women | G9: LG.W.Bag | H9: ND | I9: Automne-Hiver 2020 | J9: - | K9: 1 | L9: 295 | M9: 295
A10: High Definition Photos Upon Request | B10: FA62SA008F08.54 | C10: FA62SA008F08.54.TU | D10: 3603679909710 | E10: TU | F10: LG.Women | G10: LG.W.Bag | H10: ND | I10: Automne-Hiver 2020 | J10: - | K10: 7 | L10: 265 | M10: 1855
A11: High Definition Photos Upon Request | B11: FA62SA020L26.99 | C11: FA62SA020L26.99.TU | D11: 3603679948771 | E11: TU | F11: LG.Women | G11: LG.W.Bag | H11: ND | I11: Automne-Hiver 2020 | J11: - | K11: 16 | L11: 890 | M11: 14240
A12: High Definition Photos Upon Request | B12: FA62SA021L26.99 | C12: FA62SA021L26.99.TU | D12: 3603679956790 | E12: TU | F12: LG.Women | G12: LG.W.Bag | H12: ND | I12: Automne-Hiver 2020 | J12: - | K12: 93 | L12: 690 | M12: 64170
A13: High Definition Photos Upon Request | B13: FA62SA021L35.19 | C13: FA62SA021L35.19.TU | D13: 3603679957162 | E13: TU | F13: LG.Women | G13: LG.W.Bag | H13: ND | I13: Automne-Hiver 2020 | J13: - | K13: 9 | L13: 690 | M13: 6210
A14: High Definition Photos Upon Request | B14: FA62SA022L26.99 | C14: FA62SA022L26.99.TU | D14: 3603679949037 | E14: TU | F14: LG.Women | G14: LG.W.Bag | H14: ND | I14: Automne-Hiver 2020 | J14: - | K14: 89 | L14: 450 | M14: 40050
A15: High Definition Photos Upon Request | B15: FA62SA022L35.19 | C15: FA62SA022L35.19.TU | D15: 3603679949099 | E15: TU | F15: LG.Women | G15: LG.W.Bag | H15: ND | I15: Automne-Hiver 2020 | J15: - | K15: 2 | L15: 450 | M15: 900
A16: High Definition Photos Upon Request | B16: FA62SA227F21.09 | C16: FA62SA227F21.09.TU | D16: 3603679960490 | E16: TU | F16: LG.Women | G16: LG.W.Bag | H16: ND | I16: Printemps-Ete 2021 | J16: Kenzo Sport | K16: 4 | L16: 195 | M16: 780
A17: High Definition Photos Upon Request | B17: FA62SA227F21.99 | C17: FA62SA227F21.99.TU | D17: 3603679924072 | E17: TU | F17: LG.Women | G17: LG.W.Bag | H17: ND | I17: Automne-Hiver 2020 | J17: Kenzo Sport | K17: 59 | L17: 195 | M17: 11505
A18: High Definition Photos Upon Request | B18: FA62SA406F02.54 | C18: FA62SA406F02.54.TU | D18: 3603679902346 | E18: TU | F18: LG.Women | G18: LG.W.Bag | H18: ND | I18: Automne-Hiver 2020 | J18: - | K18: 2 | L18: 195 | M18: 390
A19: High Definition Photos Upon Request | B19: FA62SA407F02.11 | C19: FA62SA407F02.11.TU | D19: 3603679902377 | E19: TU | F19: LG.Women | G19: LG.W.Bag | H19: ND | I19: Automne-Hiver 2020 | J19: - | K19: 1 | L19: 195 | M19: 195
A20: High Definition Photos Upon Request | B20: FA62SA407F02.22 | C20: FA62SA407F02.22.TU | D20: 3603679902353 | E20: TU | F20: LG.Women | G20: LG.W.Bag | H20: ND | I20: Automne-Hiver 2020 | J20: - | K20: 2 | L20: 195 | M20: 390
A21: High Definition Photos Upon Request | B21: FA62SA521F10.21 | C21: FA62SA521F10.21.TU | D21: 3603679912192 | E21: TU | F21: LG.Women | G21: LG.W.Bag | H21: ND | I21: Automne-Hiver 2020 | J21: Kenzo Logo | K21: 2 | L21: 245 | M21: 490
A22: High Definition Photos Upon Request | B22: FA62SA901F06.99 | C22: FA62SA901F06.99.TU | D22: 3603679865504 | E22: TU | F22: LG.Women | G22: LG.W.Bag | H22: ND | I22: Automne-Hiver 2020 | J22: Kenzo Logo | K22: 2 | L22: 290 | M22: 580
A23: High Definition Photos Upon Request | B23: FB52SA021B03.99 | C23: FB52SA021B03.99.TU | D23: 3612230074897 | E23: TU | F23: LG.Women | G23: LG.W.Bag | H23: ND | I23: Printemps-Ete 2021 | J23: - | K23: 31 | L23: 490 | M23: 15190
A24: High Definition Photos Upon Request | B24: FB52SA301L20.99 | C24: FB52SA301L20.99.TU | D24: 3603679970338 | E24: TU | F24: LG.Women | G24: LG.W.Bag | H24: ND | I24: Printemps-Ete 2021 | J24: K Logo | K24: 57 | L24: 350 | M24: 19950
A25: High Definition Photos Upon Request | B25: FB52SA307L20.99 | C25: FB52SA307L20.99.TU | D25: 3603679970369 | E25: TU | F25: LG.Women | G25: LG.W.Bag | H25: ND | I25: Printemps-Ete 2021 | J25: K Logo | K25: 32 | L25: 295 | M25: 9440
A26: High Definition Photos Upon Request | B26: FB52SA521F12.76 | C26: FB52SA521F12.76.TU | D26: 3603679994914 | E26: TU | F26: LG.Women | G26: LG.W.Bag | H26: ND | I26: Printemps-Ete 2021 | J26: Seasonal Graphic | K26: 18 | L26: 275 | M26: 4950
A27: High Definition Photos Upon Request | B27: FB52SA550F01.11 | C27: FB52SA550F01.11.TU | D27: 3612230074583 | E27: TU | F27: LG.Women | G27: LG.W.Bag | H27: ND | I27: Printemps-Ete 2021 | J27: K-Tiger | K27: 70 | L27: 250 | M27: 17500
A28: High Definition Photos Upon Request | B28: FB52SA550FR3.69A | C28: FB52SA550FR3.69A.TU | D28: 3612230110205 | E28: TU | F28: LG.Women | G28: LG.W.Bag | H28: ND | I28: Printemps-Ete 2021 | J28: Print | K28: 28 | L28: 295 | M28: 8260
A29: High Definition Photos Upon Request | B29: FB52SA551F01.11 | C29: FB52SA551F01.11.TU | D29: 3612230074637 | E29: TU | F29: LG.Women | G29: LG.W.Bag | H29: ND | I29: Printemps-Ete 2021 | J29: K-Tiger | K29: 89 | L29: 225 | M29: 20025
A30: High Definition Photos Upon Request | B30: FB52SA551F01.88 | C30: FB52SA551F01.88.TU | D30: 3612230074620 | E30: TU | F30: LG.Women | G30: LG.W.Bag | H30: ND | I30: Printemps-Ete 2021 | J30: K-Tiger | K30: 10 | L30: 225 | M30: 2250
A31: High Definition Photos Upon Request | B31: FB52SA551FR3.66 | C31: FB52SA551FR3.66.TU | D31: 3612230110229 | E31: TU | F31: LG.Women | G31: LG.W.Bag | H31: ND | I31: Printemps-Ete 2021 | J31: Print | K31: 84 | L31: 245 | M31: 20580
A32: High Definition Photos Upon Request | B32: FB62SA021B03.76 | C32: FB62SA021B03.76.TU | D32: 3612230136915 | E32: TU | F32: LG.Women | G32: LG.W.Bag | H32: ND | I32: Automne-Hiver 2021 | J32: - | K32: 11 | L32: 390 | M32: 4290
A33: High Definition Photos Upon Request | B33: FB62SA022L26.99 | C33: FB62SA022L26.99.TU | D33: 3612230166769 | E33: TU | F33: LG.Women | G33: LG.W.Bag | H33: ND | I33: Automne-Hiver 2021 | J33: - | K33: 10 | L33: 450 | M33: 4500
A34: High Definition Photos Upon Request | B34: FC52SA911F01.56 | C34: FC52SA911F01.56.TU | D34: 3612230232693 | E34: TU | F34: LG.Women | G34: LG.W.Bag | H34: ND | I34: Printemps-Ete 2022 | J34: Kenzo Logo | K34: 3 | L34: 250 | M34: 750
A35: High Definition Photos Upon Request | B35: FC52SA954B09.19 | C35: FC52SA954B09.19.TU | D35: 3612230271364 | E35: TU | F35: LG.Women | G35: LG.W.Bag | H35: ND | I35: Printemps-Ete 2022 | J35: Kenzo Logo | K35: 12 | L35: 225 | M35: 2700
A36: High Definition Photos Upon Request | B36: F952CE302L01.99 | C36: F952CE302L01.99.95 | D36: 3603679552572 | E36: 95 | F36: LG.Women | G36: LG.W.Belt | H36: Accessories | I36: Printemps-Ete 2019 | J36: - | K36: 1 | L36: 125 | M36: 125
A37: High Definition Photos Upon Request | B37: FA62CE305L22.99 | C37: FA62CE305L22.99.85 | D37: 3603679948016 | E37: 85 | F37: LG.Women | G37: LG.W.Belt | H37: ND | I37: Automne-Hiver 2020 | J37: - | K37: 23 | L37: 250 | M37: 5750
A38: High Definition Photos Upon Request | C38: FA62CE305L22.99.95 | D38: 3603679956820 | E38: 95 | F38: LG.Women | G38: LG.W.Belt | H38: ND | I38: Automne-Hiver 2020 | J38: - | K38: 24 | L38: 250 | M38: 6000
A39: High Definition Photos Upon Request | B39: FB52CE306L25.99 | C39: FB52CE306L25.99.90 | D39: 3612230065413 | E39: 90 | F39: LG.Women | G39: LG.W.Belt | H39: ND | I39: Printemps-Ete 2021 | J39: - | K39: 44 | L39: 250 | M39: 11000
A40: High Definition Photos Upon Request | B40: F852AC103LB4.16 | C40: F852AC103LB4.16.TU | D40: 3603679336387 | E40: TU | F40: LG.Women | G40: LG.W.Small Leathergoods | H40: Leather items | I40: Printemps-Ete 2018 | J40: - | K40: 2 | L40: 130 | M40: 260
A41: High Definition Photos Upon Request | B41: F852AC103LB4.74 | C41: F852AC103LB4.74.TU | D41: 3603679336394 | E41: TU | F41: LG.Women | G41: LG.W.Small Leathergoods | H41: Leather items | I41: Printemps-Ete 2018 | J41: - | K41: 3 | L41: 130 | M41: 390
A42: High Definition Photos Upon Request | B42: F862AC103B08.86 | C42: F862AC103B08.86.TU | D42: 3603679347093 | E42: TU | F42: LG.Women | G42: LG.W.Small Leathergoods | H42: Leather items | I42: Automne-Hiver 2018 | J42: - | K42: 3 | L42: 150 | M42: 450
A43: High Definition Photos Upon Request | B43: F862AC103B09.99 | C43: F862AC103B09.99.TU | D43: 3603679347116 | E43: TU | F43: LG.Women | G43: LG.W.Small Leathergoods | H43: Leather items | I43: Automne-Hiver 2018 | J43: - | K43: 3 | L43: 130 | M43: 390
A44: High Definition Photos Upon Request | B44: F862AC103L10.99 | C44: F862AC103L10.99.TU | D44: 3603679338176 | E44: TU | F44: LG.Women | G44: LG.W.Small Leathergoods | H44: Leather items | I44: Automne-Hiver 2018 | J44: - | K44: 3 | L44: 130 | M44: 390
A45: High Definition Photos Upon Request | B45: F952AC104F26.99 | C45: F952AC104F26.99.TU | D45: 3603679503123 | E45: TU | F45: LG.Women | G45: LG.W.Small Leathergoods | H45: Leather items | I45: Printemps-Ete 2019 | J45: - | K45: 3 | L45: 120 | M45: 360
A46: High Definition Photos Upon Request | B46: FA52PM600L22.99 | C46: FA52PM600L22.99.TU | D46: 3603679814908 | E46: TU | F46: LG.Women | G46: LG.W.Small Leathergoods | H46: ND | I46: Printemps-Ete 2020 | J46: Eye | K46: 1 | L46: 95 | M46: 95
A47: High Definition Photos Upon Request | B47: FA52PM611L23.AG | C47: FA52PM611L23.AG.TU | D47: 3603679804923 | E47: TU | F47: LG.Women | G47: LG.W.Small Leathergoods | H47: ND | I47: Printemps-Ete 2020 | J47: Eye | K47: 1 | L47: 185 | M47: 185
A48: High Definition Photos Upon Request | B48: FA62PM028L26.99 | C48: FA62PM028L26.99.TU | D48: 3603679948221 | E48: TU | F48: LG.Women | G48: LG.W.Small Leathergoods | H48: ND | I48: Automne-Hiver 2020 | J48: - | K48: 2 | L48: 175 | M48: 350
A49: High Definition Photos Upon Request | B49: FA62PM028L35.19 | C49: FA62PM028L35.19.TU | D49: 3603679948306 | E49: TU | F49: LG.Women | G49: LG.W.Small Leathergoods | H49: ND | I49: Automne-Hiver 2020 | J49: - | K49: 1 | L49: 175 | M49: 175
A50: High Definition Photos Upon Request | B50: FA62PM028L35.57 | C50: FA62PM028L35.57.TU | D50: 3603679948283 | E50: TU | F50: LG.Women | G50: LG.W.Small Leathergoods | H50: ND | I50: Automne-Hiver 2020 | J50: - | K50: 1 | L50: 175 | M50: 175
A51: High Definition Photos Upon Request | B51: FA62PM039L35.19 | C51: FA62PM039L35.19.TU | D51: 3603679948542 | E51: TU | F51: LG.Women | G51: LG.W.Small Leathergoods | H51: ND | I51: Automne-Hiver 2020 | J51: - | K51: 2 | L51: 220 | M51: 440
A52: High Definition Photos Upon Request | B52: FA62PM305L24.99 | C52: FA62PM305L24.99.TU | D52: 3603679871802 | E52: TU | F52: LG.Women | G52: LG.W.Small Leathergoods | H52: ND | I52: Automne-Hiver 2020 | J52: K Logo | K52: 1 | L52: 250 | M52: 250
A53: High Definition Photos Upon Request | B53: FA62PM522F10.21 | C53: FA62PM522F10.21.TU | D53: 3603679911836 | E53: TU | F53: LG.Women | G53: LG.W.Small Leathergoods | H53: ND | I53: Automne-Hiver 2020 | J53: - | K53: 1 | L53: 155 | M53: 155
A54: High Definition Photos Upon Request | B54: FA62PM602F07.99 | C54: FA62PM602F07.99.TU | D54: 3603679902032 | E54: TU | F54: LG.Women | G54: LG.W.Small Leathergoods | H54: ND | I54: Automne-Hiver 2020 | J54: Tiger | K54: 46 | L54: 170 | M54: 7820
A55: High Definition Photos Upon Request | B55: FA62PM608F07.21 | C55: FA62PM608F07.21.TU | D55: 3603679967680 | E55: TU | F55: LG.Women | G55: LG.W.Small Leathergoods | H55: ND | I55: Printemps-Ete 2021 | J55: Tiger | K55: 8 | L55: 170 | M55: 1360
A56: High Definition Photos Upon Request | B56: FA62PM608F07.99 | C56: FA62PM608F07.99.TU | D56: 3603679902049 | E56: TU | F56: LG.Women | G56: LG.W.Small Leathergoods | H56: ND | I56: Automne-Hiver 2020 | J56: Tiger | K56: 7 | L56: 170 | M56: 1190
A57: High Definition Photos Upon Request | B57: FA62PM611F07.99 | C57: FA62PM611F07.99.TU | D57: 3603679902100 | E57: TU | F57: LG.Women | G57: LG.W.Small Leathergoods | H57: ND | I57: Automne-Hiver 2020 | J57: Tiger | K57: 1 | L57: 150 | M57: 150
A58: High Definition Photos Upon Request | B58: FA62PM616F07.99 | C58: FA62PM616F07.99.TU | D58: 3603679902131 | E58: TU | F58: LG.Women | G58: LG.W.Small Leathergoods | H58: ND | I58: Automne-Hiver 2020 | J58: Tiger | K58: 20 | L58: 150 | M58: 3000
A59: High Definition Photos Upon Request | B59: FA62PM900L13.99 | C59: FA62PM900L13.99.TU | D59: 3603679853693 | E59: TU | F59: LG.Women | G59: LG.W.Small Leathergoods | H59: ND | I59: Automne-Hiver 2020 | J59: Kenzo Logo | K59: 17 | L59: 95 | M59: 1615
A60: High Definition Photos Upon Request | B60: FA62PM908L12.21 | C60: FA62PM908L12.21.TU | D60: 3603679860370 | E60: TU | F60: LG.Women | G60: LG.W.Small Leathergoods | H60: ND | I60: Automne-Hiver 2020 | J60: Kenzo Logo | K60: 1 | L60: 185 | M60: 185
A61: High Definition Photos Upon Request | B61: FA62PM908L13.99 | C61: FA62PM908L13.99.TU | D61: 3603679853716 | E61: TU | F61: LG.Women | G61: LG.W.Small Leathergoods | H61: ND | I61: Automne-Hiver 2020 | J61: Kenzo Logo | K61: 25 | L61: 185 | M61: 4625
A62: High Definition Photos Upon Request | B62: FB52PM008F08.76 | C62: FB52PM008F08.76.TU | D62: 3603679969776 | E62: TU | F62: LG.Women | G62: LG.W.Small Leathergoods | H62: ND | I62: Printemps-Ete 2021 | J62: Kenzo Logo | K62: 58 | L62: 145 | M62: 8410
A63: High Definition Photos Upon Request | B63: FB52PM300L20.66 | C63: FB52PM300L20.66.TU | D63: 3612230072664 | E63: TU | F63: LG.Women | G63: LG.W.Small Leathergoods | H63: ND | I63: Printemps-Ete 2021 | J63: K Logo | K63: 4 | L63: 95 | M63: 380
A64: High Definition Photos Upon Request | B64: FB52PM300L20.99 | C64: FB52PM300L20.99.TU | D64: 3603679969806 | E64: TU | F64: LG.Women | G64: LG.W.Small Leathergoods | H64: ND | I64: Printemps-Ete 2021 | J64: K Logo | K64: 13 | L64: 95 | M64: 1235
A65: High Definition Photos Upon Request | B65: FB52PM302L20.99 | C65: FB52PM302L20.99.TU | D65: 3603679969813 | E65: TU | F65: LG.Women | G65: LG.W.Small Leathergoods | H65: ND | I65: Printemps-Ete 2021 | J65: K Logo | K65: 17 | L65: 195 | M65: 3315
A66: High Definition Photos Upon Request | B66: FB52PM318L20.66 | C66: FB52PM318L20.66.TU | D66: 3612230072695 | E66: TU | F66: LG.Women | G66: LG.W.Small Leathergoods | H66: ND | I66: Printemps-Ete 2021 | J66: K Logo | K66: 3 | L66: 295 | M66: 885
A67: High Definition Photos Upon Request | B67: FB52PM318L20.99 | C67: FB52PM318L20.99.TU | D67: 3603679969851 | E67: TU | F67: LG.Women | G67: LG.W.Small Leathergoods | H67: ND | I67: Printemps-Ete 2021 | J67: K Logo | K67: 20 | L67: 295 | M67: =+L67*K67 -> 5900
A68: High Definition Photos Upon Request | B68: FB52PM522F12.76 | C68: FB52PM522F12.76.TU | D68: 3603679973605 | E68: TU | F68: LG.Women | G68: LG.W.Small Leathergoods | H68: ND | I68: Printemps-Ete 2021 | J68: Seasonal Graphic | K68: 10 | L68: 155 | M68: 1550
A69: High Definition Photos Upon Request | B69: FB52PM551F01.11 | C69: FB52PM551F01.11.TU | D69: 3612230074453 | E69: TU | F69: LG.Women | G69: LG.W.Small Leathergoods | H69: ND | I69: Printemps-Ete 2021 | J69: K-Tiger | K69: 75 | L69: 165 | M69: 12375
A70: High Definition Photos Upon Request | B70: FB52PM551F01.88 | C70: FB52PM551F01.88.TU | D70: 3612230074460 | E70: TU | F70: LG.Women | G70: LG.W.Small Leathergoods | H70: ND | I70: Printemps-Ete 2021 | J70: K-Tiger | K70: 8 | L70: 165 | M70: 1320
A71: High Definition Photos Upon Request | B71: FB52PM552FR3.66 | C71: FB52PM552FR3.66.TU | D71: 3612230110199 | E71: TU | F71: LG.Women | G71: LG.W.Small Leathergoods | H71: ND | I71: Printemps-Ete 2021 | J71: Print | K71: 69 | L71: 195 | M71: 13455
A72: High Definition Photos Upon Request | B72: FB52PM708L22.99 | C72: FB52PM708L22.99.TU | D72: 3603679970055 | E72: TU | F72: LG.Women | G72: LG.W.Small Leathergoods | H72: ND | I72: Printemps-Ete 2021 | J72: - | K72: 9 | L72: 225 | M72: 2025
A73: High Definition Photos Upon Request | B73: FB52PM710B01.96 | C73: FB52PM710B01.96.TU | D73: 3603679970086 | E73: TU | F73: LG.Women | G73: LG.W.Small Leathergoods | H73: ND | I73: Printemps-Ete 2021 | J73: Kenzo Logo | K73: 2 | L73: 125 | M73: 250
A74: High Definition Photos Upon Request | B74: L95SUN40001U.01 | C74: L95SUN40001U.01.TU | D74: 1923370118566 | E74: TU | F74: OA.Women | G74: OA.W.Eyewear | H74: Accessories | I74: Printemps-Ete 2019 | J74: - | K74: 6 | L74: 220 | M74: 1320
A75: High Definition Photos Upon Request | B75: L96SUN40017F.67 | C75: L96SUN40017F.67.TU | D75: 1923370266212 | E75: TU | F75: OA.Women | G75: OA.W.Eyewear | H75: Accessories | I75: Automne-Hiver 2019 | J75: - | K75: 1 | L75: 140 | M75: 140
A76: High Definition Photos Upon Request | B76: L96SUN40029U.32 | C76: L96SUN40029U.32.TU | D76: 1923370272602 | E76: TU | F76: OA.Women | G76: OA.W.Eyewear | H76: Accessories | I76: Automne-Hiver 2019 | J76: - | K76: 5 | L76: 220 | M76: 1100
A77: High Definition Photos Upon Request | B77: LA5SUN28U21V.01 | C77: LA5SUN28U21V.01.TU | D77: 1923370272534 | E77: TU | F77: OA.Women | G77: OA.W.Eyewear | H77: ND | I77: Printemps-Ete 2020 | J77: - | K77: 46 | L77: 170 | M77: 7820
A78: High Definition Photos Upon Request | B78: LA5SUN56U13C.98 | C78: LA5SUN56U13C.98.TU | D78: 1923370350508 | E78: TU | F78: OA.Women | G78: OA.W.Eyewear | H78: ND | I78: Printemps-Ete 2020 | J78: - | K78: 27 | L78: 160 | M78: 4320
A79: High Definition Photos Upon Request | B79: LA5SUN76U14A.98 | C79: LA5SUN76U14A.98.TU | D79: 1923370354254 | E79: TU | F79: OA.Women | G79: OA.W.Eyewear | H79: ND | I79: Printemps-Ete 2020 | J79: - | K79: 68 | L79: 170 | M79: 11560
A80: High Definition Photos Upon Request | B80: LA5SUN76U30C.40 | C80: LA5SUN76U30C.40.TU | D80: 1923370354322 | E80: TU | F80: OA.Women | G80: OA.W.Eyewear | H80: ND | I80: Printemps-Ete 2020 | J80: - | K80: 49 | L80: 170 | M80: 8330
A81: High Definition Photos Upon Request | B81: LA5SUN76U34Y.40 | C81: LA5SUN76U34Y.40.TU | D81: 1923370354490 | E81: TU | F81: OA.Women | G81: OA.W.Eyewear | H81: ND | I81: Printemps-Ete 2020 | J81: - | K81: 31 | L81: 170 | M81: 5270
A82: High Definition Photos Upon Request | B82: LA5SUN86F16C.96 | C82: LA5SUN86F16C.96.TU | D82: 1923370400470 | E82: TU | F82: OA.Women | G82: OA.W.Eyewear | H82: ND | I82: Printemps-Ete 2020 | J82: - | K82: 68 | L82: 240 | M82: 16320
A83: High Definition Photos Upon Request | B83: LA5SUN87F01A.99 | C83: LA5SUN87F01A.99.TU | D83: 1923370404126 | E83: TU | F83: OA.Women | G83: OA.W.Eyewear | H83: ND | I83: Printemps-Ete 2020 | J83: - | K83: 49 | L83: 170 | M83: 8330
A84: High Definition Photos Upon Request | B84: LA6SUN01I01B.99 | C84: LA6SUN01I01B.99.TU | D84: 1923370504970 | E84: TU | F84: OA.Women | G84: OA.W.Eyewear | H84: ND | I84: Automne-Hiver 2020 | J84: - | K84: 45 | L84: 150 | M84: 6750
A85: High Definition Photos Upon Request | B85: LA6SUN98U05B.73 | C85: LA6SUN98U05B.73.TU | D85: 1923370503812 | E85: TU | F85: OA.Women | G85: OA.W.Eyewear | H85: ND | I85: Automne-Hiver 2020 | J85: - | K85: 48 | L85: 130 | M85: 6240
A86: High Definition Photos Upon Request | B86: LA6SUN99U01A.99 | C86: LA6SUN99U01A.99.TU | D86: 1923370511046 | E86: TU | F86: OA.Women | G86: OA.W.Eyewear | H86: ND | I86: Automne-Hiver 2020 | J86: - | K86: 1 | L86: 150 | M86: 150
A87: High Definition Photos Upon Request | B87: LA6SUN99U53V.14 | C87: LA6SUN99U53V.14.TU | D87: 1923370511114 | E87: TU | F87: OA.Women | G87: OA.W.Eyewear | H87: ND | I87: Automne-Hiver 2020 | J87: - | K87: 19 | L87: 150 | M87: 2850
A88: High Definition Photos Upon Request | B88: LA6SUN99U66A.21 | C88: LA6SUN99U66A.21.TU | D88: 1923370511282 | E88: TU | F88: OA.Women | G88: OA.W.Eyewear | H88: ND | I88: Automne-Hiver 2020 | J88: - | K88: 16 | L88: 150 | M88: 2400
A89: High Definition Photos Upon Request | B89: LB5SUN08U21W.01 | C89: LB5SUN08U21W.01.TU | D89: 1923370639542 | E89: TU | F89: OA.Women | G89: OA.W.Eyewear | H89: ND | I89: Printemps-Ete 2021 | J89: - | K89: 7 | L89: 140 | M89: 980
A90: High Definition Photos Upon Request | B90: LB5SUN12U32A.OR | C90: LB5SUN12U32A.OR.TU | D90: 1923370641040 | E90: TU | F90: OA.Women | G90: OA.W.Eyewear | H90: ND | I90: Printemps-Ete 2021 | J90: - | K90: 9 | L90: 140 | M90: 1260
A91: High Definition Photos Upon Request | B91: LB5SUN17U30N.OR | C91: LB5SUN17U30N.OR.TU | D91: 1923370642726 | E91: TU | F91: OA.Women | G91: OA.W.Eyewear | H91: ND | I91: Printemps-Ete 2021 | J91: - | K91: 6 | L91: 170 | M91: 1020
A92: High Definition Photos Upon Request | B92: LB5SUN19F01A.99 | C92: LB5SUN19F01A.99.TU | D92: 1923370643334 | E92: TU | F92: OA.Women | G92: OA.W.Eyewear | H92: ND | I92: Printemps-Ete 2021 | J92: - | K92: 6 | L92: 170 | M92: 1020
A93: High Definition Photos Upon Request | B93: LB5SUN19F53E.14 | C93: LB5SUN19F53E.14.TU | D93: 1923370643402 | E93: TU | F93: OA.Women | G93: OA.W.Eyewear | H93: ND | I93: Printemps-Ete 2021 | J93: - | K93: 3 | L93: 170 | M93: 510
A94: High Definition Photos Upon Request | B94: LB5SUN19F98N.50 | C94: LB5SUN19F98N.50.TU | D94: 1923370643570 | E94: TU | F94: OA.Women | G94: OA.W.Eyewear | H94: ND | I94: Printemps-Ete 2021 | J94: - | K94: 4 | L94: 170 | M94: 680
A95: High Definition Photos Upon Request | B95: LB5SUN21I54E.14 | C95: LB5SUN21I54E.14.TU | D95: 1923370644256 | E95: TU | F95: OA.Women | G95: OA.W.Eyewear | H95: ND | I95: Printemps-Ete 2021 | J95: - | K95: 20 | L95: 170 | M95: 3400
A96: High Definition Photos Upon Request | B96: LB5SUN21I55A.55 | C96: LB5SUN21I55A.55.TU | D96: 1923370644324 | E96: TU | F96: OA.Women | G96: OA.W.Eyewear | H96: ND | I96: Printemps-Ete 2021 | J96: - | K96: 16 | L96: 170 | M96: 2720
A97: High Definition Photos Upon Request | B97: LB5SUN23I01A.99 | C97: LB5SUN23I01A.99.TU | D97: 1923370644874 | E97: TU | F97: OA.Women | G97: OA.W.Eyewear | H97: ND | I97: Printemps-Ete 2021 | J97: - | K97: 12 | L97: 160 | M97: 1920
A98: High Definition Photos Upon Request | B98: LB5SUN23I72Z.33 | C98: LB5SUN23I72Z.33.TU | D98: 1923370645178 | E98: TU | F98: OA.Women | G98: OA.W.Eyewear | H98: ND | I98: Printemps-Ete 2021 | J98: - | K98: 10 | L98: 160 | M98: 1600
A99: High Definition Photos Upon Request | B99: LB6SUN29I39V.43 | C99: LB6SUN29I39V.43.TU | D99: 1923370848128 | E99: TU | F99: OA.Women | G99: OA.W.Eyewear | H99: ND | I99: Automne-Hiver 2021 | J99: - | K99: 8 | L99: 140 | M99: 1120
A100: High Definition Photos Upon Request | B100: LB6SUN30I81N.86 | C100: LB6SUN30I81N.86.TU | D100: 1923370848678 | E100: TU | F100: OA.Women | G100: OA.W.Eyewear | H100: ND | I100: Automne-Hiver 2021 | J100: - | K100: 2 | L100: 140 | M100: 280
A101: High Definition Photos Upon Request | B101: LB6SUN30I93V.58 | C101: LB6SUN30I93V.58.TU | D101: 1923370848746 | E101: TU | F101: OA.Women | G101: OA.W.Eyewear | H101: ND | I101: Automne-Hiver 2021 | J101: - | K101: 4 | L101: 140 | M101: 560
A102: High Definition Photos Upon Request | B102: LB6SUN40F03B.95 | C102: LB6SUN40F03B.95.TU | D102: 1923370989326 | E102: TU | F102: OA.Women | G102: OA.W.Eyewear | H102: ND | I102: Printemps-Ete 2022 | J102: - | K102: 18 | L102: 140 | M102: 2520
A103: High Definition Photos Upon Request | B103: LB6SUN45U25V.02 | C103: LB6SUN45U25V.02.TU | D103: 1923370949580 | E103: TU | F103: OA.Women | G103: OA.W.Eyewear | H103: ND | I103: Printemps-Ete 2022 | J103: - | K103: 4 | L103: 170 | M103: 680
A104: High Definition Photos Upon Request | B104: LB6SUN50I93V.58 | C104: LB6SUN50I93V.58.TU | D104: 1923370958322 | E104: TU | F104: OA.Women | G104: OA.W.Eyewear | H104: ND | I104: Printemps-Ete 2022 | J104: - | K104: 10 | L104: 170 | M104: 1700
A105: High Definition Photos Upon Request | B105: F852AC001F08.30 | C105: F852AC001F08.30.TU | D105: 3603679254926 | E105: TU | F105: OA.Women | G105: OA.W.Hat | H105: Accessories | I105: Printemps-Ete 2018 | J105: - | K105: 1 | L105: 175 | M105: 175
A106: High Definition Photos Upon Request | B106: FA62AC521F01.39 | C106: FA62AC521F01.39.TU | D106: 3603679911690 | E106: TU | F106: OA.Women | G106: OA.W.Hat | H106: ND | I106: Automne-Hiver 2020 | J106: - | K106: 3 | L106: 105 | M106: 315
A107: High Definition Photos Upon Request | B107: F868SW240JSE.76 | C107: F868SW240JSE.76.3638 | D107: 3603679361921 | E107: 3638 | F107: OA.Women | G107: OA.W.Textile Accessories | H107: Accessories | I107: Automne-Hiver 2018 | J107: - | K107: 7 | L107: 30 | M107: 210
A108: High Definition Photos Upon Request | B108: F958EU111PFK.70 | C108: F958EU111PFK.70.TU | D108: 3603679422707 | E108: TU | F108: OA.Women | G108: OA.W.Textile Accessories | H108: Accessories | I108: Printemps-Ete 2019 | J108: Seasonal Logo | K108: 1 | L108: 165 | M108: 165
A109: High Definition Photos Upon Request | B109: F958EW440PFH.23 | C109: F958EW440PFH.23.TU | D109: 3603679570675 | E109: TU | F109: OA.Women | G109: OA.W.Textile Accessories | H109: Accessories | I109: Automne-Hiver 2019 | J109: Multi Logos | K109: 2 | L109: 195 | M109: 390
A110: High Definition Photos Upon Request | B110: F968EW402PEV.01 | C110: F968EW402PEV.01.TU | D110: 3603679597726 | E110: TU | F110: OA.Women | G110: OA.W.Textile Accessories | H110: ND | I110: Automne-Hiver 2019 | J110: - | K110: 2 | L110: 235 | M110: 470
A111: High Definition Photos Upon Request | B111: F968EW701KFD.32 | C111: F968EW701KFD.32.TU | D111: 3603679668709 | E111: TU | F111: OA.Women | G111: OA.W.Textile Accessories | H111: Knitwear | I111: Automne-Hiver 2019 | J111: Eye | K111: 4 | L111: 195 | M111: 780
A112: High Definition Photos Upon Request | B112: FA68EW2019PF.99 | C112: FA68EW2019PF.99.TU | D112: 3603679920975 | E112: TU | F112: OA.Women | G112: OA.W.Textile Accessories | H112: ND | I112: Automne-Hiver 2020 | J112: - | K112: 4 | L112: 195 | M112: 780
A113: High Definition Photos Upon Request | B113: FA68EW712PFN.74 | C113: FA68EW712PFN.74.TU | D113: 3603679945244 | E113: TU | F113: OA.Women | G113: OA.W.Textile Accessories | H113: ND | I113: Automne-Hiver 2020 | J113: ND | K113: 1 | L113: 180 | M113: 180
A114: High Definition Photos Upon Request | B114: FA68EW716KEN.39 | C114: FA68EW716KEN.39.TU | D114: 3603679937409 | E114: TU | F114: OA.Women | G114: OA.W.Textile Accessories | H114: ND | I114: Automne-Hiver 2020 | J114: - | K114: 1 | L114: 295 | M114: 295
A115: High Definition Photos Upon Request | B115: FA68EW716KEN.67 | C115: FA68EW716KEN.67.TU | D115: 3603679937416 | E115: TU | F115: OA.Women | G115: OA.W.Textile Accessories | H115: ND | I115: Automne-Hiver 2020 | J115: - | K115: 23 | L115: 295 | M115: 6785
A116: High Definition Photos Upon Request | B116: FA68MK220PFN.50 | C116: FA68MK220PFN.50.TU | D116: 3612230059900 | E116: TU | F116: OA.Women | G116: OA.W.Textile Accessories | H116: ND | I116: Automne-Hiver 2020 | J116: Kenzo Logo | K116: 2 | L116: 140 | M116: 280
A117: High Definition Photos Upon Request | B117: FA68MK220PFN.67 | C117: FA68MK220PFN.67.TU | D117: 3612230059856 | E117: TU | F117: OA.Women | G117: OA.W.Textile Accessories | H117: ND | I117: Automne-Hiver 2020 | J117: Kenzo Logo | K117: 1 | L117: 140 | M117: 140
A118: High Definition Photos Upon Request | B118: FA68MK320PFF.17 | C118: FA68MK320PFF.17.TU | D118: 3612230066182 | E118: TU | F118: OA.Women | G118: OA.W.Textile Accessories | H118: ND | I118: Automne-Hiver 2020 | J118: ND | K118: 2 | L118: 120 | M118: 240
A119: High Definition Photos Upon Request | B119: FA68MK320PFF.53 | C119: FA68MK320PFF.53.TU | D119: 3612230066175 | E119: TU | F119: OA.Women | G119: OA.W.Textile Accessories | H119: ND | I119: Automne-Hiver 2020 | J119: ND | K119: 2 | L119: 120 | M119: 240
A120: High Definition Photos Upon Request | B120: FA68MK320PFG.99 | C120: FA68MK320PFG.99.TU | D120: 3612230066205 | E120: TU | F120: OA.Women | G120: OA.W.Textile Accessories | H120: ND | I120: Automne-Hiver 2020 | J120: ND | K120: 2 | L120: 120 | M120: 240
A121: High Definition Photos Upon Request | B121: FB58EW320PFN.45 | C121: FB58EW320PFN.45.TU | D121: 3612230134133 | E121: TU | F121: OA.Women | G121: OA.W.Textile Accessories | H121: ND | I121: Automne-Hiver 2021 | J121: Kenzo Logo | K121: 10 | L121: 195 | M121: 1950
A122: High Definition Photos Upon Request | B122: FB58EW320PFN.99 | C122: FB58EW320PFN.99.TU | D122: 3603679998264 | E122: TU | F122: OA.Women | G122: OA.W.Textile Accessories | H122: ND | I122: Printemps-Ete 2021 | J122: Kenzo Logo | K122: 38 | L122: 195 | M122: 7410
A123: High Definition Photos Upon Request | B123: FB58EW320PFN.99A | C123: FB58EW320PFN.99A.TU | D123: 3612230134140 | E123: TU | F123: OA.Women | G123: OA.W.Textile Accessories | H123: ND | I123: Automne-Hiver 2021 | J123: Kenzo Logo | K123: 2 | L123: 195 | M123: 390
A124: High Definition Photos Upon Request | B124: FB58EW720PFB.26 | C124: FB58EW720PFB.26.TU | D124: 3612230134188 | E124: TU | F124: OA.Women | G124: OA.W.Textile Accessories | H124: ND | I124: Automne-Hiver 2021 | J124: Kenzo Logo | K124: 7 | L124: 170 | M124: 1190
A125: High Definition Photos Upon Request | B125: FB58EW720PFB.71 | C125: FB58EW720PFB.71.TU | D125: 3612230134164 | E125: TU | F125: OA.Women | G125: OA.W.Textile Accessories | H125: ND | I125: Automne-Hiver 2021 | J125: Kenzo Logo | K125: 6 | L125: 170 | M125: 1020
A126: High Definition Photos Upon Request | B126: FB58EW720PFB.99 | C126: FB58EW720PFB.99.TU | D126: 3603679998394 | E126: TU | F126: OA.Women | G126: OA.W.Textile Accessories | H126: ND | I126: Printemps-Ete 2021 | J126: Kenzo Logo | K126: 7 | L126: 170 | M126: 1190
A127: High Definition Photos Upon Request | B127: FB58MK320PFF.02 | C127: FB58MK320PFF.02.TU | D127: 3612230060289 | E127: TU | F127: OA.Women | G127: OA.W.Textile Accessories | H127: ND | I127: Printemps-Ete 2021 | J127: Seasonal Graphic | K127: 32 | L127: 120 | M127: 3840
A128: High Definition Photos Upon Request | B128: FB68EW322PFA.50 | C128: FB68EW322PFA.50.TU | D128: 3612230144569 | E128: TU | F128: OA.Women | G128: OA.W.Textile Accessories | H128: ND | I128: Automne-Hiver 2021 | J128: Print | K128: 2 | L128: 195 | M128: 390
A129: High Definition Photos Upon Request | B129: FB68EW322PFA.57 | C129: FB68EW322PFA.57.TU | D129: 3612230144545 | E129: TU | F129: OA.Women | G129: OA.W.Textile Accessories | H129: ND | I129: Automne-Hiver 2021 | J129: Print | K129: 3 | L129: 195 | M129: 585
A130: High Definition Photos Upon Request | B130: FB68EW520PFB.26 | C130: FB68EW520PFB.26.TU | D130: 3612230144590 | E130: TU | F130: OA.Women | G130: OA.W.Textile Accessories | H130: ND | I130: Automne-Hiver 2021 | J130: Kenzo Logo | K130: 3 | L130: 235 | M130: 705
A131: High Definition Photos Upon Request | B131: FB68EW520PFB.62 | C131: FB68EW520PFB.62.TU | D131: 3612230159068 | E131: TU | F131: OA.Women | G131: OA.W.Textile Accessories | H131: ND | I131: Automne-Hiver 2021 | J131: Kenzo Logo | K131: 3 | L131: 235 | M131: =+L131*K131 -> 705
A132: High Definition Photos Upon Request | B132: FB68EW520PFB.99A | C132: FB68EW520PFB.99A.TU | D132: 3612230144583 | E132: TU | F132: OA.Women | G132: OA.W.Textile Accessories | H132: ND | I132: Automne-Hiver 2021 | J132: Kenzo Logo | K132: 7 | L132: 235 | M132: 1645
A133: High Definition Photos Upon Request | B133: FB68GW131KFB.77 | C133: FB68GW131KFB.77.TU | D133: 3612230167612 | E133: TU | F133: OA.Women | G133: OA.W.Textile Accessories | H133: ND | I133: Automne-Hiver 2021 | J133: Tiger Crest | K133: 1 | L133: 95 | M133: 95
A134: High Definition Photos Upon Request | B134: FB68GW131KFB.87 | C134: FB68GW131KFB.87.TU | D134: 3612230167636 | E134: TU | F134: OA.Women | G134: OA.W.Textile Accessories | H134: ND | I134: Automne-Hiver 2021 | J134: Tiger Crest | K134: 3 | L134: 95 | M134: 285
K135: =SUM(K2:K134) -> 2104 | M135: =SUM(M2:M134) -> 517645

Sheet Kids
A1: PHOTOS | B1: MTC | C1: Mtct | D1: EAN | E1: Size | F1: L2 Department | G1: L3 Category | H1: Knowhow new | I1: Creation season | J1: Universe | K1: Quantity | L1: Prix retail EUR | M1: TOT Prix retail EUR | N1: Purchase Order Quantity
A2: High Defintion Photos Upon Request | B2: L75J15098F03.01 | C2: L75J15098F03.01.10A | D2: 3601456125698 | E2: 10A | F2: R.Kids | G2: R.Kid | H2: Jersey | I2: Printemps-Ete 2017 | J2: Other Tigers | K2: 1 | L2: 130 | M2: =+K2*L2 -> 130
A3: High Defintion Photos Upon Request | C3: L75J15098F03.01.5A | D3: 3601456125674 | E3: 5A | F3: R.Kids | G3: R.Kid | H3: Jersey | I3: Printemps-Ete 2017 | J3: Other Tigers | K3: 1 | L3: 120 | M3: =+K3*L3 -> 120
A4: High Defintion Photos Upon Request | C4: L75J15098F03.01.6A | D4: 3601456125629 | E4: 6A | F4: R.Kids | G4: R.Kid | H4: Jersey | I4: Printemps-Ete 2017 | J4: Other Tigers | K4: 8 | L4: 120 | M4: 960
A5: High Defintion Photos Upon Request | C5: L75J15098F03.01.8A | D5: 3601456125681 | E5: 8A | F5: R.Kids | G5: R.Kid | H5: Jersey | I5: Printemps-Ete 2017 | J5: Other Tigers | K5: 12 | L5: 130 | M5: 1560
A6: High Defintion Photos Upon Request | B6: L75J15128F03.67 | C6: L75J15128F03.67.10A | D6: 3601456176065 | E6: 10A | F6: R.Kids | G6: R.Kid | H6: Jersey | I6: Printemps-Ete 2017 | J6: Tiger | K6: 2 | L6: 90 | M6: 180
A7: High Defintion Photos Upon Request | C7: L75J15128F03.67.3A | D7: 3601456176010 | E7: 3A | F7: R.Kids | G7: R.Kid | H7: Jersey | I7: Printemps-Ete 2017 | J7: Tiger | K7: 3 | L7: 80 | M7: 240
A8: High Defintion Photos Upon Request | C8: L75J15128F03.67.5A | D8: 3601456176034 | E8: 5A | F8: R.Kids | G8: R.Kid | H8: Jersey | I8: Printemps-Ete 2017 | J8: Tiger | K8: 1 | L8: 80 | M8: 80
A9: High Defintion Photos Upon Request | B9: L76K15008F03.83 | C9: L76K15008F03.83.4A | D9: 3601456255692 | E9: 4A | F9: R.Kids | G9: R.Kid | H9: Jersey | I9: Automne-Hiver 2017 | J9: Tiger | K9: 6 | L9: 85 | M9: 510
A10: High Defintion Photos Upon Request | C10: L76K15008F03.83.6A | D10: 3601456253797 | E10: 6A | F10: R.Kids | G10: R.Kid | H10: Jersey | I10: Automne-Hiver 2017 | J10: Tiger | K10: 7 | L10: 85 | M10: 595
A11: High Defintion Photos Upon Request | B11: L85L10088F03.96 | C11: L85L10088F03.96.10A | D11: 3601456393493 | E11: 10A | F11: R.Kids | G11: R.Kid | H11: Jersey | I11: Printemps-Ete 2018 | J11: Tiger | K11: 3 | L11: 50 | M11: 150
A12: High Defintion Photos Upon Request | C12: L85L10088F03.96.4A | D12: 3601456393455 | E12: 4A | F12: R.Kids | G12: R.Kid | H12: Jersey | I12: Printemps-Ete 2018 | J12: Tiger | K12: 8 | L12: 45 | M12: 360
A13: High Defintion Photos Upon Request | C13: L85L10088F03.96.5A | D13: 3601456393462 | E13: 5A | F13: R.Kids | G13: R.Kid | H13: Jersey | I13: Printemps-Ete 2018 | J13: Tiger | K13: 3 | L13: 45 | M13: 135
A14: High Defintion Photos Upon Request | C14: L85L10088F03.96.6A | D14: 3601456393479 | E14: 6A | F14: R.Kids | G14: R.Kid | H14: Jersey | I14: Printemps-Ete 2018 | J14: Tiger | K14: 8 | L14: 45 | M14: 360
A15: High Defintion Photos Upon Request | C15: L85L10088F03.96.8A | D15: 3601456393486 | E15: 8A | F15: R.Kids | G15: R.Kid | H15: Jersey | I15: Printemps-Ete 2018 | J15: Tiger | K15: 15 | L15: 50 | M15: 750
A16: High Defintion Photos Upon Request | B16: L85L15058F03.26 | C16: L85L15058F03.26.10A | D16: 3601456324602 | E16: 10A | F16: R.Kids | G16: R.Kid | H16: Jersey | I16: Printemps-Ete 2018 | J16: Other Tigers | K16: 1 | L16: 100 | M16: 100
A17: High Defintion Photos Upon Request | C17: L85L15058F03.26.3A | D17: 3601456324565 | E17: 3A | F17: R.Kids | G17: R.Kid | H17: Jersey | I17: Printemps-Ete 2018 | J17: Other Tigers | K17: 1 | L17: 90 | M17: 90
A18: High Defintion Photos Upon Request | C18: L85L15058F03.26.4A | D18: 3601456324572 | E18: 4A | F18: R.Kids | G18: R.Kid | H18: Jersey | I18: Printemps-Ete 2018 | J18: Other Tigers | K18: 1 | L18: 90 | M18: 90
A19: High Defintion Photos Upon Request | C19: L85L15058F03.26.5A | D19: 3601456324589 | E19: 5A | F19: R.Kids | G19: R.Kid | H19: Jersey | I19: Printemps-Ete 2018 | J19: Other Tigers | K19: 2 | L19: 90 | M19: 180
A20: High Defintion Photos Upon Request | C20: L85L15058F03.26.6A | D20: 3601456322516 | E20: 6A | F20: R.Kids | G20: R.Kid | H20: Jersey | I20: Printemps-Ete 2018 | J20: Other Tigers | K20: 1 | L20: 90 | M20: 90
A21: High Defintion Photos Upon Request | C21: L85L15058F03.26.8A | D21: 3601456324596 | E21: 8A | F21: R.Kids | G21: R.Kid | H21: Jersey | I21: Printemps-Ete 2018 | J21: Other Tigers | K21: 2 | L21: 100 | M21: 200
A22: High Defintion Photos Upon Request | B22: L85Z15058F03.26 | C22: L85Z15058F03.26.3M | D22: 3601456324640 | E22: 3M | F22: R.Kids | G22: R.Kid | H22: Jersey | I22: Printemps-Ete 2018 | J22: Other Tigers | K22: 2 | L22: 80 | M22: 160
A23: High Defintion Photos Upon Request | C23: L85Z15058F03.26.6M | D23: 3601456324527 | E23: 6M | F23: R.Kids | G23: R.Kid | H23: Jersey | I23: Printemps-Ete 2018 | J23: Other Tigers | K23: 1 | L23: 80 | M23: 80
A24: High Defintion Photos Upon Request | B24: L86M10058F03.01 | C24: L86M10058F03.01.10A | D24: 3601456444638 | E24: 10A | F24: R.Kids | G24: R.Kid | H24: Jersey | I24: Automne-Hiver 2018 | J24: Tiger | K24: 1 | L24: 50 | M24: 50
A25: High Defintion Photos Upon Request | C25: L86M10058F03.01.4A | D25: 3601456444607 | E25: 4A | F25: R.Kids | G25: R.Kid | H25: Jersey | I25: Automne-Hiver 2018 | J25: Tiger | K25: 4 | L25: 45 | M25: 180
A26: High Defintion Photos Upon Request | C26: L86M10058F03.01.5A | D26: 3601456444614 | E26: 5A | F26: R.Kids | G26: R.Kid | H26: Jersey | I26: Automne-Hiver 2018 | J26: Tiger | K26: 2 | L26: 45 | M26: 90
A27: High Defintion Photos Upon Request | C27: L86M10058F03.01.6A | D27: 3601456436633 | E27: 6A | F27: R.Kids | G27: R.Kid | H27: Jersey | I27: Automne-Hiver 2018 | J27: Tiger | K27: 4 | L27: 45 | M27: 180
A28: High Defintion Photos Upon Request | C28: L86M10058F03.01.8A | D28: 3601456444621 | E28: 8A | F28: R.Kids | G28: R.Kid | H28: Jersey | I28: Automne-Hiver 2018 | J28: Tiger | K28: 3 | L28: 50 | M28: 150
A29: High Defintion Photos Upon Request | B29: L86M15218F03.96 | C29: L86M15218F03.96.10A | D29: 3601456419513 | E29: 10A | F29: R.Kids | G29: R.Kid | H29: Jersey | I29: Automne-Hiver 2018 | J29: Tiger | K29: 2 | L29: 95 | M29: 190
A30: High Defintion Photos Upon Request | C30: L86M15218F03.96.8A | D30: 3601456419506 | E30: 8A | F30: R.Kids | G30: R.Kid | H30: Jersey | I30: Automne-Hiver 2018 | J30: Tiger | K30: 1 | L30: 95 | M30: 95
A31: High Defintion Photos Upon Request | B31: L86M15238F03.34 | C31: L86M15238F03.34.4A | D31: 3601456461079 | E31: 4A | F31: R.Kids | G31: R.Kid | H31: Jersey | I31: Automne-Hiver 2018 | J31: Tiger | K31: 2 | L31: 85 | M31: 170
A32: High Defintion Photos Upon Request | C32: L86M15238F03.34.5A | D32: 3601456461086 | E32: 5A | F32: R.Kids | G32: R.Kid | H32: Jersey | I32: Automne-Hiver 2018 | J32: Tiger | K32: 2 | L32: 85 | M32: 170
A33: High Defintion Photos Upon Request | C33: L86M15238F03.34.6A | D33: 3601456461093 | E33: 6A | F33: R.Kids | G33: R.Kid | H33: Jersey | I33: Automne-Hiver 2018 | J33: Tiger | K33: 6 | L33: 85 | M33: 510
A34: High Defintion Photos Upon Request | C34: L86M15238F03.34.8A | D34: 3601456461109 | E34: 8A | F34: R.Kids | G34: R.Kid | H34: Jersey | I34: Automne-Hiver 2018 | J34: Tiger | K34: 6 | L34: 95 | M34: 570
A35: High Defintion Photos Upon Request | B35: L95N10148F03.93 | C35: L95N10148F03.93.10A | D35: 3601456516380 | E35: 10A | F35: R.Kids | G35: R.Kid | H35: Jersey | I35: Printemps-Ete 2019 | J35: Tiger | K35: 2 | L35: 50 | M35: 100
A36: High Defintion Photos Upon Request | C36: L95N10148F03.93.3A | D36: 3601456516342 | E36: 3A | F36: R.Kids | G36: R.Kid | H36: Jersey | I36: Printemps-Ete 2019 | J36: Tiger | K36: 1 | L36: 45 | M36: 45
A37: High Defintion Photos Upon Request | C37: L95N10148F03.93.8A | D37: 3601456516373 | E37: 8A | F37: R.Kids | G37: R.Kid | H37: Jersey | I37: Printemps-Ete 2019 | J37: Tiger | K37: 4 | L37: 50 | M37: 200
A38: High Defintion Photos Upon Request | B38: L95N10168F03.01 | C38: L95N10168F03.01.6A | D38: 3601456497870 | E38: 6A | F38: R.Kids | G38: R.Kid | H38: Jersey | I38: Printemps-Ete 2019 | J38: Tiger | K38: 3 | L38: 45 | M38: 135
A39: High Defintion Photos Upon Request | B39: L95N15098F03.01 | C39: L95N15098F03.01.8A | D39: 3601456526501 | E39: 8A | F39: R.Kids | G39: R.Kid | H39: Jersey | I39: Printemps-Ete 2019 | J39: Other Tigers | K39: 2 | L39: 135 | M39: 270
A40: High Defintion Photos Upon Request | B40: L95N15198F02.26 | C40: L95N15198F02.26.10A | D40: 3601456527874 | E40: 10A | F40: R.Kids | G40: R.Kid | H40: Jersey | I40: Printemps-Ete 2019 | J40: Other Tigers | K40: 1 | L40: 135 | M40: 135
A41: High Defintion Photos Upon Request | C41: L95N15198F02.26.3A | D41: 3601456527836 | E41: 3A | F41: R.Kids | G41: R.Kid | H41: Jersey | I41: Printemps-Ete 2019 | J41: Other Tigers | K41: 1 | L41: 120 | M41: 120
A42: High Defintion Photos Upon Request | B42: L95N15668G03.96 | C42: L95N15668G03.96.8A | D42: 3601456527249 | E42: 8A | F42: R.Kids | G42: R.Kid | H42: Jersey | I42: Printemps-Ete 2019 | J42: Other Tigers | K42: 1 | L42: 135 | M42: 135
A43: High Defintion Photos Upon Request | B43: L95N15698G03.76 | C43: L95N15698G03.76.6A | D43: 3601456497160 | E43: 6A | F43: R.Kids | G43: R.Kid | H43: Jersey | I43: Printemps-Ete 2019 | J43: Tiger | K43: 1 | L43: 85 | M43: 85
A44: High Defintion Photos Upon Request | B44: L95N22508G02.67 | C44: L95N22508G02.67.8A | D44: 3601456534773 | E44: 8A | F44: R.Kids | G44: R.Kid | H44: Woven | I44: Printemps-Ete 2019 | J44: - | K44: 1 | L44: 95 | M44: 95
A45: High Defintion Photos Upon Request | B45: L95Z10738G03.01A | C45: L95Z10738G03.01A.2A | D45: 3601456510579 | E45: 2A | F45: R.Kids | G45: R.Kid | H45: Jersey | I45: Printemps-Ete 2019 | J45: Tiger | K45: 4 | L45: 45 | M45: 180
A46: High Defintion Photos Upon Request | B46: L95Z30168F03.32 | C46: L95Z30168F03.32.12M | D46: 3601456537651 | E46: 12M | F46: R.Kids | G46: R.Kid | H46: Woven | I46: Printemps-Ete 2019 | J46: Other Tigers | K46: 2 | L46: 120 | M46: 240
A47: High Defintion Photos Upon Request | C47: L95Z30168F03.32.18M | D47: 3601456537668 | E47: 18M | F47: R.Kids | G47: R.Kid | H47: Woven | I47: Printemps-Ete 2019 | J47: Other Tigers | K47: 1 | L47: 120 | M47: 120
A48: High Defintion Photos Upon Request | C48: L95Z30168F03.32.6M | D48: 3601456507463 | E48: 6M | F48: R.Kids | G48: R.Kid | H48: Woven | I48: Printemps-Ete 2019 | J48: Other Tigers | K48: 1 | L48: 120 | M48: 120
A49: High Defintion Photos Upon Request | C49: L95Z30168F03.32.9M | D49: 3601456537644 | E49: 9M | F49: R.Kids | G49: R.Kid | H49: Woven | I49: Printemps-Ete 2019 | J49: Other Tigers | K49: 1 | L49: 120 | M49: 120
A50: High Defintion Photos Upon Request | B50: L96P10248F03.01 | C50: L96P10248F03.01.4A | D50: 3601456585119 | E50: 4A | F50: R.Kids | G50: R.Kid | H50: Jersey | I50: Automne-Hiver 2019 | J50: Tiger | K50: 2 | L50: 45 | M50: 90
A51: High Defintion Photos Upon Request | C51: L96P10248F03.01.6A | D51: 3601456563834 | E51: 6A | F51: R.Kids | G51: R.Kid | H51: Jersey | I51: Automne-Hiver 2019 | J51: Tiger | K51: 5 | L51: 45 | M51: 225
A52: High Defintion Photos Upon Request | C52: L96P10248F03.01.8A | D52: 3601456585133 | E52: 8A | F52: R.Kids | G52: R.Kid | H52: Jersey | I52: Automne-Hiver 2019 | J52: Tiger | K52: 4 | L52: 50 | M52: 200
A53: High Defintion Photos Upon Request | B53: L96P10688G03.55 | C53: L96P10688G03.55.4A | D53: 3601456587458 | E53: 4A | F53: R.Kids | G53: R.Kid | H53: Jersey | I53: Automne-Hiver 2019 | J53: Tiger | K53: 1 | L53: 45 | M53: 45
A54: High Defintion Photos Upon Request | B54: L96P15128F03.21 | C54: L96P15128F03.21.10A | D54: 3601456579828 | E54: 10A | F54: R.Kids | G54: R.Kid | H54: Jersey | I54: Automne-Hiver 2019 | J54: Other Tigers | K54: 1 | L54: 135 | M54: 135
A55: High Defintion Photos Upon Request | C55: L96P15128F03.21.6A | D55: 3601456563872 | E55: 6A | F55: R.Kids | G55: R.Kid | H55: Jersey | I55: Automne-Hiver 2019 | J55: Other Tigers | K55: 2 | L55: 120 | M55: 240
A56: High Defintion Photos Upon Request | C56: L96P15128F03.21.8A | D56: 3601456579811 | E56: 8A | F56: R.Kids | G56: R.Kid | H56: Jersey | I56: Automne-Hiver 2019 | J56: Other Tigers | K56: 2 | L56: 135 | M56: 270
A57: High Defintion Photos Upon Request | B57: L96P15138F03.99 | C57: L96P15138F03.99.4A | D57: 3601456579910 | E57: 4A | F57: R.Kids | G57: R.Kid | H57: Jersey | I57: Automne-Hiver 2019 | J57: Other Tigers | K57: 1 | L57: 135 | M57: 135
A58: High Defintion Photos Upon Request | C58: L96P15138F03.99.8A | D58: 3601456579934 | E58: 8A | F58: R.Kids | G58: R.Kid | H58: Jersey | I58: Automne-Hiver 2019 | J58: Other Tigers | K58: 1 | L58: 145 | M58: 145
A59: High Defintion Photos Upon Request | B59: L96P15178F03.96 | C59: L96P15178F03.96.10A | D59: 3601456571259 | E59: 10A | F59: R.Kids | G59: R.Kid | H59: Jersey | I59: Automne-Hiver 2019 | J59: Tiger | K59: 11 | L59: 95 | M59: 1045
A60: High Defintion Photos Upon Request | C60: L96P15178F03.96.4A | D60: 3601456571228 | E60: 4A | F60: R.Kids | G60: R.Kid | H60: Jersey | I60: Automne-Hiver 2019 | J60: Tiger | K60: 5 | L60: 85 | M60: 425
A61: High Defintion Photos Upon Request | C61: L96P15178F03.96.5A | D61: 3601456571235 | E61: 5A | F61: R.Kids | G61: R.Kid | H61: Jersey | I61: Automne-Hiver 2019 | J61: Tiger | K61: 1 | L61: 85 | M61: 85
A62: High Defintion Photos Upon Request | C62: L96P15178F03.96.6A | D62: 3601456560598 | E62: 6A | F62: R.Kids | G62: R.Kid | H62: Jersey | I62: Automne-Hiver 2019 | J62: Tiger | K62: 7 | L62: 85 | M62: 595
A63: High Defintion Photos Upon Request | C63: L96P15178F03.96.8A | D63: 3601456571242 | E63: 8A | F63: R.Kids | G63: R.Kid | H63: Jersey | I63: Automne-Hiver 2019 | J63: Tiger | K63: 4 | L63: 95 | M63: 380
A64: High Defintion Photos Upon Request | B64: L96P15188F03.34 | C64: L96P15188F03.34.10A | D64: 3601456580107 | E64: 10A | F64: R.Kids | G64: R.Kid | H64: Jersey | I64: Automne-Hiver 2019 | J64: Tiger | K64: 8 | L64: 95 | M64: 760
A65: High Defintion Photos Upon Request | C65: L96P15188F03.34.4A | D65: 3601456580077 | E65: 4A | F65: R.Kids | G65: R.Kid | H65: Jersey | I65: Automne-Hiver 2019 | J65: Tiger | K65: 4 | L65: 85 | M65: 340
A66: High Defintion Photos Upon Request | C66: L96P15188F03.34.6A | D66: 3601456560604 | E66: 6A | F66: R.Kids | G66: R.Kid | H66: Jersey | I66: Automne-Hiver 2019 | J66: Tiger | K66: 4 | L66: 85 | M66: 340
A67: High Defintion Photos Upon Request | C67: L96P15188F03.34.8A | D67: 3601456580091 | E67: 8A | F67: R.Kids | G67: R.Kid | H67: Jersey | I67: Automne-Hiver 2019 | J67: Tiger | K67: 9 | L67: 95 | M67: =+K67*L67 -> 855
A68: High Defintion Photos Upon Request | B68: L96P15638G03.55 | C68: L96P15638G03.55.6A | D68: 3601456564695 | E68: 6A | F68: R.Kids | G68: R.Kid | H68: Jersey | I68: Automne-Hiver 2019 | J68: Tiger | K68: 1 | L68: 85 | M68: 85
A69: High Defintion Photos Upon Request | C69: L96P15638G03.55.8A | D69: 3601456580688 | E69: 8A | F69: R.Kids | G69: R.Kid | H69: Jersey | I69: Automne-Hiver 2019 | J69: Tiger | K69: 2 | L69: 95 | M69: 190
A70: High Defintion Photos Upon Request | B70: L96P15678G03.76 | C70: L96P15678G03.76.8A | D70: 3601456648838 | E70: 8A | F70: R.Kids | G70: R.Kid | H70: Jersey | I70: Automne-Hiver 2019 | J70: Tiger | K70: 2 | L70: 95 | M70: 190
A71: High Defintion Photos Upon Request | B71: L96P30328F02.99 | C71: L96P30328F02.99.10A | D71: 3601456657731 | E71: 10A | F71: R.Kids | G71: R.Kid | H71: Knitwear | I71: Automne-Hiver 2019 | J71: Tiger | K71: 2 | L71: 160 | M71: 320
A72: High Defintion Photos Upon Request | C72: L96P30328F02.99.12A | D72: 3601456657748 | E72: 12A | F72: R.Kids | G72: R.Kid | H72: Knitwear | I72: Automne-Hiver 2019 | J72: Tiger | K72: 1 | L72: 160 | M72: 160
A73: High Defintion Photos Upon Request | C73: L96P30328F02.99.4A | D73: 3601456657700 | E73: 4A | F73: R.Kids | G73: R.Kid | H73: Knitwear | I73: Automne-Hiver 2019 | J73: Tiger | K73: 2 | L73: 145 | M73: 290
A74: High Defintion Photos Upon Request | C74: L96P30328F02.99.5A | D74: 3601456657717 | E74: 5A | F74: R.Kids | G74: R.Kid | H74: Knitwear | I74: Automne-Hiver 2019 | J74: Tiger | K74: 1 | L74: 145 | M74: 145
A75: High Defintion Photos Upon Request | C75: L96P30328F02.99.6A | D75: 3601456653801 | E75: 6A | F75: R.Kids | G75: R.Kid | H75: Knitwear | I75: Automne-Hiver 2019 | J75: Tiger | K75: 1 | L75: 145 | M75: 145
A76: High Defintion Photos Upon Request | C76: L96P30328F02.99.8A | D76: 3601456657724 | E76: 8A | F76: R.Kids | G76: R.Kid | H76: Knitwear | I76: Automne-Hiver 2019 | J76: Tiger | K76: 1 | L76: 160 | M76: 160
A77: High Defintion Photos Upon Request | B77: L96Z15118F01.32 | C77: L96Z15118F01.32.12M | D77: 3601456564374 | E77: 12M | F77: R.Kids | G77: R.Kid | H77: Jersey | I77: Automne-Hiver 2019 | J77: Tiger | K77: 3 | L77: 75 | M77: 225
A78: High Defintion Photos Upon Request | C78: L96Z15118F01.32.9M | D78: 3601456564367 | E78: 9M | F78: R.Kids | G78: R.Kid | H78: Jersey | I78: Automne-Hiver 2019 | J78: Tiger | K78: 3 | L78: 75 | M78: 225
A79: High Defintion Photos Upon Request | B79: LA5Q10028F02.01 | C79: LA5Q10028F02.01.10A | D79: 3601456706705 | E79: 10A | F79: R.Kids | G79: R.Kid | H79: Knitwear | I79: Printemps-Ete 2020 | J79: - | K79: 7 | L79: 85 | M79: 595
A80: High Defintion Photos Upon Request | C80: LA5Q10028F02.01.6A | D80: 3601456658882 | E80: 6A | F80: R.Kids | G80: R.Kid | H80: Knitwear | I80: Printemps-Ete 2020 | J80: - | K80: 43 | L80: 75 | M80: 3225
A81: High Defintion Photos Upon Request | C81: LA5Q10028F02.01.8A | D81: 3601456706699 | E81: 8A | F81: R.Kids | G81: R.Kid | H81: Knitwear | I81: Printemps-Ete 2020 | J81: - | K81: 22 | L81: 85 | M81: 1870
A82: High Defintion Photos Upon Request | B82: LA5Q10198F03.39 | C82: LA5Q10198F03.39.10A | D82: 3601456676237 | E82: 10A | F82: R.Kids | G82: R.Kid | H82: Jersey | I82: Printemps-Ete 2020 | J82: Tiger | K82: 2 | L82: 50 | M82: 100
A83: High Defintion Photos Upon Request | C83: LA5Q10198F03.39.4A | D83: 3601456676206 | E83: 4A | F83: R.Kids | G83: R.Kid | H83: Jersey | I83: Printemps-Ete 2020 | J83: Tiger | K83: 2 | L83: 45 | M83: 90
A84: High Defintion Photos Upon Request | C84: LA5Q10198F03.39.5A | D84: 3601456676213 | E84: 5A | F84: R.Kids | G84: R.Kid | H84: Jersey | I84: Printemps-Ete 2020 | J84: Tiger | K84: 1 | L84: 45 | M84: 45
A85: High Defintion Photos Upon Request | C85: LA5Q10198F03.39.6A | D85: 3601456658608 | E85: 6A | F85: R.Kids | G85: R.Kid | H85: Jersey | I85: Printemps-Ete 2020 | J85: Tiger | K85: 2 | L85: 45 | M85: 90
A86: High Defintion Photos Upon Request | B86: LA5Q10218F03.29 | C86: LA5Q10218F03.29.6A | D86: 3601456676374 | E86: 6A | F86: R.Kids | G86: R.Kid | H86: Knitwear | I86: Printemps-Ete 2020 | J86: Other Tigers | K86: 9 | L86: 75 | M86: 675
A87: High Defintion Photos Upon Request | B87: LA5Q10258F03.01 | C87: LA5Q10258F03.01.10A | D87: 3601456708334 | E87: 10A | F87: R.Kids | G87: R.Kid | H87: Jersey | I87: Printemps-Ete 2020 | J87: Tiger | K87: 18 | L87: 50 | M87: 900
A88: High Defintion Photos Upon Request | C88: LA5Q10258F03.01.4A | D88: 3601456708303 | E88: 4A | F88: R.Kids | G88: R.Kid | H88: Jersey | I88: Printemps-Ete 2020 | J88: Tiger | K88: 4 | L88: 45 | M88: 180
A89: High Defintion Photos Upon Request | C89: LA5Q10258F03.01.6A | D89: 3601456658479 | E89: 6A | F89: R.Kids | G89: R.Kid | H89: Jersey | I89: Printemps-Ete 2020 | J89: Tiger | K89: 24 | L89: 45 | M89: 1080
A90: High Defintion Photos Upon Request | C90: LA5Q10258F03.01.8A | D90: 3601456708327 | E90: 8A | F90: R.Kids | G90: R.Kid | H90: Jersey | I90: Printemps-Ete 2020 | J90: Tiger | K90: 28 | L90: 50 | M90: 1400
A91: High Defintion Photos Upon Request | B91: LA5Q10658G03.58 | C91: LA5Q10658G03.58.4A | D91: 3601456709409 | E91: 4A | F91: R.Kids | G91: R.Kid | H91: Jersey | I91: Printemps-Ete 2020 | J91: Tiger | K91: 2 | L91: 45 | M91: 90
A92: High Defintion Photos Upon Request | C92: LA5Q10658G03.58.5A | D92: 3601456709416 | E92: 5A | F92: R.Kids | G92: R.Kid | H92: Jersey | I92: Printemps-Ete 2020 | J92: Tiger | K92: 2 | L92: 45 | M92: 90
A93: High Defintion Photos Upon Request | B93: LA5Q11558G02.71 | C93: LA5Q11558G02.71.10A | D93: 3601456710122 | E93: 10A | F93: R.Kids | G93: R.Kid | H93: Jersey | I93: Printemps-Ete 2020 | J93: Tiger | K93: 1 | L93: 80 | M93: 80
A94: High Defintion Photos Upon Request | C94: LA5Q11558G02.71.12A | D94: 3601456710139 | E94: 12A | F94: R.Kids | G94: R.Kid | H94: Jersey | I94: Printemps-Ete 2020 | J94: Tiger | K94: 1 | L94: 80 | M94: 80
A95: High Defintion Photos Upon Request | C95: LA5Q11558G02.71.8A | D95: 3601456710115 | E95: 8A | F95: R.Kids | G95: R.Kid | H95: Jersey | I95: Printemps-Ete 2020 | J95: Tiger | K95: 1 | L95: 80 | M95: 80
A96: High Defintion Photos Upon Request | B96: LA5Q11568G02.76 | C96: LA5Q11568G02.76.8A | D96: 3601456682221 | E96: 8A | F96: R.Kids | G96: R.Kid | H96: Jersey | I96: Printemps-Ete 2020 | J96: Tiger | K96: 8 | L96: 80 | M96: 640
A97: High Defintion Photos Upon Request | B97: LA5Q15138F03.29 | C97: LA5Q15138F03.29.4A | D97: 3601456685161 | E97: 4A | F97: R.Kids | G97: R.Kid | H97: Knitwear | I97: Printemps-Ete 2020 | J97: Other Tigers | K97: 4 | L97: 120 | M97: 480
A98: High Defintion Photos Upon Request | C98: LA5Q15138F03.29.8A | D98: 3601456685192 | E98: 8A | F98: R.Kids | G98: R.Kid | H98: Knitwear | I98: Printemps-Ete 2020 | J98: Other Tigers | K98: 8 | L98: 135 | M98: 1080
A99: High Defintion Photos Upon Request | B99: LA5Q15188F03.34 | C99: LA5Q15188F03.34.10A | D99: 3601456685383 | E99: 10A | F99: R.Kids | G99: R.Kid | H99: Jersey | I99: Printemps-Ete 2020 | J99: Tiger | K99: 17 | L99: 95 | M99: 1615
A100: High Defintion Photos Upon Request | C100: LA5Q15188F03.34.4A | D100: 3601456685345 | E100: 4A | F100: R.Kids | G100: R.Kid | H100: Jersey | I100: Printemps-Ete 2020 | J100: Tiger | K100: 8 | L100: 85 | M100: 680
A101: High Defintion Photos Upon Request | C101: LA5Q15188F03.34.6A | D101: 3601456685369 | E101: 6A | F101: R.Kids | G101: R.Kid | H101: Jersey | I101: Printemps-Ete 2020 | J101: Tiger | K101: 11 | L101: 85 | M101: 935
A102: High Defintion Photos Upon Request | C102: LA5Q15188F03.34.8A | D102: 3601456685376 | E102: 8A | F102: R.Kids | G102: R.Kid | H102: Jersey | I102: Printemps-Ete 2020 | J102: Tiger | K102: 16 | L102: 95 | M102: 1520
A103: High Defintion Photos Upon Request | B103: LA5Q15618G02.93 | C103: LA5Q15618G02.93.12A | D103: 3601456671089 | E103: 12A | F103: R.Kids | G103: R.Kid | H103: Knitwear | I103: Printemps-Ete 2020 | J103: - | K103: 1 | L103: 120 | M103: 120
A104: High Defintion Photos Upon Request | B104: LA5Q15628G03.58 | C104: LA5Q15628G03.58.5A | D104: 3601456711730 | E104: 5A | F104: R.Kids | G104: R.Kid | H104: Jersey | I104: Printemps-Ete 2020 | J104: Tiger | K104: 1 | L104: 85 | M104: 85
A105: High Defintion Photos Upon Request | C105: LA5Q15628G03.58.8A | D105: 3601456711747 | E105: 8A | F105: R.Kids | G105: R.Kid | H105: Jersey | I105: Printemps-Ete 2020 | J105: Tiger | K105: 1 | L105: 95 | M105: 95
A106: High Defintion Photos Upon Request | B106: LA5Q15678G03.76 | C106: LA5Q15678G03.76.10A | D106: 3601456712096 | E106: 10A | F106: R.Kids | G106: R.Kid | H106: Jersey | I106: Printemps-Ete 2020 | J106: Tiger | K106: 1 | L106: 95 | M106: 95
A107: High Defintion Photos Upon Request | B107: LA5Q17048F02.17 | C107: LA5Q17048F02.17.10A | D107: 3601456712591 | E107: 10A | F107: R.Kids | G107: R.Kid | H107: Woven | I107: Printemps-Ete 2020 | J107: - | K107: 2 | L107: 135 | M107: 270
A108: High Defintion Photos Upon Request | C108: LA5Q17048F02.17.12A | D108: 3601456712607 | E108: 12A | F108: R.Kids | G108: R.Kid | H108: Woven | I108: Printemps-Ete 2020 | J108: - | K108: 3 | L108: 135 | M108: 405
A109: High Defintion Photos Upon Request | B109: LA5Q22008F02.01 | C109: LA5Q22008F02.01.10A | D109: 3601456683662 | E109: 10A | F109: R.Kids | G109: R.Kid | H109: Woven | I109: Printemps-Ete 2020 | J109: - | K109: 4 | L109: 145 | M109: 580
A110: High Defintion Photos Upon Request | C110: LA5Q22008F02.01.12A | D110: 3601456683679 | E110: 12A | F110: R.Kids | G110: R.Kid | H110: Woven | I110: Printemps-Ete 2020 | J110: - | K110: 1 | L110: 145 | M110: 145
A111: High Defintion Photos Upon Request | C111: LA5Q22008F02.01.3A | D111: 3601456683617 | E111: 3A | F111: R.Kids | G111: R.Kid | H111: Woven | I111: Printemps-Ete 2020 | J111: - | K111: 1 | L111: 135 | M111: 135
A112: High Defintion Photos Upon Request | C112: LA5Q22008F02.01.5A | D112: 3601456683631 | E112: 5A | F112: R.Kids | G112: R.Kid | H112: Woven | I112: Printemps-Ete 2020 | J112: - | K112: 3 | L112: 135 | M112: 405
A113: High Defintion Photos Upon Request | C113: LA5Q22008F02.01.6A | D113: 3601456683648 | E113: 6A | F113: R.Kids | G113: R.Kid | H113: Woven | I113: Printemps-Ete 2020 | J113: - | K113: 7 | L113: 135 | M113: 945
A114: High Defintion Photos Upon Request | C114: LA5Q22008F02.01.8A | D114: 3601456683655 | E114: 8A | F114: R.Kids | G114: R.Kid | H114: Woven | I114: Printemps-Ete 2020 | J114: - | K114: 4 | L114: 145 | M114: 580
A115: High Defintion Photos Upon Request | B115: LA5Q25518G02.40 | C115: LA5Q25518G02.40.10A | D115: 3601456714205 | E115: 10A | F115: R.Kids | G115: R.Kid | H115: Knitwear | I115: Printemps-Ete 2020 | J115: - | K115: 2 | L115: 85 | M115: 170
A116: High Defintion Photos Upon Request | C116: LA5Q25518G02.40.6A | D116: 3601456710450 | E116: 6A | F116: R.Kids | G116: R.Kid | H116: Knitwear | I116: Printemps-Ete 2020 | J116: - | K116: 3 | L116: 75 | M116: 225
A117: High Defintion Photos Upon Request | C117: LA5Q25518G02.40.8A | D117: 3601456714199 | E117: 8A | F117: R.Kids | G117: R.Kid | H117: Knitwear | I117: Printemps-Ete 2020 | J117: - | K117: 3 | L117: 85 | M117: 255
A118: High Defintion Photos Upon Request | B118: LA5Q26008F02.29 | C118: LA5Q26008F02.29.10A | D118: 3601456687479 | E118: 10A | F118: R.Kids | G118: R.Kid | H118: Woven | I118: Printemps-Ete 2020 | J118: - | K118: 5 | L118: 90 | M118: 450
A119: High Defintion Photos Upon Request | C119: LA5Q26008F02.29.12A | D119: 3601456687486 | E119: 12A | F119: R.Kids | G119: R.Kid | H119: Woven | I119: Printemps-Ete 2020 | J119: - | K119: 5 | L119: 90 | M119: 450
A120: High Defintion Photos Upon Request | C120: LA5Q26008F02.29.4A | D120: 3601456687431 | E120: 4A | F120: R.Kids | G120: R.Kid | H120: Woven | I120: Printemps-Ete 2020 | J120: - | K120: 4 | L120: 80 | M120: 320
A121: High Defintion Photos Upon Request | C121: LA5Q26008F02.29.6A | D121: 3601456687455 | E121: 6A | F121: R.Kids | G121: R.Kid | H121: Woven | I121: Printemps-Ete 2020 | J121: - | K121: 3 | L121: 80 | M121: 240
A122: High Defintion Photos Upon Request | C122: LA5Q26008F02.29.8A | D122: 3601456687462 | E122: 8A | F122: R.Kids | G122: R.Kid | H122: Woven | I122: Printemps-Ete 2020 | J122: - | K122: 1 | L122: 90 | M122: 90
A123: High Defintion Photos Upon Request | B123: LA5Q30008F02.29 | C123: LA5Q30008F02.29.10A | D123: 3601456715011 | E123: 10A | F123: R.Kids | G123: R.Kid | H123: Knitwear | I123: Printemps-Ete 2020 | J123: - | K123: 4 | L123: 100 | M123: 400
A124: High Defintion Photos Upon Request | C124: LA5Q30008F02.29.12A | D124: 3601456715028 | E124: 12A | F124: R.Kids | G124: R.Kid | H124: Knitwear | I124: Printemps-Ete 2020 | J124: - | K124: 4 | L124: 100 | M124: 400
A125: High Defintion Photos Upon Request | C125: LA5Q30008F02.29.4A | D125: 3601456714984 | E125: 4A | F125: R.Kids | G125: R.Kid | H125: Knitwear | I125: Printemps-Ete 2020 | J125: - | K125: 4 | L125: 90 | M125: 360
A126: High Defintion Photos Upon Request | C126: LA5Q30008F02.29.6A | D126: 3601456678767 | E126: 6A | F126: R.Kids | G126: R.Kid | H126: Knitwear | I126: Printemps-Ete 2020 | J126: - | K126: 4 | L126: 90 | M126: 360
A127: High Defintion Photos Upon Request | C127: LA5Q30008F02.29.8A | D127: 3601456715004 | E127: 8A | F127: R.Kids | G127: R.Kid | H127: Knitwear | I127: Printemps-Ete 2020 | J127: - | K127: 5 | L127: 100 | M127: 500
A128: High Defintion Photos Upon Request | B128: LA5Q30198F02.99 | C128: LA5Q30198F02.99.10A | D128: 3601456666603 | E128: 10A | F128: R.Kids | G128: R.Kid | H128: Knitwear | I128: Printemps-Ete 2020 | J128: - | K128: 6 | L128: 100 | M128: 600
A129: High Defintion Photos Upon Request | C129: LA5Q30198F02.99.6A | D129: 3601456666580 | E129: 6A | F129: R.Kids | G129: R.Kid | H129: Knitwear | I129: Printemps-Ete 2020 | J129: - | K129: 4 | L129: 90 | M129: 360
A130: High Defintion Photos Upon Request | C130: LA5Q30198F02.99.8A | D130: 3601456666597 | E130: 8A | F130: R.Kids | G130: R.Kid | H130: Knitwear | I130: Printemps-Ete 2020 | J130: - | K130: 7 | L130: 100 | M130: 700
A131: High Defintion Photos Upon Request | B131: LA5Q30228F03.29 | C131: LA5Q30228F03.29.10A | D131: 3601456688162 | E131: 10A | F131: R.Kids | G131: R.Kid | H131: Knitwear | I131: Printemps-Ete 2020 | J131: Other Tigers | K131: 3 | L131: 145 | M131: =+K131*L131 -> 435
A132: High Defintion Photos Upon Request | C132: LA5Q30228F03.29.4A | D132: 3601456688124 | E132: 4A | F132: R.Kids | G132: R.Kid | H132: Knitwear | I132: Printemps-Ete 2020 | J132: Other Tigers | K132: 6 | L132: 135 | M132: 810
A133: High Defintion Photos Upon Request | C133: LA5Q30228F03.29.6A | D133: 3601456688148 | E133: 6A | F133: R.Kids | G133: R.Kid | H133: Knitwear | I133: Printemps-Ete 2020 | J133: Other Tigers | K133: 7 | L133: 135 | M133: 945
A134: High Defintion Photos Upon Request | C134: LA5Q30228F03.29.8A | D134: 3601456688155 | E134: 8A | F134: R.Kids | G134: R.Kid | H134: Knitwear | I134: Printemps-Ete 2020 | J134: Other Tigers | K134: 5 | L134: 145 | M134: 725
A135: High Defintion Photos Upon Request | B135: LA5Q33018F03.70 | C135: LA5Q33018F03.70.10A | D135: 3601456692480 | E135: 10A | F135: R.Kids | G135: R.Kid | H135: Jersey | I135: Printemps-Ete 2020 | J135: Tiger | K135: 2 | L135: 135 | M135: 270
A136: High Defintion Photos Upon Request | C136: LA5Q33018F03.70.12A | D136: 3601456692497 | E136: 12A | F136: R.Kids | G136: R.Kid | H136: Jersey | I136: Printemps-Ete 2020 | J136: Tiger | K136: 1 | L136: 135 | M136: 135
A137: High Defintion Photos Upon Request | C137: LA5Q33018F03.70.3A | D137: 3601456692442 | E137: 3A | F137: R.Kids | G137: R.Kid | H137: Jersey | I137: Printemps-Ete 2020 | J137: Tiger | K137: 2 | L137: 120 | M137: 240
A138: High Defintion Photos Upon Request | C138: LA5Q33018F03.70.4A | D138: 3601456692459 | E138: 4A | F138: R.Kids | G138: R.Kid | H138: Jersey | I138: Printemps-Ete 2020 | J138: Tiger | K138: 3 | L138: 120 | M138: 360
A139: High Defintion Photos Upon Request | C139: LA5Q33018F03.70.5A | D139: 3601456692466 | E139: 5A | F139: R.Kids | G139: R.Kid | H139: Jersey | I139: Printemps-Ete 2020 | J139: Tiger | K139: 2 | L139: 120 | M139: 240
A140: High Defintion Photos Upon Request | C140: LA5Q33018F03.70.6A | D140: 3601456667648 | E140: 6A | F140: R.Kids | G140: R.Kid | H140: Jersey | I140: Printemps-Ete 2020 | J140: Tiger | K140: 3 | L140: 120 | M140: 360
A141: High Defintion Photos Upon Request | C141: LA5Q33018F03.70.8A | D141: 3601456692473 | E141: 8A | F141: R.Kids | G141: R.Kid | H141: Jersey | I141: Printemps-Ete 2020 | J141: Tiger | K141: 1 | L141: 135 | M141: 135
A142: High Defintion Photos Upon Request | B142: LA5Z15178F01.96 | C142: LA5Z15178F01.96.12M | D142: 3601456693500 | E142: 12M | F142: R.Kids | G142: R.Kid | H142: Jersey | I142: Printemps-Ete 2020 | J142: Tiger | K142: 7 | L142: 75 | M142: 525
A143: High Defintion Photos Upon Request | C143: LA5Z15178F01.96.18M | D143: 3601456693517 | E143: 18M | F143: R.Kids | G143: R.Kid | H143: Jersey | I143: Printemps-Ete 2020 | J143: Tiger | K143: 3 | L143: 75 | M143: 225
A144: High Defintion Photos Upon Request | C144: LA5Z15178F01.96.2A | D144: 3601456693524 | E144: 2A | F144: R.Kids | G144: R.Kid | H144: Jersey | I144: Printemps-Ete 2020 | J144: Tiger | K144: 2 | L144: 85 | M144: 170
A145: High Defintion Photos Upon Request | C145: LA5Z15178F01.96.6M | D145: 3601456671331 | E145: 6M | F145: R.Kids | G145: R.Kid | H145: Jersey | I145: Printemps-Ete 2020 | J145: Tiger | K145: 5 | L145: 75 | M145: 375
A146: High Defintion Photos Upon Request | C146: LA5Z15178F01.96.9M | D146: 3601456693494 | E146: 9M | F146: R.Kids | G146: R.Kid | H146: Jersey | I146: Printemps-Ete 2020 | J146: Tiger | K146: 3 | L146: 75 | M146: 225
A147: High Defintion Photos Upon Request | B147: LA5Z15678G01.76 | C147: LA5Z15678G01.76.12M | D147: 3601456712133 | E147: 12M | F147: R.Kids | G147: R.Kid | H147: Jersey | I147: Printemps-Ete 2020 | J147: Tiger | K147: 9 | L147: 75 | M147: 675
A148: High Defintion Photos Upon Request | C148: LA5Z15678G01.76.18M | D148: 3601456712140 | E148: 18M | F148: R.Kids | G148: R.Kid | H148: Jersey | I148: Printemps-Ete 2020 | J148: Tiger | K148: 6 | L148: 75 | M148: 450
A149: High Defintion Photos Upon Request | C149: LA5Z15678G01.76.2A | D149: 3601456712157 | E149: 2A | F149: R.Kids | G149: R.Kid | H149: Jersey | I149: Printemps-Ete 2020 | J149: Tiger | K149: 3 | L149: 85 | M149: 255
A150: High Defintion Photos Upon Request | C150: LA5Z15678G01.76.6M | D150: 3601456675506 | E150: 6M | F150: R.Kids | G150: R.Kid | H150: Jersey | I150: Printemps-Ete 2020 | J150: Tiger | K150: 5 | L150: 75 | M150: 375
A151: High Defintion Photos Upon Request | C151: LA5Z15678G01.76.9M | D151: 3601456712126 | E151: 9M | F151: R.Kids | G151: R.Kid | H151: Jersey | I151: Printemps-Ete 2020 | J151: Tiger | K151: 5 | L151: 75 | M151: 375
A152: High Defintion Photos Upon Request | B152: LA6R10048F02.01 | C152: LA6R10048F02.01.10A | D152: 3601456735316 | E152: 10A | F152: R.Kids | G152: R.Kid | H152: Knitwear | I152: Automne-Hiver 2020 | J152: - | K152: 12 | L152: 60 | M152: 720
A153: High Defintion Photos Upon Request | C153: LA6R10048F02.01.12A | D153: 3601456735323 | E153: 12A | F153: R.Kids | G153: R.Kid | H153: Knitwear | I153: Automne-Hiver 2020 | J153: - | K153: 12 | L153: 60 | M153: 720
A154: High Defintion Photos Upon Request | C154: LA6R10048F02.01.4A | D154: 3601456735279 | E154: 4A | F154: R.Kids | G154: R.Kid | H154: Knitwear | I154: Automne-Hiver 2020 | J154: - | K154: 12 | L154: 55 | M154: 660
A155: High Defintion Photos Upon Request | C155: LA6R10048F02.01.6A | D155: 3601456735293 | E155: 6A | F155: R.Kids | G155: R.Kid | H155: Knitwear | I155: Automne-Hiver 2020 | J155: - | K155: 17 | L155: 55 | M155: 935
A156: High Defintion Photos Upon Request | C156: LA6R10048F02.01.8A | D156: 3601456735309 | E156: 8A | F156: R.Kids | G156: R.Kid | H156: Knitwear | I156: Automne-Hiver 2020 | J156: - | K156: 12 | L156: 60 | M156: 720
A157: High Defintion Photos Upon Request | B157: LA6R10098F02.32 | C157: LA6R10098F02.32.4A | D157: 3601456755956 | E157: 4A | F157: R.Kids | G157: R.Kid | H157: Knitwear | I157: Automne-Hiver 2020 | J157: - | K157: 1 | L157: 60 | M157: 60
A158: High Defintion Photos Upon Request | C158: LA6R10098F02.32.8A | D158: 3601456755970 | E158: 8A | F158: R.Kids | G158: R.Kid | H158: Knitwear | I158: Automne-Hiver 2020 | J158: - | K158: 25 | L158: 65 | M158: 1625
A159: High Defintion Photos Upon Request | B159: LA6R10198F03.32 | C159: LA6R10198F03.32.4A | D159: 3601456756397 | E159: 4A | F159: R.Kids | G159: R.Kid | H159: Knitwear | I159: Automne-Hiver 2020 | J159: Other Tigers | K159: 5 | L159: 55 | M159: 275
A160: High Defintion Photos Upon Request | C160: LA6R10198F03.32.6A | D160: 3601456736344 | E160: 6A | F160: R.Kids | G160: R.Kid | H160: Knitwear | I160: Automne-Hiver 2020 | J160: Other Tigers | K160: 1 | L160: 55 | M160: 55
A161: High Defintion Photos Upon Request | C161: LA6R10198F03.32.8A | D161: 3601456756410 | E161: 8A | F161: R.Kids | G161: R.Kid | H161: Knitwear | I161: Automne-Hiver 2020 | J161: Other Tigers | K161: 8 | L161: 60 | M161: 480
A162: High Defintion Photos Upon Request | B162: LA6R10208F03.01 | C162: LA6R10208F03.01.10A | D162: 3601456756557 | E162: 10A | F162: R.Kids | G162: R.Kid | H162: Jersey | I162: Automne-Hiver 2020 | J162: Tiger | K162: 3 | L162: 50 | M162: 150
A163: High Defintion Photos Upon Request | C163: LA6R10208F03.01.4A | D163: 3601456756526 | E163: 4A | F163: R.Kids | G163: R.Kid | H163: Jersey | I163: Automne-Hiver 2020 | J163: Tiger | K163: 7 | L163: 45 | M163: 315
A164: High Defintion Photos Upon Request | C164: LA6R10208F03.01.6A | D164: 3601456738089 | E164: 6A | F164: R.Kids | G164: R.Kid | H164: Jersey | I164: Automne-Hiver 2020 | J164: Tiger | K164: 4 | L164: 45 | M164: 180
A165: High Defintion Photos Upon Request | C165: LA6R10208F03.01.8A | D165: 3601456756540 | E165: 8A | F165: R.Kids | G165: R.Kid | H165: Jersey | I165: Automne-Hiver 2020 | J165: Tiger | K165: 15 | L165: 50 | M165: 750
A166: High Defintion Photos Upon Request | B166: LA6R10248F02.01 | C166: LA6R10248F02.01.10A | D166: 3601456756847 | E166: 10A | F166: R.Kids | G166: R.Kid | H166: Knitwear | I166: Automne-Hiver 2020 | J166: - | K166: 1 | L166: 85 | M166: 85
A167: High Defintion Photos Upon Request | C167: LA6R10248F02.01.6A | D167: 3601456736320 | E167: 6A | F167: R.Kids | G167: R.Kid | H167: Knitwear | I167: Automne-Hiver 2020 | J167: - | K167: 1 | L167: 75 | M167: 75
A168: High Defintion Photos Upon Request | C168: LA6R10248F02.01.8A | D168: 3601456756830 | E168: 8A | F168: R.Kids | G168: R.Kid | H168: Knitwear | I168: Automne-Hiver 2020 | J168: - | K168: 2 | L168: 85 | M168: 170
A169: High Defintion Photos Upon Request | B169: LA6R10538G02.01 | C169: LA6R10538G02.01.10A | D169: 3601456760035 | E169: 10A | F169: R.Kids | G169: R.Kid | H169: Knitwear | I169: Automne-Hiver 2020 | J169: - | K169: 6 | L169: 60 | M169: 360
A170: High Defintion Photos Upon Request | C170: LA6R10538G02.01.12A | D170: 3601456760004 | E170: 12A | F170: R.Kids | G170: R.Kid | H170: Knitwear | I170: Automne-Hiver 2020 | J170: - | K170: 4 | L170: 60 | M170: 240
A171: High Defintion Photos Upon Request | C171: LA6R10538G02.01.4A | D171: 3601456760073 | E171: 4A | F171: R.Kids | G171: R.Kid | H171: Knitwear | I171: Automne-Hiver 2020 | J171: - | K171: 6 | L171: 55 | M171: 330
A172: High Defintion Photos Upon Request | C172: LA6R10538G02.01.6A | D172: 3601456760028 | E172: 6A | F172: R.Kids | G172: R.Kid | H172: Knitwear | I172: Automne-Hiver 2020 | J172: - | K172: 6 | L172: 55 | M172: 330
A173: High Defintion Photos Upon Request | C173: LA6R10538G02.01.8A | D173: 3601456759992 | E173: 8A | F173: R.Kids | G173: R.Kid | H173: Knitwear | I173: Automne-Hiver 2020 | J173: - | K173: 6 | L173: 60 | M173: 360
A174: High Defintion Photos Upon Request | B174: LA6R10588G02.01 | C174: LA6R10588G02.01.10A | D174: 3601456758445 | E174: 10A | F174: R.Kids | G174: R.Kid | H174: Knitwear | I174: Automne-Hiver 2020 | J174: - | K174: 9 | L174: 65 | M174: 585
A175: High Defintion Photos Upon Request | C175: LA6R10588G02.01.12A | D175: 3601456758452 | E175: 12A | F175: R.Kids | G175: R.Kid | H175: Knitwear | I175: Automne-Hiver 2020 | J175: - | K175: 6 | L175: 65 | M175: 390
A176: High Defintion Photos Upon Request | C176: LA6R10588G02.01.4A | D176: 3601456758414 | E176: 4A | F176: R.Kids | G176: R.Kid | H176: Knitwear | I176: Automne-Hiver 2020 | J176: - | K176: 2 | L176: 60 | M176: 120
A177: High Defintion Photos Upon Request | C177: LA6R10588G02.01.6A | D177: 3601456740815 | E177: 6A | F177: R.Kids | G177: R.Kid | H177: Knitwear | I177: Automne-Hiver 2020 | J177: - | K177: 6 | L177: 60 | M177: 360
A178: High Defintion Photos Upon Request | C178: LA6R10588G02.01.8A | D178: 3601456758438 | E178: 8A | F178: R.Kids | G178: R.Kid | H178: Knitwear | I178: Automne-Hiver 2020 | J178: - | K178: 5 | L178: 65 | M178: 325
A179: High Defintion Photos Upon Request | B179: LA6R10608G02.94 | C179: LA6R10608G02.94.4A | D179: 3601456760127 | E179: 4A | F179: R.Kids | G179: R.Kid | H179: Knitwear | I179: Automne-Hiver 2020 | J179: - | K179: 6 | L179: 55 | M179: 330
A180: High Defintion Photos Upon Request | C180: LA6R10608G02.94.6A | D180: 3601456740778 | E180: 6A | F180: R.Kids | G180: R.Kid | H180: Knitwear | I180: Automne-Hiver 2020 | J180: - | K180: 7 | L180: 55 | M180: 385
A181: High Defintion Photos Upon Request | B181: LA6R10768G03.01 | C181: LA6R10768G03.01.10A | D181: 3601456759510 | E181: 10A | F181: R.Kids | G181: R.Kid | H181: Jersey | I181: Automne-Hiver 2020 | J181: Tiger | K181: 1 | L181: 50 | M181: 50
A182: High Defintion Photos Upon Request | C182: LA6R10768G03.01.4A | D182: 3601456759480 | E182: 4A | F182: R.Kids | G182: R.Kid | H182: Jersey | I182: Automne-Hiver 2020 | J182: Tiger | K182: 3 | L182: 45 | M182: 135
A183: High Defintion Photos Upon Request | C183: LA6R10768G03.01.6A | D183: 3601456740730 | E183: 6A | F183: R.Kids | G183: R.Kid | H183: Jersey | I183: Automne-Hiver 2020 | J183: Tiger | K183: 7 | L183: 45 | M183: 315
A184: High Defintion Photos Upon Request | C184: LA6R10768G03.01.8A | D184: 3601456759503 | E184: 8A | F184: R.Kids | G184: R.Kid | H184: Jersey | I184: Automne-Hiver 2020 | J184: Tiger | K184: 31 | L184: 50 | M184: 1550
A185: High Defintion Photos Upon Request | B185: LA6R15038F02.26 | C185: LA6R15038F02.26.10A | D185: 3601456762473 | E185: 10A | F185: R.Kids | G185: R.Kid | H185: Knitwear | I185: Automne-Hiver 2020 | J185: - | K185: 2 | L185: 90 | M185: 180
A186: High Defintion Photos Upon Request | B186: LA6R15078F02.21 | C186: LA6R15078F02.21.10A | D186: 3601456762732 | E186: 10A | F186: R.Kids | G186: R.Kid | H186: Knitwear | I186: Automne-Hiver 2020 | J186: - | K186: 32 | L186: 120 | M186: 3840
A187: High Defintion Photos Upon Request | C187: LA6R15078F02.21.4A | D187: 3601456762695 | E187: 4A | F187: R.Kids | G187: R.Kid | H187: Knitwear | I187: Automne-Hiver 2020 | J187: - | K187: 21 | L187: 105 | M187: 2205
A188: High Defintion Photos Upon Request | C188: LA6R15078F02.21.6A | D188: 3601456762718 | E188: 6A | F188: R.Kids | G188: R.Kid | H188: Knitwear | I188: Automne-Hiver 2020 | J188: - | K188: 28 | L188: 105 | M188: 2940
A189: High Defintion Photos Upon Request | C189: LA6R15078F02.21.8A | D189: 3601456762725 | E189: 8A | F189: R.Kids | G189: R.Kid | H189: Knitwear | I189: Automne-Hiver 2020 | J189: - | K189: 30 | L189: 120 | M189: 3600
A190: High Defintion Photos Upon Request | B190: LA6R15118F03.11 | C190: LA6R15118F03.11.10A | D190: 3601456762978 | E190: 10A | F190: R.Kids | G190: R.Kid | H190: Knitwear | I190: Automne-Hiver 2020 | J190: Other Tigers | K190: 4 | L190: 135 | M190: 540
A191: High Defintion Photos Upon Request | C191: LA6R15118F03.11.4A | D191: 3601456762947 | E191: 4A | F191: R.Kids | G191: R.Kid | H191: Knitwear | I191: Automne-Hiver 2020 | J191: Other Tigers | K191: 7 | L191: 120 | M191: 840
A192: High Defintion Photos Upon Request | C192: LA6R15118F03.11.6A | D192: 3601456754768 | E192: 6A | F192: R.Kids | G192: R.Kid | H192: Knitwear | I192: Automne-Hiver 2020 | J192: Other Tigers | K192: 2 | L192: 120 | M192: 240
A193: High Defintion Photos Upon Request | C193: LA6R15118F03.11.8A | D193: 3601456762961 | E193: 8A | F193: R.Kids | G193: R.Kid | H193: Knitwear | I193: Automne-Hiver 2020 | J193: Other Tigers | K193: 6 | L193: 135 | M193: 810
A194: High Defintion Photos Upon Request | B194: LA6R15138F03.99 | C194: LA6R15138F03.99.10A | D194: 3601456763197 | E194: 10A | F194: R.Kids | G194: R.Kid | H194: Knitwear | I194: Automne-Hiver 2020 | J194: Other Tigers | K194: 26 | L194: 145 | M194: 3770
A195: High Defintion Photos Upon Request | C195: LA6R15138F03.99.12A | D195: 3601456763203 | E195: 12A | F195: R.Kids | G195: R.Kid | H195: Knitwear | I195: Automne-Hiver 2020 | J195: Other Tigers | K195: 22 | L195: 145 | M195: =+K195*L195 -> 3190
A196: High Defintion Photos Upon Request | C196: LA6R15138F03.99.6A | D196: 3601456743120 | E196: 6A | F196: R.Kids | G196: R.Kid | H196: Knitwear | I196: Automne-Hiver 2020 | J196: Other Tigers | K196: 45 | L196: 135 | M196: 6075
A197: High Defintion Photos Upon Request | C197: LA6R15138F03.99.8A | D197: 3601456763180 | E197: 8A | F197: R.Kids | G197: R.Kid | H197: Knitwear | I197: Automne-Hiver 2020 | J197: Other Tigers | K197: 25 | L197: 145 | M197: 3625
A198: High Defintion Photos Upon Request | B198: LA6R15578G02.21 | C198: LA6R15578G02.21.12A | D198: 3601456764644 | E198: 12A | F198: R.Kids | G198: R.Kid | H198: Knitwear | I198: Automne-Hiver 2020 | J198: - | K198: 34 | L198: 120 | M198: 4080
A199: High Defintion Photos Upon Request | C199: LA6R15578G02.21.4A | D199: 3601456764606 | E199: 4A | F199: R.Kids | G199: R.Kid | H199: Knitwear | I199: Automne-Hiver 2020 | J199: - | K199: 26 | L199: 105 | M199: 2730
A200: High Defintion Photos Upon Request | C200: LA6R15578G02.21.8A | D200: 3601456764620 | E200: 8A | F200: R.Kids | G200: R.Kid | H200: Knitwear | I200: Automne-Hiver 2020 | J200: - | K200: 36 | L200: 120 | M200: 4320
... 435 more rows

Sheet RTW M
A1: PHOTOS | B1: MTC | C1: Mtct | D1: EAN | E1: Size | F1: L2 Department | G1: L3 Category | H1: Knowhow new | I1: Creation season | J1: Universe | K1: Quantity | L1: Prix retail EUR | M1: TOT Prix retail EUR | N1: Purchase Order Quantity
A2: High Definition Photos Upon Request | B2: F755VB4011AG.99 | C2: F755VB4011AG.99.56 | D2: 3603678911783 | E2: 56 | F2: R.Men | G2: R.M.Jacket | H2: Woven | I2: Printemps-Ete 2017 | J2: - | K2: 1 | L2: 450 | M2: =+K2*L2 -> 450
A3: High Definition Photos Upon Request | B3: F765VE4171RE.76 | C3: F765VE4171RE.76.48 | D3: 3603678986859 | E3: 48 | F3: R.Men | G3: R.M.Jacket | H3: Woven | I3: Automne-Hiver 2017 | J3: - | K3: 1 | L3: 550 | M3: =+K3*L3 -> 550
A4: High Definition Photos Upon Request | C4: F765VE4171RE.76.50 | D4: 3603678986699 | E4: 50 | F4: R.Men | G4: R.M.Jacket | H4: Woven | I4: Automne-Hiver 2017 | J4: - | K4: 2 | L4: 550 | M4: 1100
A5: High Definition Photos Upon Request | B5: F855VE4421AA.77 | C5: F855VE4421AA.77.46 | D5: 3603679221157 | E5: 46 | F5: R.Men | G5: R.M.Jacket | H5: Woven | I5: Printemps-Ete 2018 | J5: - | K5: 3 | L5: 450 | M5: 1350
A6: High Definition Photos Upon Request | B6: FA65BL0491RG.76 | C6: FA65BL0491RG.76.L | D6: 3603679880347 | E6: L | F6: R.Men | G6: R.M.Jacket | H6: Woven | I6: Automne-Hiver 2020 | J6: Print | K6: 2 | L6: 650 | M6: 1300
A7: High Definition Photos Upon Request | C7: FA65BL0491RG.76.M | D7: 3603679880361 | E7: M | F7: R.Men | G7: R.M.Jacket | H7: Woven | I7: Automne-Hiver 2020 | J7: Print | K7: 3 | L7: 650 | M7: 1950
A8: High Definition Photos Upon Request | C8: FA65BL0491RG.76.XL | D8: 3603679880323 | E8: XL | F8: R.Men | G8: R.M.Jacket | H8: Woven | I8: Automne-Hiver 2020 | J8: Print | K8: 2 | L8: 650 | M8: 1300
A9: High Definition Photos Upon Request | B9: FA65BL7314CA.23 | C9: FA65BL7314CA.23.L | D9: 3603679881658 | E9: L | F9: R.Men | G9: R.M.Jacket | H9: Jersey | I9: Automne-Hiver 2020 | J9: Print | K9: 8 | L9: 350 | M9: 2800
A10: High Definition Photos Upon Request | C10: FA65BL7314CA.23.M | D10: 3603679881665 | E10: M | F10: R.Men | G10: R.M.Jacket | H10: Jersey | I10: Automne-Hiver 2020 | J10: Print | K10: 20 | L10: 350 | M10: 7000
A11: High Definition Photos Upon Request | C11: FA65BL7314CA.23.S | D11: 3603679881757 | E11: S | F11: R.Men | G11: R.M.Jacket | H11: Jersey | I11: Automne-Hiver 2020 | J11: Print | K11: 15 | L11: 350 | M11: 5250
A12: High Definition Photos Upon Request | C12: FA65BL7314CA.23.XL | D12: 3603679881696 | E12: XL | F12: R.Men | G12: R.M.Jacket | H12: Jersey | I12: Automne-Hiver 2020 | J12: Print | K12: 8 | L12: 350 | M12: 2800
A13: High Definition Photos Upon Request | C13: FA65BL7314CA.23.XS | D13: 3603679881726 | E13: XS | F13: R.Men | G13: R.M.Jacket | H13: Jersey | I13: Automne-Hiver 2020 | J13: Print | K13: 6 | L13: 350 | M13: 2100
A14: High Definition Photos Upon Request | B14: FA65BL7314CA.62 | C14: FA65BL7314CA.62.L | D14: 3603679881634 | E14: L | F14: R.Men | G14: R.M.Jacket | H14: Jersey | I14: Automne-Hiver 2020 | J14: Print | K14: 3 | L14: 350 | M14: 1050
A15: High Definition Photos Upon Request | C15: FA65BL7314CA.62.M | D15: 3603679881597 | E15: M | F15: R.Men | G15: R.M.Jacket | H15: Jersey | I15: Automne-Hiver 2020 | J15: Print | K15: 3 | L15: 350 | M15: 1050
A16: High Definition Photos Upon Request | C16: FA65BL7314CA.62.S | D16: 3603679881740 | E16: S | F16: R.Men | G16: R.M.Jacket | H16: Jersey | I16: Automne-Hiver 2020 | J16: Print | K16: 1 | L16: 350 | M16: 350
A17: High Definition Photos Upon Request | C17: FA65BL7314CA.62.XL | D17: 3603679881580 | E17: XL | F17: R.Men | G17: R.M.Jacket | H17: Jersey | I17: Automne-Hiver 2020 | J17: Print | K17: 1 | L17: 350 | M17: 350
A18: High Definition Photos Upon Request | B18: FA65VE0261RA.97 | C18: FA65VE0261RA.97.L | D18: 3603679868796 | E18: L | F18: R.Men | G18: R.M.Jacket | H18: Woven | I18: Automne-Hiver 2020 | J18: Solid | K18: 2 | L18: 450 | M18: 900
A19: High Definition Photos Upon Request | C19: FA65VE0261RA.97.M | D19: 3603679868765 | E19: M | F19: R.Men | G19: R.M.Jacket | H19: Woven | I19: Automne-Hiver 2020 | J19: Solid | K19: 2 | L19: 450 | M19: 900
A20: High Definition Photos Upon Request | C20: FA65VE0261RA.97.S | D20: 3603679868741 | E20: S | F20: R.Men | G20: R.M.Jacket | H20: Woven | I20: Automne-Hiver 2020 | J20: Solid | K20: 2 | L20: 450 | M20: 900
A21: High Definition Photos Upon Request | C21: FA65VE0261RA.97.XL | D21: 3603679868697 | E21: XL | F21: R.Men | G21: R.M.Jacket | H21: Woven | I21: Automne-Hiver 2020 | J21: Solid | K21: 1 | L21: 450 | M21: 450
A22: High Definition Photos Upon Request | C22: FA65VE0261RA.97.XS | D22: 3603679868772 | E22: XS | F22: R.Men | G22: R.M.Jacket | H22: Woven | I22: Automne-Hiver 2020 | J22: Solid | K22: 1 | L22: 450 | M22: 450
A23: High Definition Photos Upon Request | B23: FA65VE1001RE.99 | C23: FA65VE1001RE.99.44 | D23: 3603679900694 | E23: 44 | F23: R.Men | G23: R.M.Jacket | H23: Woven | I23: Automne-Hiver 2020 | J23: Solid | K23: 1 | L23: 550 | M23: 550
A24: High Definition Photos Upon Request | C24: FA65VE1001RE.99.46 | D24: 3603679900762 | E24: 46 | F24: R.Men | G24: R.M.Jacket | H24: Woven | I24: Automne-Hiver 2020 | J24: Solid | K24: 2 | L24: 550 | M24: 1100
A25: High Definition Photos Upon Request | C25: FA65VE1001RE.99.48 | D25: 3603679900687 | E25: 48 | F25: R.Men | G25: R.M.Jacket | H25: Woven | I25: Automne-Hiver 2020 | J25: Solid | K25: 1 | L25: 550 | M25: 550
A26: High Definition Photos Upon Request | C26: FA65VE1001RE.99.50 | D26: 3603679900724 | E26: 50 | F26: R.Men | G26: R.M.Jacket | H26: Woven | I26: Automne-Hiver 2020 | J26: Solid | K26: 1 | L26: 550 | M26: 550
A27: High Definition Photos Upon Request | C27: FA65VE1001RE.99.52 | D27: 3603679900885 | E27: 52 | F27: R.Men | G27: R.M.Jacket | H27: Woven | I27: Automne-Hiver 2020 | J27: Solid | K27: 2 | L27: 550 | M27: 1100
A28: High Definition Photos Upon Request | C28: FA65VE1001RE.99.54 | D28: 3603679900717 | E28: 54 | F28: R.Men | G28: R.M.Jacket | H28: Woven | I28: Automne-Hiver 2020 | J28: Solid | K28: 1 | L28: 550 | M28: 550
A29: High Definition Photos Upon Request | B29: FB55BL7364JT.93 | C29: FB55BL7364JT.93.L | D29: 3612230107083 | E29: L | F29: R.Men | G29: R.M.Jacket | H29: Jersey | I29: Printemps-Ete 2021 | J29: Kenzo Sport | K29: 20 | L29: 395 | M29: 7900
A30: High Definition Photos Upon Request | C30: FB55BL7364JT.93.M | D30: 3612230107120 | E30: M | F30: R.Men | G30: R.M.Jacket | H30: Jersey | I30: Printemps-Ete 2021 | J30: Kenzo Sport | K30: 34 | L30: 395 | M30: 13430
A31: High Definition Photos Upon Request | C31: FB55BL7364JT.93.S | D31: 3612230107113 | E31: S | F31: R.Men | G31: R.M.Jacket | H31: Jersey | I31: Printemps-Ete 2021 | J31: Kenzo Sport | K31: 22 | L31: 395 | M31: 8690
A32: High Definition Photos Upon Request | C32: FB55BL7364JT.93.XL | D32: 3612230107090 | E32: XL | F32: R.Men | G32: R.M.Jacket | H32: Jersey | I32: Printemps-Ete 2021 | J32: Kenzo Sport | K32: 5 | L32: 395 | M32: 1975
A33: High Definition Photos Upon Request | C33: FB55BL7364JT.93.XS | D33: 3612230107076 | E33: XS | F33: R.Men | G33: R.M.Jacket | H33: Jersey | I33: Printemps-Ete 2021 | J33: Kenzo Sport | K33: 6 | L33: 395 | M33: 2370
A34: High Definition Photos Upon Request | B34: FB55MVE259CR.10 | C34: FB55MVE259CR.10.46 | D34: 3612230084810 | E34: 46 | F34: R.Men | G34: R.M.Jacket | H34: Woven | I34: Printemps-Ete 2021 | J34: Solid | K34: 1 | L34: 895 | M34: 895
A35: High Definition Photos Upon Request | C35: FB55MVE259CR.10.48 | D35: 3612230084858 | E35: 48 | F35: R.Men | G35: R.M.Jacket | H35: Woven | I35: Printemps-Ete 2021 | J35: Solid | K35: 1 | L35: 895 | M35: 895
A36: High Definition Photos Upon Request | C36: FB55MVE259CR.10.50 | D36: 3612230084841 | E36: 50 | F36: R.Men | G36: R.M.Jacket | H36: Woven | I36: Printemps-Ete 2021 | J36: Solid | K36: 2 | L36: 895 | M36: 1790
A37: High Definition Photos Upon Request | B37: FB55MVE269CG.02 | C37: FB55MVE269CG.02.L | D37: 3612230077249 | E37: L | F37: R.Men | G37: R.M.Jacket | H37: Woven | I37: Printemps-Ete 2021 | J37: Solid | K37: 2 | L37: 495 | M37: 990
A38: High Definition Photos Upon Request | C38: FB55MVE269CG.02.M | D38: 3612230077232 | E38: M | F38: R.Men | G38: R.M.Jacket | H38: Woven | I38: Printemps-Ete 2021 | J38: Solid | K38: 1 | L38: 495 | M38: 495
A39: High Definition Photos Upon Request | C39: FB55MVE269CG.02.S | D39: 3612230077225 | E39: S | F39: R.Men | G39: R.M.Jacket | H39: Woven | I39: Printemps-Ete 2021 | J39: Solid | K39: 1 | L39: 495 | M39: 495
A40: High Definition Photos Upon Request | B40: FB55MVE279CL.82 | C40: FB55MVE279CL.82.L | D40: 3612230075634 | E40: L | F40: R.Men | G40: R.M.Jacket | H40: Woven | I40: Printemps-Ete 2021 | J40: Solid | K40: 1 | L40: 695 | M40: 695
A41: High Definition Photos Upon Request | C41: FB55MVE279CL.82.S | D41: 3612230075658 | E41: S | F41: R.Men | G41: R.M.Jacket | H41: Woven | I41: Printemps-Ete 2021 | J41: Solid | K41: 1 | L41: 695 | M41: 695
A42: High Definition Photos Upon Request | B42: FB55MVE289L9.22 | C42: FB55MVE289L9.22.46 | D42: 3612230088603 | E42: 46 | F42: R.Men | G42: R.M.Jacket | H42: Woven | I42: Printemps-Ete 2021 | J42: Print | K42: 1 | L42: 795 | M42: 795
A43: High Definition Photos Upon Request | C43: FB55MVE289L9.22.48 | D43: 3612230088573 | E43: 48 | F43: R.Men | G43: R.M.Jacket | H43: Woven | I43: Printemps-Ete 2021 | J43: Print | K43: 1 | L43: 795 | M43: 795
A44: High Definition Photos Upon Request | C44: FB55MVE289L9.22.50 | D44: 3612230088566 | E44: 50 | F44: R.Men | G44: R.M.Jacket | H44: Woven | I44: Printemps-Ete 2021 | J44: Print | K44: 1 | L44: 795 | M44: 795
A45: High Definition Photos Upon Request | B45: FB55MVE299S4.19 | C45: FB55MVE299S4.19.L | D45: 3612230075740 | E45: L | F45: R.Men | G45: R.M.Jacket | H45: Woven | I45: Printemps-Ete 2021 | J45: Print | K45: 1 | L45: 495 | M45: 495
A46: High Definition Photos Upon Request | C46: FB55MVE299S4.19.M | D46: 3612230075719 | E46: M | F46: R.Men | G46: R.M.Jacket | H46: Woven | I46: Printemps-Ete 2021 | J46: Print | K46: 1 | L46: 495 | M46: 495
A47: High Definition Photos Upon Request | C47: FB55MVE299S4.19.S | D47: 3612230075702 | E47: S | F47: R.Men | G47: R.M.Jacket | H47: Woven | I47: Printemps-Ete 2021 | J47: Print | K47: 1 | L47: 495 | M47: 495
A48: High Definition Photos Upon Request | B48: FB55VE2101NC.98 | C48: FB55VE2101NC.98.M | D48: 3603679980788 | E48: M | F48: R.Men | G48: R.M.Jacket | H48: Woven | I48: Printemps-Ete 2021 | J48: Solid | K48: 2 | L48: 595 | M48: 1190
A49: High Definition Photos Upon Request | C49: FB55VE2101NC.98.S | D49: 3603679980801 | E49: S | F49: R.Men | G49: R.M.Jacket | H49: Woven | I49: Printemps-Ete 2021 | J49: Solid | K49: 3 | L49: 595 | M49: 1785
A50: High Definition Photos Upon Request | C50: FB55VE2101NC.98.XL | D50: 3603679980764 | E50: XL | F50: R.Men | G50: R.M.Jacket | H50: Woven | I50: Printemps-Ete 2021 | J50: Solid | K50: 4 | L50: 595 | M50: 2380
A51: High Definition Photos Upon Request | C51: FB55VE2101NC.98.XS | D51: 3603679980757 | E51: XS | F51: R.Men | G51: R.M.Jacket | H51: Woven | I51: Printemps-Ete 2021 | J51: Solid | K51: 2 | L51: 595 | M51: 1190
A52: High Definition Photos Upon Request | C52: FB55VE2101NC.98.XXL | D52: 3603679980795 | E52: XXL | F52: R.Men | G52: R.M.Jacket | H52: Woven | I52: Printemps-Ete 2021 | J52: Solid | K52: 1 | L52: 595 | M52: 595
A53: High Definition Photos Upon Request | B53: FB55VE2101PA.71 | C53: FB55VE2101PA.71.L | D53: 3603679985189 | E53: L | F53: R.Men | G53: R.M.Jacket | H53: Woven | I53: Printemps-Ete 2021 | J53: Print | K53: 8 | L53: 595 | M53: 4760
A54: High Definition Photos Upon Request | C54: FB55VE2101PA.71.M | D54: 3603679985219 | E54: M | F54: R.Men | G54: R.M.Jacket | H54: Woven | I54: Printemps-Ete 2021 | J54: Print | K54: 9 | L54: 595 | M54: 5355
A55: High Definition Photos Upon Request | C55: FB55VE2101PA.71.S | D55: 3603679985172 | E55: S | F55: R.Men | G55: R.M.Jacket | H55: Woven | I55: Printemps-Ete 2021 | J55: Print | K55: 9 | L55: 595 | M55: 5355
A56: High Definition Photos Upon Request | C56: FB55VE2101PA.71.XL | D56: 3603679985165 | E56: XL | F56: R.Men | G56: R.M.Jacket | H56: Woven | I56: Printemps-Ete 2021 | J56: Print | K56: 1 | L56: 595 | M56: 595
A57: High Definition Photos Upon Request | C57: FB55VE2101PA.71.XS | D57: 3603679985202 | E57: XS | F57: R.Men | G57: R.M.Jacket | H57: Woven | I57: Printemps-Ete 2021 | J57: Print | K57: 2 | L57: 595 | M57: 1190
A58: High Definition Photos Upon Request | B58: FB55VE4319SA.49 | C58: FB55VE4319SA.49.L | D58: 3603679998479 | E58: L | F58: R.Men | G58: R.M.Jacket | H58: Woven | I58: Printemps-Ete 2021 | J58: Solid | K58: 6 | L58: 395 | M58: 2370
A59: High Definition Photos Upon Request | C59: FB55VE4319SA.49.M | D59: 3603679998578 | E59: M | F59: R.Men | G59: R.M.Jacket | H59: Woven | I59: Printemps-Ete 2021 | J59: Solid | K59: 10 | L59: 395 | M59: 3950
A60: High Definition Photos Upon Request | C60: FB55VE4319SA.49.S | D60: 3603679998554 | E60: S | F60: R.Men | G60: R.M.Jacket | H60: Woven | I60: Printemps-Ete 2021 | J60: Solid | K60: 12 | L60: 395 | M60: 4740
A61: High Definition Photos Upon Request | C61: FB55VE4319SA.49.XL | D61: 3603679998561 | E61: XL | F61: R.Men | G61: R.M.Jacket | H61: Woven | I61: Printemps-Ete 2021 | J61: Solid | K61: 2 | L61: 395 | M61: 790
A62: High Definition Photos Upon Request | C62: FB55VE4319SA.49.XS | D62: 3603679998509 | E62: XS | F62: R.Men | G62: R.M.Jacket | H62: Woven | I62: Printemps-Ete 2021 | J62: Solid | K62: 2 | L62: 395 | M62: 790
A63: High Definition Photos Upon Request | B63: FB55VE5005AI.51 | C63: FB55VE5005AI.51.L | D63: 3603679998653 | E63: L | F63: R.Men | G63: R.M.Jacket | H63: Woven | I63: Printemps-Ete 2021 | J63: Solid | K63: 2 | L63: 495 | M63: 990
A64: High Definition Photos Upon Request | C64: FB55VE5005AI.51.M | D64: 3603679998639 | E64: M | F64: R.Men | G64: R.M.Jacket | H64: Woven | I64: Printemps-Ete 2021 | J64: Solid | K64: 1 | L64: 495 | M64: 495
A65: High Definition Photos Upon Request | C65: FB55VE5005AI.51.XL | D65: 3603679998677 | E65: XL | F65: R.Men | G65: R.M.Jacket | H65: Woven | I65: Printemps-Ete 2021 | J65: Solid | K65: 1 | L65: 495 | M65: 495
A66: High Definition Photos Upon Request | B66: FB55VE5055AI.76 | C66: FB55VE5055AI.76.L | D66: 3603679998738 | E66: L | F66: R.Men | G66: R.M.Jacket | H66: Woven | I66: Printemps-Ete 2021 | J66: Solid | K66: 4 | L66: 595 | M66: 2380
A67: High Definition Photos Upon Request | C67: FB55VE5055AI.76.M | D67: 3603679998769 | E67: M | F67: R.Men | G67: R.M.Jacket | H67: Woven | I67: Printemps-Ete 2021 | J67: Solid | K67: 3 | L67: 595 | M67: =+K67*L67 -> 1785
A68: High Definition Photos Upon Request | C68: FB55VE5055AI.76.S | D68: 3603679998745 | E68: S | F68: R.Men | G68: R.M.Jacket | H68: Woven | I68: Printemps-Ete 2021 | J68: Solid | K68: 3 | L68: 595 | M68: 1785
A69: High Definition Photos Upon Request | C69: FB55VE5055AI.76.XL | D69: 3603679998752 | E69: XL | F69: R.Men | G69: R.M.Jacket | H69: Woven | I69: Printemps-Ete 2021 | J69: Solid | K69: 7 | L69: 595 | M69: 4165
A70: High Definition Photos Upon Request | C70: FB55VE5055AI.76.XS | D70: 3603679998714 | E70: XS | F70: R.Men | G70: R.M.Jacket | H70: Woven | I70: Printemps-Ete 2021 | J70: Solid | K70: 2 | L70: 595 | M70: 1190
A71: High Definition Photos Upon Request | B71: FB65DB5402ED.99 | C71: FB65DB5402ED.99.L | D71: 3612230121430 | E71: L | F71: R.Men | G71: R.M.Jacket | H71: Denim | I71: Automne-Hiver 2021 | J71: Solid | K71: 3 | L71: 395 | M71: 1185
A72: High Definition Photos Upon Request | C72: FB65DB5402ED.99.M | D72: 3612230121409 | E72: M | F72: R.Men | G72: R.M.Jacket | H72: Denim | I72: Automne-Hiver 2021 | J72: Solid | K72: 2 | L72: 395 | M72: 790
A73: High Definition Photos Upon Request | C73: FB65DB5402ED.99.S | D73: 3612230121416 | E73: S | F73: R.Men | G73: R.M.Jacket | H73: Denim | I73: Automne-Hiver 2021 | J73: Solid | K73: 3 | L73: 395 | M73: 1185
A74: High Definition Photos Upon Request | C74: FB65DB5402ED.99.XL | D74: 3612230121423 | E74: XL | F74: R.Men | G74: R.M.Jacket | H74: Denim | I74: Automne-Hiver 2021 | J74: Solid | K74: 2 | L74: 395 | M74: 790
A75: High Definition Photos Upon Request | B75: FC55DB5402FA.67 | C75: FC55DB5402FA.67.M | D75: 3612230241503 | E75: M | F75: R.Men | G75: R.M.Jacket | H75: Denim | I75: Printemps-Ete 2022 | J75: Solid | K75: 3 | L75: 395 | M75: 1185
A76: High Definition Photos Upon Request | C76: FC55DB5402FA.67.S | D76: 3612230241527 | E76: S | F76: R.Men | G76: R.M.Jacket | H76: Denim | I76: Printemps-Ete 2022 | J76: Solid | K76: 7 | L76: 395 | M76: 2765
A77: High Definition Photos Upon Request | B77: FC55DV2109CY.12 | C77: FC55DV2109CY.12.M | D77: 3612230245341 | E77: M | F77: R.Men | G77: R.M.Jacket | H77: Denim | I77: Printemps-Ete 2022 | J77: Solid | K77: 1 | L77: 395 | M77: 395
A78: High Definition Photos Upon Request | C78: FC55DV2109CY.12.XL | D78: 3612230245310 | E78: XL | F78: R.Men | G78: R.M.Jacket | H78: Denim | I78: Printemps-Ete 2022 | J78: Solid | K78: 1 | L78: 395 | M78: 395
A79: High Definition Photos Upon Request | C79: FC55DV2109CY.12.XXL | D79: 3612230245334 | E79: XXL | F79: R.Men | G79: R.M.Jacket | H79: Denim | I79: Printemps-Ete 2022 | J79: Solid | K79: 1 | L79: 395 | M79: 395
A80: High Definition Photos Upon Request | B80: F955PU4223BA.99 | C80: F955PU4223BA.99.XL | D80: 3603679464745 | E80: XL | F80: R.Men | G80: R.M.Jumper / Cardigan | H80: Knitwear | I80: Printemps-Ete 2019 | J80: Kenzo Sport | K80: 1 | L80: 290 | M80: 290
A81: High Definition Photos Upon Request | B81: FA65MPU533RE.14 | C81: FA65MPU533RE.14.M | D81: 3603679943301 | E81: M | F81: R.Men | G81: R.M.Jumper / Cardigan | H81: Knitwear | I81: Automne-Hiver 2020 | J81: ND | K81: 2 | L81: 850 | M81: 1700
A82: High Definition Photos Upon Request | B82: FA65PU5303XA.25 | C82: FA65PU5303XA.25.L | D82: 3603679982546 | E82: L | F82: R.Men | G82: R.M.Jumper / Cardigan | H82: Knitwear | I82: Automne-Hiver 2020 | J82: Tiger | K82: 4 | L82: 320 | M82: 1280
A83: High Definition Photos Upon Request | C83: FA65PU5303XA.25.M | D83: 3603679982560 | E83: M | F83: R.Men | G83: R.M.Jumper / Cardigan | H83: Knitwear | I83: Automne-Hiver 2020 | J83: Tiger | K83: 9 | L83: 320 | M83: 2880
A84: High Definition Photos Upon Request | C84: FA65PU5303XA.25.S | D84: 3603679982522 | E84: S | F84: R.Men | G84: R.M.Jumper / Cardigan | H84: Knitwear | I84: Automne-Hiver 2020 | J84: Tiger | K84: 6 | L84: 320 | M84: 1920
A85: High Definition Photos Upon Request | C85: FA65PU5303XA.25.XL | D85: 3603679982553 | E85: XL | F85: R.Men | G85: R.M.Jumper / Cardigan | H85: Knitwear | I85: Automne-Hiver 2020 | J85: Tiger | K85: 6 | L85: 320 | M85: 1920
A86: High Definition Photos Upon Request | C86: FA65PU5303XA.25.XS | D86: 3603679982539 | E86: XS | F86: R.Men | G86: R.M.Jumper / Cardigan | H86: Knitwear | I86: Automne-Hiver 2020 | J86: Tiger | K86: 1 | L86: 320 | M86: 320
A87: High Definition Photos Upon Request | B87: FA65PU5303XA.94 | C87: FA65PU5303XA.94.L | D87: 3603679904784 | E87: L | F87: R.Men | G87: R.M.Jumper / Cardigan | H87: Knitwear | I87: Automne-Hiver 2020 | J87: Tiger | K87: 9 | L87: 320 | M87: 2880
A88: High Definition Photos Upon Request | C88: FA65PU5303XA.94.M | D88: 3603679904777 | E88: M | F88: R.Men | G88: R.M.Jumper / Cardigan | H88: Knitwear | I88: Automne-Hiver 2020 | J88: Tiger | K88: 8 | L88: 320 | M88: 2560
A89: High Definition Photos Upon Request | C89: FA65PU5303XA.94.S | D89: 3603679904760 | E89: S | F89: R.Men | G89: R.M.Jumper / Cardigan | H89: Knitwear | I89: Automne-Hiver 2020 | J89: Tiger | K89: 8 | L89: 320 | M89: 2560
A90: High Definition Photos Upon Request | C90: FA65PU5303XA.94.XL | D90: 3603679904746 | E90: XL | F90: R.Men | G90: R.M.Jumper / Cardigan | H90: Knitwear | I90: Automne-Hiver 2020 | J90: Tiger | K90: 7 | L90: 320 | M90: 2240
A91: High Definition Photos Upon Request | C91: FA65PU5303XA.94.XS | D91: 3603679904739 | E91: XS | F91: R.Men | G91: R.M.Jumper / Cardigan | H91: Knitwear | I91: Automne-Hiver 2020 | J91: Tiger | K91: 10 | L91: 320 | M91: 3200
A92: High Definition Photos Upon Request | B92: FA65PU5303XA.99 | C92: FA65PU5303XA.99.L | D92: 3603679960209 | E92: L | F92: R.Men | G92: R.M.Jumper / Cardigan | H92: Knitwear | I92: Automne-Hiver 2020 | J92: Tiger | K92: 11 | L92: 320 | M92: 3520
A93: High Definition Photos Upon Request | C93: FA65PU5303XA.99.M | D93: 3603679960186 | E93: M | F93: R.Men | G93: R.M.Jumper / Cardigan | H93: Knitwear | I93: Automne-Hiver 2020 | J93: Tiger | K93: 4 | L93: 320 | M93: 1280
A94: High Definition Photos Upon Request | C94: FA65PU5303XA.99.XL | D94: 3603679960162 | E94: XL | F94: R.Men | G94: R.M.Jumper / Cardigan | H94: Knitwear | I94: Automne-Hiver 2020 | J94: Tiger | K94: 3 | L94: 320 | M94: 960
A95: High Definition Photos Upon Request | C95: FA65PU5303XA.99.XS | D95: 3603679960193 | E95: XS | F95: R.Men | G95: R.M.Jumper / Cardigan | H95: Knitwear | I95: Automne-Hiver 2020 | J95: Tiger | K95: 10 | L95: 320 | M95: 3200
A96: High Definition Photos Upon Request | B96: FA65PU5373TA.95 | C96: FA65PU5373TA.95.L | D96: 3603679905392 | E96: L | F96: R.Men | G96: R.M.Jumper / Cardigan | H96: Knitwear | I96: Automne-Hiver 2020 | J96: Tiger Crest | K96: 4 | L96: 250 | M96: 1000
A97: High Definition Photos Upon Request | C97: FA65PU5373TA.95.M | D97: 3603679905460 | E97: M | F97: R.Men | G97: R.M.Jumper / Cardigan | H97: Knitwear | I97: Automne-Hiver 2020 | J97: Tiger Crest | K97: 2 | L97: 250 | M97: 500
A98: High Definition Photos Upon Request | C98: FA65PU5373TA.95.S | D98: 3603679905309 | E98: S | F98: R.Men | G98: R.M.Jumper / Cardigan | H98: Knitwear | I98: Automne-Hiver 2020 | J98: Tiger Crest | K98: 5 | L98: 250 | M98: 1250
A99: High Definition Photos Upon Request | C99: FA65PU5373TA.95.XL | D99: 3603679905248 | E99: XL | F99: R.Men | G99: R.M.Jumper / Cardigan | H99: Knitwear | I99: Automne-Hiver 2020 | J99: Tiger Crest | K99: 3 | L99: 250 | M99: 750
A100: High Definition Photos Upon Request | C100: FA65PU5373TA.95.XS | D100: 3603679905316 | E100: XS | F100: R.Men | G100: R.M.Jumper / Cardigan | H100: Knitwear | I100: Automne-Hiver 2020 | J100: Tiger Crest | K100: 1 | L100: 250 | M100: 250
A101: High Definition Photos Upon Request | C101: FA65PU5373TA.95.XXL | D101: 3603679905255 | E101: XXL | F101: R.Men | G101: R.M.Jumper / Cardigan | H101: Knitwear | I101: Automne-Hiver 2020 | J101: Tiger Crest | K101: 1 | L101: 250 | M101: 250
A102: High Definition Photos Upon Request | B102: FB55CA5523AC.49 | C102: FB55CA5523AC.49.L | D102: 3603679983895 | E102: L | F102: R.Men | G102: R.M.Jumper / Cardigan | H102: Knitwear | I102: Printemps-Ete 2021 | J102: Solid | K102: 1 | L102: 395 | M102: 395
A103: High Definition Photos Upon Request | C103: FB55CA5523AC.49.M | D103: 3603679983857 | E103: M | F103: R.Men | G103: R.M.Jumper / Cardigan | H103: Knitwear | I103: Printemps-Ete 2021 | J103: Solid | K103: 1 | L103: 395 | M103: 395
A104: High Definition Photos Upon Request | C104: FB55CA5523AC.49.S | D104: 3603679983925 | E104: S | F104: R.Men | G104: R.M.Jumper / Cardigan | H104: Knitwear | I104: Printemps-Ete 2021 | J104: Solid | K104: 1 | L104: 395 | M104: 395
A105: High Definition Photos Upon Request | C105: FB55CA5523AC.49.XL | D105: 3603679983871 | E105: XL | F105: R.Men | G105: R.M.Jumper / Cardigan | H105: Knitwear | I105: Printemps-Ete 2021 | J105: Solid | K105: 1 | L105: 395 | M105: 395
A106: High Definition Photos Upon Request | C106: FB55CA5523AC.49.XS | D106: 3603679983864 | E106: XS | F106: R.Men | G106: R.M.Jumper / Cardigan | H106: Knitwear | I106: Printemps-Ete 2021 | J106: Solid | K106: 1 | L106: 395 | M106: 395
A107: High Definition Photos Upon Request | B107: FB55CA5523AC.99 | C107: FB55CA5523AC.99.L | D107: 3603679983888 | E107: L | F107: R.Men | G107: R.M.Jumper / Cardigan | H107: Knitwear | I107: Printemps-Ete 2021 | J107: Solid | K107: 2 | L107: 395 | M107: 790
A108: High Definition Photos Upon Request | C108: FB55CA5523AC.99.M | D108: 3603679983901 | E108: M | F108: R.Men | G108: R.M.Jumper / Cardigan | H108: Knitwear | I108: Printemps-Ete 2021 | J108: Solid | K108: 6 | L108: 395 | M108: 2370
A109: High Definition Photos Upon Request | C109: FB55CA5523AC.99.XS | D109: 3603679983932 | E109: XS | F109: R.Men | G109: R.M.Jumper / Cardigan | H109: Knitwear | I109: Printemps-Ete 2021 | J109: Solid | K109: 1 | L109: 395 | M109: 395
A110: High Definition Photos Upon Request | B110: FB55CA5813TB.67 | C110: FB55CA5813TB.67.L | D110: 3603679980351 | E110: L | F110: R.Men | G110: R.M.Jumper / Cardigan | H110: Knitwear | I110: Printemps-Ete 2021 | J110: Tiger Crest | K110: 2 | L110: 295 | M110: 590
A111: High Definition Photos Upon Request | C111: FB55CA5813TB.67.M | D111: 3603679980405 | E111: M | F111: R.Men | G111: R.M.Jumper / Cardigan | H111: Knitwear | I111: Printemps-Ete 2021 | J111: Tiger Crest | K111: 2 | L111: 295 | M111: 590
A112: High Definition Photos Upon Request | C112: FB55CA5813TB.67.S | D112: 3603679980498 | E112: S | F112: R.Men | G112: R.M.Jumper / Cardigan | H112: Knitwear | I112: Printemps-Ete 2021 | J112: Tiger Crest | K112: 2 | L112: 295 | M112: 590
A113: High Definition Photos Upon Request | B113: FB55CA5813TB.92 | C113: FB55CA5813TB.92.L | D113: 3612230071636 | E113: L | F113: R.Men | G113: R.M.Jumper / Cardigan | H113: Knitwear | I113: Printemps-Ete 2021 | J113: Tiger Crest | K113: 1 | L113: 295 | M113: 295
A114: High Definition Photos Upon Request | C114: FB55CA5813TB.92.M | D114: 3612230071643 | E114: M | F114: R.Men | G114: R.M.Jumper / Cardigan | H114: Knitwear | I114: Printemps-Ete 2021 | J114: Tiger Crest | K114: 1 | L114: 295 | M114: 295
A115: High Definition Photos Upon Request | C115: FB55CA5813TB.92.XS | D115: 3612230071650 | E115: XS | F115: R.Men | G115: R.M.Jumper / Cardigan | H115: Knitwear | I115: Printemps-Ete 2021 | J115: Tiger Crest | K115: 1 | L115: 295 | M115: 295
A116: High Definition Photos Upon Request | B116: FB55CA5813TB.99 | C116: FB55CA5813TB.99.M | D116: 3603679980436 | E116: M | F116: R.Men | G116: R.M.Jumper / Cardigan | H116: Knitwear | I116: Printemps-Ete 2021 | J116: Tiger Crest | K116: 3 | L116: 295 | M116: 885
A117: High Definition Photos Upon Request | C117: FB55CA5813TB.99.S | D117: 3603679980443 | E117: S | F117: R.Men | G117: R.M.Jumper / Cardigan | H117: Knitwear | I117: Printemps-Ete 2021 | J117: Tiger Crest | K117: 15 | L117: 295 | M117: 4425
A118: High Definition Photos Upon Request | C118: FB55CA5813TB.99.XS | D118: 3603679980450 | E118: XS | F118: R.Men | G118: R.M.Jumper / Cardigan | H118: Knitwear | I118: Printemps-Ete 2021 | J118: Tiger Crest | K118: 3 | L118: 295 | M118: 885
A119: High Definition Photos Upon Request | B119: FB55MPU913RE.56A | C119: FB55MPU913RE.56A.L | D119: 3612230084551 | E119: L | F119: R.Men | G119: R.M.Jumper / Cardigan | H119: Knitwear | I119: Printemps-Ete 2021 | J119: Solid | K119: 10 | L119: 495 | M119: 4950
A120: High Definition Photos Upon Request | C120: FB55MPU913RE.56A.M | D120: 3612230084513 | E120: M | F120: R.Men | G120: R.M.Jumper / Cardigan | H120: Knitwear | I120: Printemps-Ete 2021 | J120: Solid | K120: 2 | L120: 495 | M120: 990
A121: High Definition Photos Upon Request | C121: FB55MPU913RE.56A.S | D121: 3612230084568 | E121: S | F121: R.Men | G121: R.M.Jumper / Cardigan | H121: Knitwear | I121: Printemps-Ete 2021 | J121: Solid | K121: 2 | L121: 495 | M121: 990
A122: High Definition Photos Upon Request | B122: FB55PU5303AF.12 | C122: FB55PU5303AF.12.L | D122: 3612230067073 | E122: L | F122: R.Men | G122: R.M.Jumper / Cardigan | H122: Knitwear | I122: Printemps-Ete 2021 | J122: Print | K122: 1 | L122: 295 | M122: 295
A123: High Definition Photos Upon Request | C123: FB55PU5303AF.12.M | D123: 3612230067059 | E123: M | F123: R.Men | G123: R.M.Jumper / Cardigan | H123: Knitwear | I123: Printemps-Ete 2021 | J123: Print | K123: 2 | L123: 295 | M123: 590
A124: High Definition Photos Upon Request | C124: FB55PU5303AF.12.S | D124: 3612230067066 | E124: S | F124: R.Men | G124: R.M.Jumper / Cardigan | H124: Knitwear | I124: Printemps-Ete 2021 | J124: Print | K124: 1 | L124: 295 | M124: 295
A125: High Definition Photos Upon Request | B125: FB55PU5423AE.95 | C125: FB55PU5423AE.95.M | D125: 3603679986483 | E125: M | F125: R.Men | G125: R.M.Jumper / Cardigan | H125: Knitwear | I125: Printemps-Ete 2021 | J125: Seasonal Graphic | K125: 2 | L125: 495 | M125: 990
A126: High Definition Photos Upon Request | C126: FB55PU5423AE.95.S | D126: 3603679986476 | E126: S | F126: R.Men | G126: R.M.Jumper / Cardigan | H126: Knitwear | I126: Printemps-Ete 2021 | J126: Seasonal Graphic | K126: 1 | L126: 495 | M126: 495
A127: High Definition Photos Upon Request | C127: FB55PU5423AE.95.XL | D127: 3603679986469 | E127: XL | F127: R.Men | G127: R.M.Jumper / Cardigan | H127: Knitwear | I127: Printemps-Ete 2021 | J127: Seasonal Graphic | K127: 1 | L127: 495 | M127: 495
A128: High Definition Photos Upon Request | B128: FB55PU5503AA.56 | C128: FB55PU5503AA.56.L | D128: 3603679984014 | E128: L | F128: R.Men | G128: R.M.Jumper / Cardigan | H128: Knitwear | I128: Printemps-Ete 2021 | J128: Solid | K128: 1 | L128: 350 | M128: 350
A129: High Definition Photos Upon Request | C129: FB55PU5503AA.56.M | D129: 3603679984038 | E129: M | F129: R.Men | G129: R.M.Jumper / Cardigan | H129: Knitwear | I129: Printemps-Ete 2021 | J129: Solid | K129: 1 | L129: 350 | M129: 350
A130: High Definition Photos Upon Request | C130: FB55PU5503AA.56.S | D130: 3603679984069 | E130: S | F130: R.Men | G130: R.M.Jumper / Cardigan | H130: Knitwear | I130: Printemps-Ete 2021 | J130: Solid | K130: 1 | L130: 350 | M130: 350
A131: High Definition Photos Upon Request | C131: FB55PU5503AA.56.XL | D131: 3603679984045 | E131: XL | F131: R.Men | G131: R.M.Jumper / Cardigan | H131: Knitwear | I131: Printemps-Ete 2021 | J131: Solid | K131: 1 | L131: 350 | M131: =+K131*L131 -> 350
A132: High Definition Photos Upon Request | C132: FB55PU5503AA.56.XS | D132: 3603679984052 | E132: XS | F132: R.Men | G132: R.M.Jumper / Cardigan | H132: Knitwear | I132: Printemps-Ete 2021 | J132: Solid | K132: 1 | L132: 350 | M132: 350
A133: High Definition Photos Upon Request | B133: FB55PU5513CA.76 | C133: FB55PU5513CA.76.L | D133: 3603679984168 | E133: L | F133: R.Men | G133: R.M.Jumper / Cardigan | H133: Knitwear | I133: Printemps-Ete 2021 | J133: Solid | K133: 6 | L133: 370 | M133: 2220
A134: High Definition Photos Upon Request | C134: FB55PU5513CA.76.M | D134: 3603679984212 | E134: M | F134: R.Men | G134: R.M.Jumper / Cardigan | H134: Knitwear | I134: Printemps-Ete 2021 | J134: Solid | K134: 10 | L134: 370 | M134: 3700
A135: High Definition Photos Upon Request | C135: FB55PU5513CA.76.S | D135: 3603679984250 | E135: S | F135: R.Men | G135: R.M.Jumper / Cardigan | H135: Knitwear | I135: Printemps-Ete 2021 | J135: Solid | K135: 15 | L135: 370 | M135: 5550
A136: High Definition Photos Upon Request | C136: FB55PU5513CA.76.XL | D136: 3603679984175 | E136: XL | F136: R.Men | G136: R.M.Jumper / Cardigan | H136: Knitwear | I136: Printemps-Ete 2021 | J136: Solid | K136: 1 | L136: 370 | M136: 370
A137: High Definition Photos Upon Request | C137: FB55PU5513CA.76.XS | D137: 3603679984236 | E137: XS | F137: R.Men | G137: R.M.Jumper / Cardigan | H137: Knitwear | I137: Printemps-Ete 2021 | J137: Solid | K137: 5 | L137: 370 | M137: 1850
A138: High Definition Photos Upon Request | B138: FB55PU5523AC.39 | C138: FB55PU5523AC.39.L | D138: 3603679984274 | E138: L | F138: R.Men | G138: R.M.Jumper / Cardigan | H138: Knitwear | I138: Printemps-Ete 2021 | J138: Solid | K138: 3 | L138: 350 | M138: 1050
A139: High Definition Photos Upon Request | C139: FB55PU5523AC.39.M | D139: 3603679984380 | E139: M | F139: R.Men | G139: R.M.Jumper / Cardigan | H139: Knitwear | I139: Printemps-Ete 2021 | J139: Solid | K139: 3 | L139: 350 | M139: 1050
A140: High Definition Photos Upon Request | C140: FB55PU5523AC.39.S | D140: 3603679984267 | E140: S | F140: R.Men | G140: R.M.Jumper / Cardigan | H140: Knitwear | I140: Printemps-Ete 2021 | J140: Solid | K140: 2 | L140: 350 | M140: 700
A141: High Definition Photos Upon Request | C141: FB55PU5523AC.39.XL | D141: 3603679984403 | E141: XL | F141: R.Men | G141: R.M.Jumper / Cardigan | H141: Knitwear | I141: Printemps-Ete 2021 | J141: Solid | K141: 4 | L141: 350 | M141: 1400
A142: High Definition Photos Upon Request | C142: FB55PU5523AC.39.XS | D142: 3603679984298 | E142: XS | F142: R.Men | G142: R.M.Jumper / Cardigan | H142: Knitwear | I142: Printemps-Ete 2021 | J142: Solid | K142: 2 | L142: 350 | M142: 700
A143: High Definition Photos Upon Request | B143: FB55PU5523AC.67 | C143: FB55PU5523AC.67.L | D143: 3603679984304 | E143: L | F143: R.Men | G143: R.M.Jumper / Cardigan | H143: Knitwear | I143: Printemps-Ete 2021 | J143: Solid | K143: 1 | L143: 350 | M143: 350
A144: High Definition Photos Upon Request | C144: FB55PU5523AC.67.M | D144: 3603679984281 | E144: M | F144: R.Men | G144: R.M.Jumper / Cardigan | H144: Knitwear | I144: Printemps-Ete 2021 | J144: Solid | K144: 1 | L144: 350 | M144: 350
A145: High Definition Photos Upon Request | C145: FB55PU5523AC.67.S | D145: 3603679984397 | E145: S | F145: R.Men | G145: R.M.Jumper / Cardigan | H145: Knitwear | I145: Printemps-Ete 2021 | J145: Solid | K145: 1 | L145: 350 | M145: 350
A146: High Definition Photos Upon Request | C146: FB55PU5523AC.67.XL | D146: 3603679984373 | E146: XL | F146: R.Men | G146: R.M.Jumper / Cardigan | H146: Knitwear | I146: Printemps-Ete 2021 | J146: Solid | K146: 1 | L146: 350 | M146: 350
A147: High Definition Photos Upon Request | C147: FB55PU5523AC.67.XS | D147: 3603679984359 | E147: XS | F147: R.Men | G147: R.M.Jumper / Cardigan | H147: Knitwear | I147: Printemps-Ete 2021 | J147: Solid | K147: 1 | L147: 350 | M147: 350
A148: High Definition Photos Upon Request | B148: FB55PU5533AB.13 | C148: FB55PU5533AB.13.L | D148: 3603679984410 | E148: L | F148: R.Men | G148: R.M.Jumper / Cardigan | H148: Knitwear | I148: Printemps-Ete 2021 | J148: Solid | K148: 2 | L148: 320 | M148: 640
A149: High Definition Photos Upon Request | C149: FB55PU5533AB.13.S | D149: 3603679984472 | E149: S | F149: R.Men | G149: R.M.Jumper / Cardigan | H149: Knitwear | I149: Printemps-Ete 2021 | J149: Solid | K149: 3 | L149: 320 | M149: 960
A150: High Definition Photos Upon Request | C150: FB55PU5533AB.13.XL | D150: 3603679984496 | E150: XL | F150: R.Men | G150: R.M.Jumper / Cardigan | H150: Knitwear | I150: Printemps-Ete 2021 | J150: Solid | K150: 1 | L150: 320 | M150: 320
A151: High Definition Photos Upon Request | B151: FB55PU5543AB.49 | C151: FB55PU5543AB.49.L | D151: 3603679984557 | E151: L | F151: R.Men | G151: R.M.Jumper / Cardigan | H151: Knitwear | I151: Printemps-Ete 2021 | J151: Solid | K151: 1 | L151: 295 | M151: 295
A152: High Definition Photos Upon Request | C152: FB55PU5543AB.49.M | D152: 3603679984533 | E152: M | F152: R.Men | G152: R.M.Jumper / Cardigan | H152: Knitwear | I152: Printemps-Ete 2021 | J152: Solid | K152: 1 | L152: 295 | M152: 295
A153: High Definition Photos Upon Request | C153: FB55PU5543AB.49.S | D153: 3603679984526 | E153: S | F153: R.Men | G153: R.M.Jumper / Cardigan | H153: Knitwear | I153: Printemps-Ete 2021 | J153: Solid | K153: 1 | L153: 295 | M153: 295
A154: High Definition Photos Upon Request | C154: FB55PU5543AB.49.XS | D154: 3603679984519 | E154: XS | F154: R.Men | G154: R.M.Jumper / Cardigan | H154: Knitwear | I154: Printemps-Ete 2021 | J154: Solid | K154: 1 | L154: 295 | M154: 295
A155: High Definition Photos Upon Request | B155: FB55PU5803TB.99 | C155: FB55PU5803TB.99.S | D155: 3603679980627 | E155: S | F155: R.Men | G155: R.M.Jumper / Cardigan | H155: Knitwear | I155: Printemps-Ete 2021 | J155: Tiger Crest | K155: 4 | L155: 270 | M155: 1080
A156: High Definition Photos Upon Request | B156: FB55PU5813TB.56 | C156: FB55PU5813TB.56.M | D156: 3603679980733 | E156: M | F156: R.Men | G156: R.M.Jumper / Cardigan | H156: Knitwear | I156: Printemps-Ete 2021 | J156: Tiger Crest | K156: 10 | L156: 295 | M156: 2950
A157: High Definition Photos Upon Request | C157: FB55PU5813TB.56.S | D157: 3603679980696 | E157: S | F157: R.Men | G157: R.M.Jumper / Cardigan | H157: Knitwear | I157: Printemps-Ete 2021 | J157: Tiger Crest | K157: 12 | L157: 295 | M157: 3540
A158: High Definition Photos Upon Request | C158: FB55PU5813TB.56.XS | D158: 3603679980658 | E158: XS | F158: R.Men | G158: R.M.Jumper / Cardigan | H158: Knitwear | I158: Printemps-Ete 2021 | J158: Tiger Crest | K158: 4 | L158: 295 | M158: 1180
A159: High Definition Photos Upon Request | B159: FB55PU5813TB.61 | C159: FB55PU5813TB.61.M | D159: 3612230060241 | E159: M | F159: R.Men | G159: R.M.Jumper / Cardigan | H159: Knitwear | I159: Printemps-Ete 2021 | J159: Tiger Crest | K159: 2 | L159: 295 | M159: 590
A160: High Definition Photos Upon Request | C160: FB55PU5813TB.61.S | D160: 3612230060272 | E160: S | F160: R.Men | G160: R.M.Jumper / Cardigan | H160: Knitwear | I160: Printemps-Ete 2021 | J160: Tiger Crest | K160: 2 | L160: 295 | M160: 590
A161: High Definition Photos Upon Request | B161: FB55PU5813TB.67 | C161: FB55PU5813TB.67.L | D161: 3603679980672 | E161: L | F161: R.Men | G161: R.M.Jumper / Cardigan | H161: Knitwear | I161: Printemps-Ete 2021 | J161: Tiger Crest | K161: 2 | L161: 295 | M161: 590
A162: High Definition Photos Upon Request | C162: FB55PU5813TB.67.M | D162: 3603679980726 | E162: M | F162: R.Men | G162: R.M.Jumper / Cardigan | H162: Knitwear | I162: Printemps-Ete 2021 | J162: Tiger Crest | K162: 1 | L162: 295 | M162: 295
A163: High Definition Photos Upon Request | C163: FB55PU5813TB.67.S | D163: 3603679980740 | E163: S | F163: R.Men | G163: R.M.Jumper / Cardigan | H163: Knitwear | I163: Printemps-Ete 2021 | J163: Tiger Crest | K163: 3 | L163: 295 | M163: 885
A164: High Definition Photos Upon Request | B164: FB55PU5873TD.69 | C164: FB55PU5873TD.69.L | D164: 3612230084971 | E164: L | F164: R.Men | G164: R.M.Jumper / Cardigan | H164: Knitwear | I164: Printemps-Ete 2021 | J164: K-Tiger | K164: 14 | L164: 270 | M164: 3780
A165: High Definition Photos Upon Request | C165: FB55PU5873TD.69.M | D165: 3612230084964 | E165: M | F165: R.Men | G165: R.M.Jumper / Cardigan | H165: Knitwear | I165: Printemps-Ete 2021 | J165: K-Tiger | K165: 7 | L165: 270 | M165: 1890
A166: High Definition Photos Upon Request | C166: FB55PU5873TD.69.S | D166: 3612230085008 | E166: S | F166: R.Men | G166: R.M.Jumper / Cardigan | H166: Knitwear | I166: Printemps-Ete 2021 | J166: K-Tiger | K166: 11 | L166: 270 | M166: 2970
A167: High Definition Photos Upon Request | B167: FB65BL6373SD.78 | C167: FB65BL6373SD.78.L | D167: 3612230166868 | E167: L | F167: R.Men | G167: R.M.Jumper / Cardigan | H167: Knitwear | I167: Automne-Hiver 2021 | J167: Kenzo Sport | K167: 2 | L167: 395 | M167: 790
A168: High Definition Photos Upon Request | C168: FB65BL6373SD.78.M | D168: 3612230166844 | E168: M | F168: R.Men | G168: R.M.Jumper / Cardigan | H168: Knitwear | I168: Automne-Hiver 2021 | J168: Kenzo Sport | K168: 3 | L168: 395 | M168: 1185
A169: High Definition Photos Upon Request | C169: FB65BL6373SD.78.XL | D169: 3612230166851 | E169: XL | F169: R.Men | G169: R.M.Jumper / Cardigan | H169: Knitwear | I169: Automne-Hiver 2021 | J169: Kenzo Sport | K169: 2 | L169: 395 | M169: 790
A170: High Definition Photos Upon Request | C170: FB65BL6373SD.78.XS | D170: 3612230166813 | E170: XS | F170: R.Men | G170: R.M.Jumper / Cardigan | H170: Knitwear | I170: Automne-Hiver 2021 | J170: Kenzo Sport | K170: 2 | L170: 395 | M170: 790
A171: High Definition Photos Upon Request | B171: FB65BL6383SC.83 | C171: FB65BL6383SC.83.M | D171: 3612230195356 | E171: M | F171: R.Men | G171: R.M.Jumper / Cardigan | H171: Knitwear | I171: Automne-Hiver 2021 | J171: Kenzo Sport | K171: 1 | L171: 295 | M171: 295
A172: High Definition Photos Upon Request | B172: FB65PU6003CD.01 | C172: FB65PU6003CD.01.L | D172: 3612230152915 | E172: L | F172: R.Men | G172: R.M.Jumper / Cardigan | H172: Knitwear | I172: Automne-Hiver 2021 | J172: Print | K172: 4 | L172: 350 | M172: 1400
A173: High Definition Photos Upon Request | C173: FB65PU6003CD.01.M | D173: 3612230152946 | E173: M | F173: R.Men | G173: R.M.Jumper / Cardigan | H173: Knitwear | I173: Automne-Hiver 2021 | J173: Print | K173: 1 | L173: 350 | M173: 350
A174: High Definition Photos Upon Request | C174: FB65PU6003CD.01.S | D174: 3612230152854 | E174: S | F174: R.Men | G174: R.M.Jumper / Cardigan | H174: Knitwear | I174: Automne-Hiver 2021 | J174: Print | K174: 1 | L174: 350 | M174: 350
A175: High Definition Photos Upon Request | C175: FB65PU6003CD.01.XL | D175: 3612230152892 | E175: XL | F175: R.Men | G175: R.M.Jumper / Cardigan | H175: Knitwear | I175: Automne-Hiver 2021 | J175: Print | K175: 4 | L175: 350 | M175: 1400
A176: High Definition Photos Upon Request | B176: FB65PU6003CD.52 | C176: FB65PU6003CD.52.L | D176: 3612230152885 | E176: L | F176: R.Men | G176: R.M.Jumper / Cardigan | H176: Knitwear | I176: Automne-Hiver 2021 | J176: Print | K176: 2 | L176: 350 | M176: 700
A177: High Definition Photos Upon Request | C177: FB65PU6003CD.52.M | D177: 3612230152939 | E177: M | F177: R.Men | G177: R.M.Jumper / Cardigan | H177: Knitwear | I177: Automne-Hiver 2021 | J177: Print | K177: 5 | L177: 350 | M177: 1750
A178: High Definition Photos Upon Request | C178: FB65PU6003CD.52.S | D178: 3612230152878 | E178: S | F178: R.Men | G178: R.M.Jumper / Cardigan | H178: Knitwear | I178: Automne-Hiver 2021 | J178: Print | K178: 4 | L178: 350 | M178: 1400
A179: High Definition Photos Upon Request | C179: FB65PU6003CD.52.XS | D179: 3612230152861 | E179: XS | F179: R.Men | G179: R.M.Jumper / Cardigan | H179: Knitwear | I179: Automne-Hiver 2021 | J179: Print | K179: 1 | L179: 350 | M179: 350
A180: High Definition Photos Upon Request | B180: FB65PU6263CA.88 | C180: FB65PU6263CA.88.M | D180: 3612230153653 | E180: M | F180: R.Men | G180: R.M.Jumper / Cardigan | H180: Knitwear | I180: Automne-Hiver 2021 | J180: Print | K180: 2 | L180: 320 | M180: 640
A181: High Definition Photos Upon Request | C181: FB65PU6263CA.88.S | D181: 3612230153608 | E181: S | F181: R.Men | G181: R.M.Jumper / Cardigan | H181: Knitwear | I181: Automne-Hiver 2021 | J181: Print | K181: 1 | L181: 320 | M181: 320
A182: High Definition Photos Upon Request | C182: FB65PU6263CA.88.XL | D182: 3612230153639 | E182: XL | F182: R.Men | G182: R.M.Jumper / Cardigan | H182: Knitwear | I182: Automne-Hiver 2021 | J182: Print | K182: 7 | L182: 320 | M182: 2240
A183: High Definition Photos Upon Request | B183: FB65PU6363SC.16 | C183: FB65PU6363SC.16.L | D183: 3612230154292 | E183: L | F183: R.Men | G183: R.M.Jumper / Cardigan | H183: Knitwear | I183: Automne-Hiver 2021 | J183: Kenzo Sport | K183: 1 | L183: 250 | M183: 250
A184: High Definition Photos Upon Request | C184: FB65PU6363SC.16.XL | D184: 3612230154261 | E184: XL | F184: R.Men | G184: R.M.Jumper / Cardigan | H184: Knitwear | I184: Automne-Hiver 2021 | J184: Kenzo Sport | K184: 2 | L184: 250 | M184: 500
A185: High Definition Photos Upon Request | C185: FB65PU6363SC.16.XS | D185: 3612230154285 | E185: XS | F185: R.Men | G185: R.M.Jumper / Cardigan | H185: Knitwear | I185: Automne-Hiver 2021 | J185: Kenzo Sport | K185: 4 | L185: 250 | M185: 1000
A186: High Definition Photos Upon Request | B186: FB65PU6363SC.54 | C186: FB65PU6363SC.54.S | D186: 3612230183049 | E186: S | F186: R.Men | G186: R.M.Jumper / Cardigan | H186: Knitwear | I186: Automne-Hiver 2021 | J186: Kenzo Sport | K186: 1 | L186: 250 | M186: 250
A187: High Definition Photos Upon Request | C187: FB65PU6363SC.54.XL | D187: 3612230183025 | E187: XL | F187: R.Men | G187: R.M.Jumper / Cardigan | H187: Knitwear | I187: Automne-Hiver 2021 | J187: Kenzo Sport | K187: 3 | L187: 250 | M187: 750
A188: High Definition Photos Upon Request | C188: FB65PU6363SC.54.XS | D188: 3612230182981 | E188: XS | F188: R.Men | G188: R.M.Jumper / Cardigan | H188: Knitwear | I188: Automne-Hiver 2021 | J188: Kenzo Sport | K188: 8 | L188: 250 | M188: 2000
A189: High Definition Photos Upon Request | B189: FB65PU6363SC.83 | C189: FB65PU6363SC.83.L | D189: 3612230183056 | E189: L | F189: R.Men | G189: R.M.Jumper / Cardigan | H189: Knitwear | I189: Automne-Hiver 2021 | J189: Kenzo Sport | K189: 1 | L189: 250 | M189: 250
A190: High Definition Photos Upon Request | C190: FB65PU6363SC.83.XL | D190: 3612230183070 | E190: XL | F190: R.Men | G190: R.M.Jumper / Cardigan | H190: Knitwear | I190: Automne-Hiver 2021 | J190: Kenzo Sport | K190: 1 | L190: 250 | M190: 250
A191: High Definition Photos Upon Request | B191: FB65PU6383SC.54 | C191: FB65PU6383SC.54.M | D191: 3612230154438 | E191: M | F191: R.Men | G191: R.M.Jumper / Cardigan | H191: Knitwear | I191: Automne-Hiver 2021 | J191: Kenzo Sport | K191: 1 | L191: 220 | M191: 220
A192: High Definition Photos Upon Request | C192: FB65PU6383SC.54.S | D192: 3612230154421 | E192: S | F192: R.Men | G192: R.M.Jumper / Cardigan | H192: Knitwear | I192: Automne-Hiver 2021 | J192: Kenzo Sport | K192: 1 | L192: 220 | M192: 220
A193: High Definition Photos Upon Request | C193: FB65PU6383SC.54.XS | D193: 3612230154391 | E193: XS | F193: R.Men | G193: R.M.Jumper / Cardigan | H193: Knitwear | I193: Automne-Hiver 2021 | J193: Kenzo Sport | K193: 3 | L193: 220 | M193: 660
A194: High Definition Photos Upon Request | B194: FB65PU6383SC.78 | C194: FB65PU6383SC.78.L | D194: 3612230183117 | E194: L | F194: R.Men | G194: R.M.Jumper / Cardigan | H194: Knitwear | I194: Automne-Hiver 2021 | J194: Kenzo Sport | K194: 1 | L194: 220 | M194: 220
A195: High Definition Photos Upon Request | C195: FB65PU6383SC.78.M | D195: 3612230183179 | E195: M | F195: R.Men | G195: R.M.Jumper / Cardigan | H195: Knitwear | I195: Automne-Hiver 2021 | J195: Kenzo Sport | K195: 3 | L195: 220 | M195: =+K195*L195 -> 660
A196: High Definition Photos Upon Request | C196: FB65PU6383SC.78.S | D196: 3612230183094 | E196: S | F196: R.Men | G196: R.M.Jumper / Cardigan | H196: Knitwear | I196: Automne-Hiver 2021 | J196: Kenzo Sport | K196: 2 | L196: 220 | M196: 440
A197: High Definition Photos Upon Request | C197: FB65PU6383SC.78.XL | D197: 3612230183155 | E197: XL | F197: R.Men | G197: R.M.Jumper / Cardigan | H197: Knitwear | I197: Automne-Hiver 2021 | J197: Kenzo Sport | K197: 1 | L197: 220 | M197: 220
A198: High Definition Photos Upon Request | C198: FB65PU6383SC.78.XS | D198: 3612230183162 | E198: XS | F198: R.Men | G198: R.M.Jumper / Cardigan | H198: Knitwear | I198: Automne-Hiver 2021 | J198: Kenzo Sport | K198: 2 | L198: 220 | M198: 440
A199: High Definition Photos Upon Request | B199: FB65PU6393LA.04 | C199: FB65PU6393LA.04.L | D199: 3612230154582 | E199: L | F199: R.Men | G199: R.M.Jumper / Cardigan | H199: Knitwear | I199: Automne-Hiver 2021 | J199: Kenzo Logo | K199: 1 | L199: 270 | M199: 270
A200: High Definition Photos Upon Request | C200: FB65PU6393LA.04.M | D200: 3612230154544 | E200: M | F200: R.Men | G200: R.M.Jumper / Cardigan | H200: Knitwear | I200: Automne-Hiver 2021 | J200: Kenzo Logo | K200: 3 | L200: 270 | M200: 810
... 1495 more rows

Sheet RTW W
A1: Photos | B1: MTC | C1: Mtct | D1: EAN | E1: Size | F1: L2 Department | G1: L3 Category | H1: Knowhow new | I1: Creation season | J1: Universe | K1: Quantity | L1: Prix retail EUR | M1: TOT Prix retail EUR | N1: Purchase Order Quantity
A2: High Defintion Photos Available upon Request | B2: F652RO728951.93 | C2: F652RO728951.93.M | D2: 3603678385737 | E2: M | F2: R.Women | G2: R.W.Dress | H2: Jersey | I2: Printemps-Ete 2016 | J2: Kenzo Sport | K2: 2 | L2: 275 | M2: =+K2*L2 -> 550
A3: High Defintion Photos Available upon Request | B3: F662RO749985.97 | C3: F662RO749985.97.L | D3: 3603678602766 | E3: L | F3: R.Women | G3: R.W.Dress | H3: Jersey | I3: Automne-Hiver 2016 | J3: - | K3: 1 | L3: 195 | M3: =+K3*L3 -> 195
A4: High Defintion Photos Available upon Request | B4: F662RO780988.99 | C4: F662RO780988.99.L | D4: 3603678748136 | E4: L | F4: R.Women | G4: R.W.Dress | H4: Jersey | I4: Automne-Hiver 2016 | J4: Kenzo Signature | K4: 1 | L4: 155 | M4: 155
A5: High Defintion Photos Available upon Request | B5: F752RO0865AW.99 | C5: F752RO0865AW.99.44 | D5: 3603678806065 | E5: 44 | F5: R.Women | G5: R.W.Dress | H5: Woven | I5: Printemps-Ete 2017 | J5: - | K5: 1 | L5: 255 | M5: 255
A6: High Defintion Photos Available upon Request | B6: F752RO728952.01 | C6: F752RO728952.01.M | D6: 3603678840908 | E6: M | F6: R.Women | G6: R.W.Dress | H6: Jersey | I6: Printemps-Ete 2017 | J6: Kenzo Sport | K6: 1 | L6: 275 | M6: 275
A7: High Defintion Photos Available upon Request | B7: F752RO728952.32A | C7: F752RO728952.32A.M | D7: 3603679106324 | E7: M | F7: R.Women | G7: R.W.Dress | H7: Jersey | I7: Printemps-Ete 2018 | J7: Kenzo Sport | K7: 9 | L7: 275 | M7: 2475
A8: High Defintion Photos Available upon Request | B8: F752RO728952.93A | C8: F752RO728952.93A.M | D8: 3603679116941 | E8: M | F8: R.Women | G8: R.W.Dress | H8: Jersey | I8: Printemps-Ete 2018 | J8: Kenzo Sport | K8: 1 | L8: 275 | M8: 275
A9: High Defintion Photos Available upon Request | B9: F752RO728952.99 | C9: F752RO728952.99.M | D9: 3603678840830 | E9: M | F9: R.Women | G9: R.W.Dress | H9: Jersey | I9: Printemps-Ete 2017 | J9: Kenzo Sport | K9: 4 | L9: 275 | M9: 1100
A10: High Defintion Photos Available upon Request | C10: F752RO728952.99.S | D10: 3603678840847 | E10: S | F10: R.Women | G10: R.W.Dress | H10: Jersey | I10: Printemps-Ete 2017 | J10: Kenzo Sport | K10: 24 | L10: 275 | M10: 6600
A11: High Defintion Photos Available upon Request | C11: F752RO728952.99.XS | D11: 3603678840861 | E11: XS | F11: R.Women | G11: R.W.Dress | H11: Jersey | I11: Printemps-Ete 2017 | J11: Kenzo Sport | K11: 4 | L11: 275 | M11: 1100
A12: High Defintion Photos Available upon Request | B12: F762RO0155HK.83 | C12: F762RO0155HK.83.34 | D12: 3603679220846 | E12: 34 | F12: R.Women | G12: R.W.Dress | H12: Woven | I12: Automne-Hiver 2017 | J12: - | K12: 2 | L12: 490 | M12: 980
A13: High Defintion Photos Available upon Request | C13: F762RO0155HK.83.36 | D13: 3603679220860 | E13: 36 | F13: R.Women | G13: R.W.Dress | H13: Woven | I13: Automne-Hiver 2017 | J13: - | K13: 3 | L13: 490 | M13: 1470
A14: High Defintion Photos Available upon Request | C14: F762RO0155HK.83.38 | D14: 3603679220853 | E14: 38 | F14: R.Women | G14: R.W.Dress | H14: Woven | I14: Automne-Hiver 2017 | J14: - | K14: 1 | L14: 490 | M14: 490
A15: High Defintion Photos Available upon Request | C15: F762RO0155HK.83.40 | D15: 3603679220877 | E15: 40 | F15: R.Women | G15: R.W.Dress | H15: Woven | I15: Automne-Hiver 2017 | J15: - | K15: 1 | L15: 490 | M15: 490
A16: High Defintion Photos Available upon Request | B16: F762RO198525.75 | C16: F762RO198525.75.40 | D16: 3603679002473 | E16: 40 | F16: R.Women | G16: R.W.Dress | H16: Woven | I16: Automne-Hiver 2017 | J16: - | K16: 1 | L16: 450 | M16: 450
A17: High Defintion Photos Available upon Request | B17: F762RO814952.99 | C17: F762RO814952.99.M | D17: 3603679034160 | E17: M | F17: R.Women | G17: R.W.Dress | H17: Jersey | I17: Automne-Hiver 2017 | J17: Tiger Crest | K17: 3 | L17: 255 | M17: 765
A18: High Defintion Photos Available upon Request | B18: F851RO853995.32 | C18: F851RO853995.32.M | D18: 3603679240790 | E18: M | F18: R.Women | G18: R.W.Dress | H18: Jersey | I18: Printemps-Ete 2018 | J18: - | K18: 4 | L18: 175 | M18: 700
A19: High Defintion Photos Available upon Request | B19: F852RO0215AP.63 | C19: F852RO0215AP.63.40 | D19: 3603679146009 | E19: 40 | F19: R.Women | G19: R.W.Dress | H19: Woven | I19: Printemps-Ete 2018 | J19: - | K19: 1 | L19: 350 | M19: 350
A20: High Defintion Photos Available upon Request | B20: F852RO02453G.32 | C20: F852RO02453G.32.38 | D20: 3603679148775 | E20: 38 | F20: R.Women | G20: R.W.Dress | H20: Woven | I20: Printemps-Ete 2018 | J20: Print | K20: 1 | L20: 550 | M20: 550
A21: High Defintion Photos Available upon Request | B21: F852RO043521.57 | C21: F852RO043521.57.40 | D21: 3603679140557 | E21: 40 | F21: R.Women | G21: R.W.Dress | H21: Woven | I21: Printemps-Ete 2018 | J21: Print | K21: 1 | L21: 390 | M21: 390
A22: High Defintion Photos Available upon Request | B22: F852RO680852.99 | C22: F852RO680852.99.S | D22: 3603679176808 | E22: S | F22: R.Women | G22: R.W.Dress | H22: Knitwear | I22: Printemps-Ete 2018 | J22: - | K22: 1 | L22: 350 | M22: 350
A23: High Defintion Photos Available upon Request | B23: F852RO684842.99 | C23: F852RO684842.99.M | D23: 3603679163105 | E23: M | F23: R.Women | G23: R.W.Dress | H23: Knitwear | I23: Printemps-Ete 2018 | J23: - | K23: 1 | L23: 390 | M23: 390
A24: High Defintion Photos Available upon Request | B24: F852RO831952.99 | C24: F852RO831952.99.M | D24: 3603679114022 | E24: M | F24: R.Women | G24: R.W.Dress | H24: Jersey | I24: Printemps-Ete 2018 | J24: Tiger Crest | K24: 4 | L24: 255 | M24: 1020
A25: High Defintion Photos Available upon Request | B25: F861RO410813.MU | C25: F861RO410813.MU.M | D25: 3603679397814 | E25: M | F25: R.Women | G25: R.W.Dress | H25: Knitwear | I25: Automne-Hiver 2018 | J25: - | K25: 1 | L25: 490 | M25: 490
A26: High Defintion Photos Available upon Request | B26: F862RO06255A.33 | C26: F862RO06255A.33.40 | D26: 3603679262143 | E26: 40 | F26: R.Women | G26: R.W.Dress | H26: Woven | I26: Automne-Hiver 2018 | J26: Print | K26: 1 | L26: 350 | M26: 350
A27: High Defintion Photos Available upon Request | B27: F862RO089530.01 | C27: F862RO089530.01.40 | D27: 3603679395384 | E27: 40 | F27: R.Women | G27: R.W.Dress | H27: Woven | I27: Automne-Hiver 2018 | J27: - | K27: 1 | L27: 390 | M27: 390
A28: High Defintion Photos Available upon Request | B28: F862RO091530.21 | C28: F862RO091530.21.40 | D28: 3603679395544 | E28: 40 | F28: R.Women | G28: R.W.Dress | H28: Woven | I28: Automne-Hiver 2018 | J28: - | K28: 2 | L28: 350 | M28: 700
A29: High Defintion Photos Available upon Request | B29: F862RO402842.21 | C29: F862RO402842.21.M | D29: 3603679316075 | E29: M | F29: R.Women | G29: R.W.Dress | H29: Knitwear | I29: Automne-Hiver 2018 | J29: - | K29: 3 | L29: 390 | M29: 1170
A30: High Defintion Photos Available upon Request | B30: F862RO814952.99 | C30: F862RO814952.99.M | D30: 3603679327354 | E30: M | F30: R.Women | G30: R.W.Dress | H30: Jersey | I30: Automne-Hiver 2018 | J30: Tiger Crest | K30: 2 | L30: 255 | M30: 510
A31: High Defintion Photos Available upon Request | C31: F862RO814952.99.S | D31: 3603679327330 | E31: S | F31: R.Women | G31: R.W.Dress | H31: Jersey | I31: Automne-Hiver 2018 | J31: Tiger Crest | K31: 1 | L31: 255 | M31: 255
A32: High Defintion Photos Available upon Request | C32: F862RO814952.99.XS | D32: 3603679327323 | E32: XS | F32: R.Women | G32: R.W.Dress | H32: Jersey | I32: Automne-Hiver 2018 | J32: Tiger Crest | K32: 1 | L32: 255 | M32: 255
A33: High Defintion Photos Available upon Request | B33: F862RO854922.24 | C33: F862RO854922.24.M | D33: 3603679534097 | E33: M | F33: R.Women | G33: R.W.Dress | H33: Jersey | I33: Automne-Hiver 2018 | J33: - | K33: 2 | L33: 490 | M33: 980
A34: High Defintion Photos Available upon Request | B34: F862RO8674XL.88 | C34: F862RO8674XL.88.L | D34: 3603679352257 | E34: L | F34: R.Women | G34: R.W.Dress | H34: Jersey | I34: Automne-Hiver 2018 | J34: Jumping Tiger | K34: 1 | L34: 355 | M34: 355
A35: High Defintion Photos Available upon Request | C35: F862RO8674XL.88.M | D35: 3603679352226 | E35: M | F35: R.Women | G35: R.W.Dress | H35: Jersey | I35: Automne-Hiver 2018 | J35: Jumping Tiger | K35: 4 | L35: 355 | M35: 1420
A36: High Defintion Photos Available upon Request | B36: F862RO8704YE.99 | C36: F862RO8704YE.99.L | D36: 3603679352387 | E36: L | F36: R.Women | G36: R.W.Dress | H36: Jersey | I36: Automne-Hiver 2018 | J36: Tiger | K36: 23 | L36: 200 | M36: 4600
A37: High Defintion Photos Available upon Request | C37: F862RO8704YE.99.M | D37: 3603679352424 | E37: M | F37: R.Women | G37: R.W.Dress | H37: Jersey | I37: Automne-Hiver 2018 | J37: Tiger | K37: 171 | L37: 200 | M37: 34200
A38: High Defintion Photos Available upon Request | C38: F862RO8704YE.99.S | D38: 3603679352363 | E38: S | F38: R.Women | G38: R.W.Dress | H38: Jersey | I38: Automne-Hiver 2018 | J38: Tiger | K38: 149 | L38: 200 | M38: 29800
A39: High Defintion Photos Available upon Request | C39: F862RO8704YE.99.XL | D39: 3603679352400 | E39: XL | F39: R.Women | G39: R.W.Dress | H39: Jersey | I39: Automne-Hiver 2018 | J39: Tiger | K39: 1 | L39: 200 | M39: 200
A40: High Defintion Photos Available upon Request | C40: F862RO8704YE.99.XS | D40: 3603679352417 | E40: XS | F40: R.Women | G40: R.W.Dress | H40: Jersey | I40: Automne-Hiver 2018 | J40: Tiger | K40: 82 | L40: 200 | M40: 16400
A41: High Defintion Photos Available upon Request | B41: F862RO8774XQ.99 | C41: F862RO8774XQ.99.M | D41: 3603679404062 | E41: M | F41: R.Women | G41: R.W.Dress | H41: Jersey | I41: Automne-Hiver 2018 | J41: Multi Logos | K41: 1 | L41: 375 | M41: 375
A42: High Defintion Photos Available upon Request | B42: F862RO893922.77 | C42: F862RO893922.77.M | D42: 3603679534608 | E42: M | F42: R.Women | G42: R.W.Dress | H42: Jersey | I42: Automne-Hiver 2018 | J42: - | K42: 1 | L42: 390 | M42: 390
A43: High Defintion Photos Available upon Request | B43: F952RO0645AC.74 | C43: F952RO0645AC.74.XS | D43: 3603679436643 | E43: XS | F43: R.Women | G43: R.W.Dress | H43: Woven | I43: Printemps-Ete 2019 | J43: Tiger | K43: 1 | L43: 420 | M43: 420
A44: High Defintion Photos Available upon Request | B44: F952RO421844.01 | C44: F952RO421844.01.S | D44: 3603679496913 | E44: S | F44: R.Women | G44: R.W.Dress | H44: Knitwear | I44: Printemps-Ete 2019 | J44: Print | K44: 1 | L44: 420 | M44: 420
A45: High Defintion Photos Available upon Request | B45: F962RO7344XO.27 | C45: F962RO7344XO.27.XL | D45: 3603679672119 | E45: XL | F45: R.Women | G45: R.W.Dress | H45: Jersey | I45: Automne-Hiver 2019 | J45: Tiger | K45: 1 | L45: 375 | M45: 375
A46: High Defintion Photos Available upon Request | B46: F962RO8514YI.99 | C46: F962RO8514YI.99.L | D46: 3603679672485 | E46: L | F46: R.Women | G46: R.W.Dress | H46: Jersey | I46: Automne-Hiver 2019 | J46: Tiger | K46: 4 | L46: 150 | M46: 600
A47: High Defintion Photos Available upon Request | C47: F962RO8514YI.99.M | D47: 3603679672454 | E47: M | F47: R.Women | G47: R.W.Dress | H47: Jersey | I47: Automne-Hiver 2019 | J47: Tiger | K47: 2 | L47: 150 | M47: 300
A48: High Defintion Photos Available upon Request | C48: F962RO8514YI.99.S | D48: 3603679672461 | E48: S | F48: R.Women | G48: R.W.Dress | H48: Jersey | I48: Automne-Hiver 2019 | J48: Tiger | K48: 3 | L48: 150 | M48: 450
A49: High Defintion Photos Available upon Request | C49: F962RO8514YI.99.XL | D49: 3603679672478 | E49: XL | F49: R.Women | G49: R.W.Dress | H49: Jersey | I49: Automne-Hiver 2019 | J49: Tiger | K49: 1 | L49: 150 | M49: 150
A50: High Defintion Photos Available upon Request | C50: F962RO8514YI.99.XS | D50: 3603679672447 | E50: XS | F50: R.Women | G50: R.W.Dress | H50: Jersey | I50: Automne-Hiver 2019 | J50: Tiger | K50: 2 | L50: 150 | M50: 300
A51: High Defintion Photos Available upon Request | B51: FA52RO511842.36 | C51: FA52RO511842.36.S | D51: 3603679788599 | E51: S | F51: R.Women | G51: R.W.Dress | H51: Knitwear | I51: Printemps-Ete 2020 | J51: - | K51: 1 | L51: 350 | M51: 350
A52: High Defintion Photos Available upon Request | B52: FA52RO7524YG.32 | C52: FA52RO7524YG.32.L | D52: 3603679788810 | E52: L | F52: R.Women | G52: R.W.Dress | H52: Jersey | I52: Printemps-Ete 2020 | J52: Tiger | K52: 6 | L52: 190 | M52: 1140
A53: High Defintion Photos Available upon Request | C53: FA52RO7524YG.32.M | D53: 3603679788872 | E53: M | F53: R.Women | G53: R.W.Dress | H53: Jersey | I53: Printemps-Ete 2020 | J53: Tiger | K53: 18 | L53: 190 | M53: 3420
A54: High Defintion Photos Available upon Request | C54: FA52RO7524YG.32.S | D54: 3603679788896 | E54: S | F54: R.Women | G54: R.W.Dress | H54: Jersey | I54: Printemps-Ete 2020 | J54: Tiger | K54: 23 | L54: 190 | M54: 4370
A55: High Defintion Photos Available upon Request | C55: FA52RO7524YG.32.XS | D55: 3603679788827 | E55: XS | F55: R.Women | G55: R.W.Dress | H55: Jersey | I55: Printemps-Ete 2020 | J55: Tiger | K55: 6 | L55: 190 | M55: 1140
A56: High Defintion Photos Available upon Request | B56: FA52RO7524YG.37 | C56: FA52RO7524YG.37.L | D56: 3603679788865 | E56: L | F56: R.Women | G56: R.W.Dress | H56: Jersey | I56: Printemps-Ete 2020 | J56: Tiger | K56: 5 | L56: 190 | M56: 950
A57: High Defintion Photos Available upon Request | C57: FA52RO7524YG.37.M | D57: 3603679788889 | E57: M | F57: R.Women | G57: R.W.Dress | H57: Jersey | I57: Printemps-Ete 2020 | J57: Tiger | K57: 8 | L57: 190 | M57: 1520
A58: High Defintion Photos Available upon Request | C58: FA52RO7524YG.37.S | D58: 3603679788902 | E58: S | F58: R.Women | G58: R.W.Dress | H58: Jersey | I58: Printemps-Ete 2020 | J58: Tiger | K58: 16 | L58: 190 | M58: 3040
A59: High Defintion Photos Available upon Request | C59: FA52RO7524YG.37.XS | D59: 3603679788834 | E59: XS | F59: R.Women | G59: R.W.Dress | H59: Jersey | I59: Printemps-Ete 2020 | J59: Tiger | K59: 10 | L59: 190 | M59: 1900
A60: High Defintion Photos Available upon Request | B60: FA52RO8354XA.99 | C60: FA52RO8354XA.99.M | D60: 3603679789060 | E60: M | F60: R.Women | G60: R.W.Dress | H60: Jersey | I60: Printemps-Ete 2020 | J60: Tiger | K60: 13 | L60: 275 | M60: 3575
A61: High Defintion Photos Available upon Request | B61: FA52RO8514YE.99 | C61: FA52RO8514YE.99.L | D61: 3603679789152 | E61: L | F61: R.Women | G61: R.W.Dress | H61: Jersey | I61: Printemps-Ete 2020 | J61: Tiger | K61: 4 | L61: 195 | M61: 780
A62: High Defintion Photos Available upon Request | C62: FA52RO8514YE.99.M | D62: 3603679789169 | E62: M | F62: R.Women | G62: R.W.Dress | H62: Jersey | I62: Printemps-Ete 2020 | J62: Tiger | K62: 1 | L62: 195 | M62: 195
A63: High Defintion Photos Available upon Request | C63: FA52RO8514YE.99.S | D63: 3603679789220 | E63: S | F63: R.Women | G63: R.W.Dress | H63: Jersey | I63: Printemps-Ete 2020 | J63: Tiger | K63: 1 | L63: 195 | M63: 195
A64: High Defintion Photos Available upon Request | C64: FA52RO8514YE.99.XL | D64: 3603679789190 | E64: XL | F64: R.Women | G64: R.W.Dress | H64: Jersey | I64: Printemps-Ete 2020 | J64: Tiger | K64: 1 | L64: 195 | M64: 195
A65: High Defintion Photos Available upon Request | C65: FA52RO8514YE.99.XS | D65: 3603679789138 | E65: XS | F65: R.Women | G65: R.W.Dress | H65: Jersey | I65: Printemps-Ete 2020 | J65: Tiger | K65: 15 | L65: 195 | M65: 2925
A66: High Defintion Photos Available upon Request | C66: FA52RO8514YE.99.XXS | D66: 3603679789244 | E66: XXS | F66: R.Women | G66: R.W.Dress | H66: Jersey | I66: Printemps-Ete 2020 | J66: Tiger | K66: 2 | L66: 195 | M66: 390
A67: High Defintion Photos Available upon Request | B67: FA62RO0079CX.34 | C67: FA62RO0079CX.34.42 | D67: 3603679863890 | E67: 42 | F67: R.Women | G67: R.W.Dress | H67: Woven | I67: Automne-Hiver 2020 | J67: Solid | K67: 1 | L67: 350 | M67: =+K67*L67 -> 350
A68: High Defintion Photos Available upon Request | B68: FA62RO0095AF.99 | C68: FA62RO0095AF.99.38 | D68: 3603679864262 | E68: 38 | F68: R.Women | G68: R.W.Dress | H68: Woven | I68: Automne-Hiver 2020 | J68: Solid | K68: 1 | L68: 450 | M68: 450
A69: High Defintion Photos Available upon Request | B69: FA62RO010521.53 | C69: FA62RO010521.53.34 | D69: 3603679856687 | E69: 34 | F69: R.Women | G69: R.W.Dress | H69: Woven | I69: Automne-Hiver 2020 | J69: Print | K69: 2 | L69: 590 | M69: 1180
A70: High Defintion Photos Available upon Request | C70: FA62RO010521.53.36 | D70: 3603679856694 | E70: 36 | F70: R.Women | G70: R.W.Dress | H70: Woven | I70: Automne-Hiver 2020 | J70: Print | K70: 1 | L70: 590 | M70: 590
A71: High Defintion Photos Available upon Request | C71: FA62RO010521.53.38 | D71: 3603679856663 | E71: 38 | F71: R.Women | G71: R.W.Dress | H71: Woven | I71: Automne-Hiver 2020 | J71: Print | K71: 2 | L71: 590 | M71: 1180
A72: High Defintion Photos Available upon Request | C72: FA62RO010521.53.40 | D72: 3603679856717 | E72: 40 | F72: R.Women | G72: R.W.Dress | H72: Woven | I72: Automne-Hiver 2020 | J72: Print | K72: 4 | L72: 590 | M72: 2360
A73: High Defintion Photos Available upon Request | C73: FA62RO010521.53.42 | D73: 3603679856670 | E73: 42 | F73: R.Women | G73: R.W.Dress | H73: Woven | I73: Automne-Hiver 2020 | J73: Print | K73: 4 | L73: 590 | M73: 2360
A74: High Defintion Photos Available upon Request | B74: FA62RO013521.17 | C74: FA62RO013521.17.34 | D74: 3603679872403 | E74: 34 | F74: R.Women | G74: R.W.Dress | H74: Woven | I74: Automne-Hiver 2020 | J74: Print | K74: 1 | L74: 490 | M74: 490
A75: High Defintion Photos Available upon Request | C75: FA62RO013521.17.38 | D75: 3603679872397 | E75: 38 | F75: R.Women | G75: R.W.Dress | H75: Woven | I75: Automne-Hiver 2020 | J75: Print | K75: 1 | L75: 490 | M75: 490
A76: High Defintion Photos Available upon Request | B76: FA62RO0141LK.03 | C76: FA62RO0141LK.03.36 | D76: 3603679906733 | E76: 36 | F76: R.Women | G76: R.W.Dress | H76: Woven | I76: Automne-Hiver 2020 | J76: Solid | K76: 1 | L76: 390 | M76: 390
A77: High Defintion Photos Available upon Request | B77: FA62RO01551A.73 | C77: FA62RO01551A.73.34 | D77: 3603679909512 | E77: 34 | F77: R.Women | G77: R.W.Dress | H77: Woven | I77: Automne-Hiver 2020 | J77: Print | K77: 1 | L77: 390 | M77: 390
A78: High Defintion Photos Available upon Request | C78: FA62RO01551A.73.36 | D78: 3603679909604 | E78: 36 | F78: R.Women | G78: R.W.Dress | H78: Woven | I78: Automne-Hiver 2020 | J78: Print | K78: 2 | L78: 390 | M78: 780
A79: High Defintion Photos Available upon Request | C79: FA62RO01551A.73.38 | D79: 3603679909475 | E79: 38 | F79: R.Women | G79: R.W.Dress | H79: Woven | I79: Automne-Hiver 2020 | J79: Print | K79: 2 | L79: 390 | M79: 780
A80: High Defintion Photos Available upon Request | C80: FA62RO01551A.73.40 | D80: 3603679909505 | E80: 40 | F80: R.Women | G80: R.W.Dress | H80: Woven | I80: Automne-Hiver 2020 | J80: Print | K80: 1 | L80: 390 | M80: 390
A81: High Defintion Photos Available upon Request | C81: FA62RO01551A.73.42 | D81: 3603679909499 | E81: 42 | F81: R.Women | G81: R.W.Dress | H81: Woven | I81: Automne-Hiver 2020 | J81: Print | K81: 2 | L81: 390 | M81: 780
A82: High Defintion Photos Available upon Request | B82: FA62RO0179PF.67 | C82: FA62RO0179PF.67.34 | D82: 3603679940089 | E82: 34 | F82: R.Women | G82: R.W.Dress | H82: Woven | I82: Automne-Hiver 2020 | J82: Print | K82: 1 | L82: 590 | M82: 590
A83: High Defintion Photos Available upon Request | C83: FA62RO0179PF.67.36 | D83: 3603679940058 | E83: 36 | F83: R.Women | G83: R.W.Dress | H83: Woven | I83: Automne-Hiver 2020 | J83: Print | K83: 1 | L83: 590 | M83: 590
A84: High Defintion Photos Available upon Request | C84: FA62RO0179PF.67.38 | D84: 3603679940133 | E84: 38 | F84: R.Women | G84: R.W.Dress | H84: Woven | I84: Automne-Hiver 2020 | J84: Print | K84: 1 | L84: 590 | M84: 590
A85: High Defintion Photos Available upon Request | C85: FA62RO0179PF.67.40 | D85: 3603679940102 | E85: 40 | F85: R.Women | G85: R.W.Dress | H85: Woven | I85: Automne-Hiver 2020 | J85: Print | K85: 1 | L85: 590 | M85: 590
A86: High Defintion Photos Available upon Request | C86: FA62RO0179PF.67.42 | D86: 3603679940126 | E86: 42 | F86: R.Women | G86: R.W.Dress | H86: Woven | I86: Automne-Hiver 2020 | J86: Print | K86: 1 | L86: 590 | M86: 590
A87: High Defintion Photos Available upon Request | B87: FA62RO0191RC.90 | C87: FA62RO0191RC.90.36 | D87: 3603679864606 | E87: 36 | F87: R.Women | G87: R.W.Dress | H87: Woven | I87: Automne-Hiver 2020 | J87: Solid | K87: 1 | L87: 450 | M87: 450
A88: High Defintion Photos Available upon Request | C88: FA62RO0191RC.90.38 | D88: 3603679864583 | E88: 38 | F88: R.Women | G88: R.W.Dress | H88: Woven | I88: Automne-Hiver 2020 | J88: Solid | K88: 2 | L88: 450 | M88: 900
A89: High Defintion Photos Available upon Request | B89: FA62RO02253C.03 | C89: FA62RO02253C.03.34 | D89: 3603679854102 | E89: 34 | F89: R.Women | G89: R.W.Dress | H89: Woven | I89: Automne-Hiver 2020 | J89: Print | K89: 2 | L89: 490 | M89: 980
A90: High Defintion Photos Available upon Request | C90: FA62RO02253C.03.36 | D90: 3603679854140 | E90: 36 | F90: R.Women | G90: R.W.Dress | H90: Woven | I90: Automne-Hiver 2020 | J90: Print | K90: 1 | L90: 490 | M90: 490
A91: High Defintion Photos Available upon Request | C91: FA62RO02253C.03.38 | D91: 3603679854119 | E91: 38 | F91: R.Women | G91: R.W.Dress | H91: Woven | I91: Automne-Hiver 2020 | J91: Print | K91: 1 | L91: 490 | M91: 490
A92: High Defintion Photos Available upon Request | C92: FA62RO02253C.03.40 | D92: 3603679854133 | E92: 40 | F92: R.Women | G92: R.W.Dress | H92: Woven | I92: Automne-Hiver 2020 | J92: Print | K92: 1 | L92: 490 | M92: 490
A93: High Defintion Photos Available upon Request | C93: FA62RO02253C.03.42 | D93: 3603679854096 | E93: 42 | F93: R.Women | G93: R.W.Dress | H93: Woven | I93: Automne-Hiver 2020 | J93: Print | K93: 2 | L93: 490 | M93: 980
A94: High Defintion Photos Available upon Request | C94: FA62RO02253C.03.44 | D94: 3603679854126 | E94: 44 | F94: R.Women | G94: R.W.Dress | H94: Woven | I94: Automne-Hiver 2020 | J94: Print | K94: 1 | L94: 490 | M94: 490
A95: High Defintion Photos Available upon Request | B95: FA62RO7494JI.25 | C95: FA62RO7494JI.25.M | D95: 3603679873059 | E95: M | F95: R.Women | G95: R.W.Dress | H95: Jersey | I95: Automne-Hiver 2020 | J95: Print | K95: 1 | L95: 250 | M95: 250
A96: High Defintion Photos Available upon Request | B96: FA62RO7634MD.94 | C96: FA62RO7634MD.94.L | D96: 3603679873622 | E96: L | F96: R.Women | G96: R.W.Dress | H96: Jersey | I96: Automne-Hiver 2020 | J96: Tiger Crest | K96: 2 | L96: 270 | M96: 540
A97: High Defintion Photos Available upon Request | C97: FA62RO7634MD.94.M | D97: 3603679873653 | E97: M | F97: R.Women | G97: R.W.Dress | H97: Jersey | I97: Automne-Hiver 2020 | J97: Tiger Crest | K97: 32 | L97: 270 | M97: 8640
A98: High Defintion Photos Available upon Request | C98: FA62RO7634MD.94.S | D98: 3603679873691 | E98: S | F98: R.Women | G98: R.W.Dress | H98: Jersey | I98: Automne-Hiver 2020 | J98: Tiger Crest | K98: 52 | L98: 270 | M98: 14040
A99: High Defintion Photos Available upon Request | C99: FA62RO7634MD.94.XS | D99: 3603679873714 | E99: XS | F99: R.Women | G99: R.W.Dress | H99: Jersey | I99: Automne-Hiver 2020 | J99: Tiger Crest | K99: 1 | L99: 270 | M99: 270
A100: High Defintion Photos Available upon Request | B100: FA62RO7644VR.53 | C100: FA62RO7644VR.53.L | D100: 3603679873813 | E100: L | F100: R.Women | G100: R.W.Dress | H100: Jersey | I100: Automne-Hiver 2020 | J100: Solid | K100: 20 | L100: 250 | M100: 5000
A101: High Defintion Photos Available upon Request | C101: FA62RO7644VR.53.M | D101: 3603679873769 | E101: M | F101: R.Women | G101: R.W.Dress | H101: Jersey | I101: Automne-Hiver 2020 | J101: Solid | K101: 30 | L101: 250 | M101: 7500
A102: High Defintion Photos Available upon Request | C102: FA62RO7644VR.53.S | D102: 3603679873721 | E102: S | F102: R.Women | G102: R.W.Dress | H102: Jersey | I102: Automne-Hiver 2020 | J102: Solid | K102: 24 | L102: 250 | M102: 6000
A103: High Defintion Photos Available upon Request | C103: FA62RO7644VR.53.XS | D103: 3603679873752 | E103: XS | F103: R.Women | G103: R.W.Dress | H103: Jersey | I103: Automne-Hiver 2020 | J103: Solid | K103: 23 | L103: 250 | M103: 5750
A104: High Defintion Photos Available upon Request | B104: FA62RO7644VR.88 | C104: FA62RO7644VR.88.L | D104: 3603679873790 | E104: L | F104: R.Women | G104: R.W.Dress | H104: Jersey | I104: Automne-Hiver 2020 | J104: Solid | K104: 20 | L104: 250 | M104: 5000
A105: High Defintion Photos Available upon Request | C105: FA62RO7644VR.88.M | D105: 3603679873806 | E105: M | F105: R.Women | G105: R.W.Dress | H105: Jersey | I105: Automne-Hiver 2020 | J105: Solid | K105: 34 | L105: 250 | M105: 8500
A106: High Defintion Photos Available upon Request | C106: FA62RO7644VR.88.S | D106: 3603679873776 | E106: S | F106: R.Women | G106: R.W.Dress | H106: Jersey | I106: Automne-Hiver 2020 | J106: Solid | K106: 31 | L106: 250 | M106: 7750
A107: High Defintion Photos Available upon Request | C107: FA62RO7644VR.88.XS | D107: 3603679873738 | E107: XS | F107: R.Women | G107: R.W.Dress | H107: Jersey | I107: Automne-Hiver 2020 | J107: Solid | K107: 11 | L107: 250 | M107: 2750
A108: High Defintion Photos Available upon Request | B108: FA62RO7684SJ.65 | C108: FA62RO7684SJ.65.L | D108: 3612230233096 | E108: L | F108: R.Women | G108: R.W.Dress | H108: Jersey | I108: Printemps-Ete 2022 | J108: Kenzo Sport | K108: 1 | L108: 180 | M108: 180
A109: High Defintion Photos Available upon Request | B109: FA62RO7684SJ.70 | C109: FA62RO7684SJ.70.M | D109: 3603679964757 | E109: M | F109: R.Women | G109: R.W.Dress | H109: Jersey | I109: Printemps-Ete 2021 | J109: Kenzo Sport | K109: 4 | L109: 180 | M109: 720
A110: High Defintion Photos Available upon Request | C110: FA62RO7684SJ.70.S | D110: 3603679964771 | E110: S | F110: R.Women | G110: R.W.Dress | H110: Jersey | I110: Printemps-Ete 2021 | J110: Kenzo Sport | K110: 19 | L110: 180 | M110: 3420
A111: High Defintion Photos Available upon Request | C111: FA62RO7684SJ.70.XS | D111: 3603679964740 | E111: XS | F111: R.Women | G111: R.W.Dress | H111: Jersey | I111: Printemps-Ete 2021 | J111: Kenzo Sport | K111: 9 | L111: 180 | M111: 1620
A112: High Defintion Photos Available upon Request | B112: FA62RO7684SJ.99 | C112: FA62RO7684SJ.99.L | D112: 3603679873929 | E112: L | F112: R.Women | G112: R.W.Dress | H112: Jersey | I112: Automne-Hiver 2020 | J112: Kenzo Sport | K112: 21 | L112: 180 | M112: 3780
A113: High Defintion Photos Available upon Request | C113: FA62RO7684SJ.99.M | D113: 3603679873912 | E113: M | F113: R.Women | G113: R.W.Dress | H113: Jersey | I113: Automne-Hiver 2020 | J113: Kenzo Sport | K113: 31 | L113: 180 | M113: 5580
A114: High Defintion Photos Available upon Request | C114: FA62RO7684SJ.99.S | D114: 3603679873950 | E114: S | F114: R.Women | G114: R.W.Dress | H114: Jersey | I114: Automne-Hiver 2020 | J114: Kenzo Sport | K114: 48 | L114: 180 | M114: 8640
A115: High Defintion Photos Available upon Request | C115: FA62RO7684SJ.99.XS | D115: 3603679873943 | E115: XS | F115: R.Women | G115: R.W.Dress | H115: Jersey | I115: Automne-Hiver 2020 | J115: Kenzo Sport | K115: 26 | L115: 180 | M115: 4680
A116: High Defintion Photos Available upon Request | B116: FA62RO7724MO.76 | C116: FA62RO7724MO.76.L | D116: 3603679873974 | E116: L | F116: R.Women | G116: R.W.Dress | H116: Jersey | I116: Automne-Hiver 2020 | J116: Kenzo Logo | K116: 11 | L116: 350 | M116: 3850
A117: High Defintion Photos Available upon Request | C117: FA62RO7724MO.76.M | D117: 3603679873981 | E117: M | F117: R.Women | G117: R.W.Dress | H117: Jersey | I117: Automne-Hiver 2020 | J117: Kenzo Logo | K117: 24 | L117: 350 | M117: 8400
A118: High Defintion Photos Available upon Request | C118: FA62RO7724MO.76.S | D118: 3603679874155 | E118: S | F118: R.Women | G118: R.W.Dress | H118: Jersey | I118: Automne-Hiver 2020 | J118: Kenzo Logo | K118: 51 | L118: 350 | M118: 17850
A119: High Defintion Photos Available upon Request | C119: FA62RO7724MO.76.XL | D119: 3603679874056 | E119: XL | F119: R.Women | G119: R.W.Dress | H119: Jersey | I119: Automne-Hiver 2020 | J119: Kenzo Logo | K119: 4 | L119: 350 | M119: 1400
A120: High Defintion Photos Available upon Request | C120: FA62RO7724MO.76.XS | D120: 3603679874148 | E120: XS | F120: R.Women | G120: R.W.Dress | H120: Jersey | I120: Automne-Hiver 2020 | J120: Kenzo Logo | K120: 20 | L120: 350 | M120: 7000
A121: High Defintion Photos Available upon Request | B121: FA62RO7724MO.76A | C121: FA62RO7724MO.76A.L | D121: 3603679967215 | E121: L | F121: R.Women | G121: R.W.Dress | H121: Jersey | I121: Printemps-Ete 2021 | J121: Kenzo Logo | K121: 6 | L121: 350 | M121: 2100
A122: High Defintion Photos Available upon Request | C122: FA62RO7724MO.76A.M | D122: 3603679967239 | E122: M | F122: R.Women | G122: R.W.Dress | H122: Jersey | I122: Printemps-Ete 2021 | J122: Kenzo Logo | K122: 8 | L122: 350 | M122: 2800
A123: High Defintion Photos Available upon Request | C123: FA62RO7724MO.76A.S | D123: 3603679967246 | E123: S | F123: R.Women | G123: R.W.Dress | H123: Jersey | I123: Printemps-Ete 2021 | J123: Kenzo Logo | K123: 39 | L123: 350 | M123: 13650
A124: High Defintion Photos Available upon Request | C124: FA62RO7724MO.76A.XL | D124: 3603679967253 | E124: XL | F124: R.Women | G124: R.W.Dress | H124: Jersey | I124: Printemps-Ete 2021 | J124: Kenzo Logo | K124: 4 | L124: 350 | M124: 1400
A125: High Defintion Photos Available upon Request | C125: FA62RO7724MO.76A.XS | D125: 3603679967222 | E125: XS | F125: R.Women | G125: R.W.Dress | H125: Jersey | I125: Printemps-Ete 2021 | J125: Kenzo Logo | K125: 17 | L125: 350 | M125: 5950
A126: High Defintion Photos Available upon Request | B126: FA62RO7724MO.94 | C126: FA62RO7724MO.94.L | D126: 3603679874070 | E126: L | F126: R.Women | G126: R.W.Dress | H126: Jersey | I126: Automne-Hiver 2020 | J126: Kenzo Logo | K126: 13 | L126: 350 | M126: 4550
A127: High Defintion Photos Available upon Request | C127: FA62RO7724MO.94.M | D127: 3603679874124 | E127: M | F127: R.Women | G127: R.W.Dress | H127: Jersey | I127: Automne-Hiver 2020 | J127: Kenzo Logo | K127: 15 | L127: 350 | M127: 5250
A128: High Defintion Photos Available upon Request | C128: FA62RO7724MO.94.S | D128: 3603679874117 | E128: S | F128: R.Women | G128: R.W.Dress | H128: Jersey | I128: Automne-Hiver 2020 | J128: Kenzo Logo | K128: 23 | L128: 350 | M128: 8050
A129: High Defintion Photos Available upon Request | C129: FA62RO7724MO.94.XL | D129: 3603679874018 | E129: XL | F129: R.Women | G129: R.W.Dress | H129: Jersey | I129: Automne-Hiver 2020 | J129: Kenzo Logo | K129: 4 | L129: 350 | M129: 1400
A130: High Defintion Photos Available upon Request | C130: FA62RO7724MO.94.XS | D130: 3603679874025 | E130: XS | F130: R.Women | G130: R.W.Dress | H130: Jersey | I130: Automne-Hiver 2020 | J130: Kenzo Logo | K130: 20 | L130: 350 | M130: 7000
A131: High Defintion Photos Available upon Request | B131: FA62RO7734XG.94 | C131: FA62RO7734XG.94.L | D131: 3603679911904 | E131: L | F131: R.Women | G131: R.W.Dress | H131: Jersey | I131: Automne-Hiver 2020 | J131: Tiger | K131: 24 | L131: 375 | M131: =+K131*L131 -> 9000
A132: High Defintion Photos Available upon Request | C132: FA62RO7734XG.94.M | D132: 3603679911874 | E132: M | F132: R.Women | G132: R.W.Dress | H132: Jersey | I132: Automne-Hiver 2020 | J132: Tiger | K132: 20 | L132: 375 | M132: 7500
A133: High Defintion Photos Available upon Request | C133: FA62RO7734XG.94.S | D133: 3603679911911 | E133: S | F133: R.Women | G133: R.W.Dress | H133: Jersey | I133: Automne-Hiver 2020 | J133: Tiger | K133: 21 | L133: 375 | M133: 7875
A134: High Defintion Photos Available upon Request | C134: FA62RO7734XG.94.XL | D134: 3603679911881 | E134: XL | F134: R.Women | G134: R.W.Dress | H134: Jersey | I134: Automne-Hiver 2020 | J134: Tiger | K134: 39 | L134: 375 | M134: 14625
A135: High Defintion Photos Available upon Request | C135: FA62RO7734XG.94.XS | D135: 3603679911898 | E135: XS | F135: R.Women | G135: R.W.Dress | H135: Jersey | I135: Automne-Hiver 2020 | J135: Tiger | K135: 12 | L135: 375 | M135: 4500
A136: High Defintion Photos Available upon Request | B136: FA62RO7734XJ.73 | C136: FA62RO7734XJ.73.L | D136: 3603679989422 | E136: L | F136: R.Women | G136: R.W.Dress | H136: Jersey | I136: Automne-Hiver 2020 | J136: Tiger | K136: 7 | L136: 395 | M136: 2765
A137: High Defintion Photos Available upon Request | C137: FA62RO7734XJ.73.M | D137: 3603679989415 | E137: M | F137: R.Women | G137: R.W.Dress | H137: Jersey | I137: Automne-Hiver 2020 | J137: Tiger | K137: 8 | L137: 395 | M137: 3160
A138: High Defintion Photos Available upon Request | C138: FA62RO7734XJ.73.S | D138: 3603679989361 | E138: S | F138: R.Women | G138: R.W.Dress | H138: Jersey | I138: Automne-Hiver 2020 | J138: Tiger | K138: 18 | L138: 395 | M138: 7110
A139: High Defintion Photos Available upon Request | C139: FA62RO7734XJ.73.XL | D139: 3603679989392 | E139: XL | F139: R.Women | G139: R.W.Dress | H139: Jersey | I139: Automne-Hiver 2020 | J139: Tiger | K139: 6 | L139: 395 | M139: 2370
A140: High Defintion Photos Available upon Request | C140: FA62RO7734XJ.73.XS | D140: 3603679989330 | E140: XS | F140: R.Women | G140: R.W.Dress | H140: Jersey | I140: Automne-Hiver 2020 | J140: Tiger | K140: 9 | L140: 395 | M140: 3555
A141: High Defintion Photos Available upon Request | B141: FA62RO7734XJ.99 | C141: FA62RO7734XJ.99.L | D141: 3603679989354 | E141: L | F141: R.Women | G141: R.W.Dress | H141: Jersey | I141: Automne-Hiver 2020 | J141: Tiger | K141: 9 | L141: 395 | M141: 3555
A142: High Defintion Photos Available upon Request | C142: FA62RO7734XJ.99.M | D142: 3603679989385 | E142: M | F142: R.Women | G142: R.W.Dress | H142: Jersey | I142: Automne-Hiver 2020 | J142: Tiger | K142: 8 | L142: 395 | M142: 3160
A143: High Defintion Photos Available upon Request | C143: FA62RO7734XJ.99.S | D143: 3603679989378 | E143: S | F143: R.Women | G143: R.W.Dress | H143: Jersey | I143: Automne-Hiver 2020 | J143: Tiger | K143: 19 | L143: 395 | M143: 7505
A144: High Defintion Photos Available upon Request | C144: FA62RO7734XJ.99.XL | D144: 3603679989347 | E144: XL | F144: R.Women | G144: R.W.Dress | H144: Jersey | I144: Automne-Hiver 2020 | J144: Tiger | K144: 12 | L144: 395 | M144: 4740
A145: High Defintion Photos Available upon Request | C145: FA62RO7734XJ.99.XS | D145: 3603679989408 | E145: XS | F145: R.Women | G145: R.W.Dress | H145: Jersey | I145: Automne-Hiver 2020 | J145: Tiger | K145: 18 | L145: 395 | M145: 7110
A146: High Defintion Photos Available upon Request | B146: FA62RO7744XA.99 | C146: FA62RO7744XA.99.L | D146: 3603679911928 | E146: L | F146: R.Women | G146: R.W.Dress | H146: Jersey | I146: Automne-Hiver 2020 | J146: Tiger | K146: 3 | L146: 310 | M146: 930
A147: High Defintion Photos Available upon Request | C147: FA62RO7744XA.99.M | D147: 3603679911959 | E147: M | F147: R.Women | G147: R.W.Dress | H147: Jersey | I147: Automne-Hiver 2020 | J147: Tiger | K147: 15 | L147: 310 | M147: 4650
A148: High Defintion Photos Available upon Request | C148: FA62RO7744XA.99.XL | D148: 3603679911966 | E148: XL | F148: R.Women | G148: R.W.Dress | H148: Jersey | I148: Automne-Hiver 2020 | J148: Tiger | K148: 17 | L148: 310 | M148: 5270
A149: High Defintion Photos Available upon Request | C149: FA62RO7744XA.99.XXL | D149: 3603679911980 | E149: XXL | F149: R.Women | G149: R.W.Dress | H149: Jersey | I149: Automne-Hiver 2020 | J149: Tiger | K149: 6 | L149: 310 | M149: 1860
A150: High Defintion Photos Available upon Request | C150: FA62RO7744XA.99.XXS | D150: 3603679911973 | E150: XXS | F150: R.Women | G150: R.W.Dress | H150: Jersey | I150: Automne-Hiver 2020 | J150: Tiger | K150: 5 | L150: 310 | M150: 1550
A151: High Defintion Photos Available upon Request | B151: FA62WRO823RC.98 | C151: FA62WRO823RC.98.M | D151: 3603679952365 | E151: M | F151: R.Women | G151: R.W.Dress | H151: Knitwear | I151: Automne-Hiver 2020 | J151: ND | K151: 15 | L151: 390 | M151: 5850
A152: High Defintion Photos Available upon Request | B152: FB52RO0054SB.66 | C152: FB52RO0054SB.66.L | D152: 3612230092792 | E152: L | F152: R.Women | G152: R.W.Dress | H152: Jersey | I152: Printemps-Ete 2021 | J152: Print | K152: 13 | L152: 350 | M152: 4550
A153: High Defintion Photos Available upon Request | C153: FB52RO0054SB.66.M | D153: 3612230092761 | E153: M | F153: R.Women | G153: R.W.Dress | H153: Jersey | I153: Printemps-Ete 2021 | J153: Print | K153: 28 | L153: 350 | M153: 9800
A154: High Defintion Photos Available upon Request | C154: FB52RO0054SB.66.S | D154: 3612230092785 | E154: S | F154: R.Women | G154: R.W.Dress | H154: Jersey | I154: Printemps-Ete 2021 | J154: Print | K154: 40 | L154: 350 | M154: 14000
A155: High Defintion Photos Available upon Request | C155: FB52RO0054SB.66.XL | D155: 3612230092778 | E155: XL | F155: R.Women | G155: R.W.Dress | H155: Jersey | I155: Printemps-Ete 2021 | J155: Print | K155: 2 | L155: 350 | M155: 700
A156: High Defintion Photos Available upon Request | C156: FB52RO0054SB.66.XS | D156: 3612230092754 | E156: XS | F156: R.Women | G156: R.W.Dress | H156: Jersey | I156: Printemps-Ete 2021 | J156: Print | K156: 28 | L156: 350 | M156: 9800
A157: High Defintion Photos Available upon Request | B157: FB52RO0054SK.69 | C157: FB52RO0054SK.69.L | D157: 3603679993795 | E157: L | F157: R.Women | G157: R.W.Dress | H157: Woven | I157: Printemps-Ete 2021 | J157: Kenzo Sport | K157: 1 | L157: 295 | M157: 295
A158: High Defintion Photos Available upon Request | B158: FB52RO0054SK.77 | C158: FB52RO0054SK.77.L | D158: 3603679993788 | E158: L | F158: R.Women | G158: R.W.Dress | H158: Woven | I158: Printemps-Ete 2021 | J158: Kenzo Sport | K158: 4 | L158: 295 | M158: 1180
A159: High Defintion Photos Available upon Request | C159: FB52RO0054SK.77.M | D159: 3603679993757 | E159: M | F159: R.Women | G159: R.W.Dress | H159: Woven | I159: Printemps-Ete 2021 | J159: Kenzo Sport | K159: 12 | L159: 295 | M159: 3540
A160: High Defintion Photos Available upon Request | C160: FB52RO0054SK.77.S | D160: 3603679993764 | E160: S | F160: R.Women | G160: R.W.Dress | H160: Woven | I160: Printemps-Ete 2021 | J160: Kenzo Sport | K160: 13 | L160: 295 | M160: 3835
A161: High Defintion Photos Available upon Request | C161: FB52RO0054SK.77.XL | D161: 3603679993719 | E161: XL | F161: R.Women | G161: R.W.Dress | H161: Woven | I161: Printemps-Ete 2021 | J161: Kenzo Sport | K161: 4 | L161: 295 | M161: 1180
A162: High Defintion Photos Available upon Request | C162: FB52RO0054SK.77.XS | D162: 3603679993702 | E162: XS | F162: R.Women | G162: R.W.Dress | H162: Woven | I162: Printemps-Ete 2021 | J162: Kenzo Sport | K162: 13 | L162: 295 | M162: 3835
A163: High Defintion Photos Available upon Request | B163: FB52RO017524.76 | C163: FB52RO017524.76.34 | D163: 3603679983741 | E163: 34 | F163: R.Women | G163: R.W.Dress | H163: Woven | I163: Printemps-Ete 2021 | J163: Print | K163: 1 | L163: 595 | M163: 595
A164: High Defintion Photos Available upon Request | C164: FB52RO017524.76.42 | D164: 3603679983703 | E164: 42 | F164: R.Women | G164: R.W.Dress | H164: Woven | I164: Printemps-Ete 2021 | J164: Print | K164: 1 | L164: 595 | M164: 595
A165: High Defintion Photos Available upon Request | B165: FB52RO0239CO.77 | C165: FB52RO0239CO.77.S | D165: 3612230110731 | E165: S | F165: R.Women | G165: R.W.Dress | H165: Woven | I165: Printemps-Ete 2021 | J165: Kenzo Sport | K165: 15 | L165: 395 | M165: 5925
A166: High Defintion Photos Available upon Request | C166: FB52RO0239CO.77.XS | D166: 3612230110748 | E166: XS | F166: R.Women | G166: R.W.Dress | H166: Woven | I166: Printemps-Ete 2021 | J166: Kenzo Sport | K166: 2 | L166: 395 | M166: 790
A167: High Defintion Photos Available upon Request | B167: FB52RO0269CW.01 | C167: FB52RO0269CW.01.34 | D167: 3612230070776 | E167: 34 | F167: R.Women | G167: R.W.Dress | H167: Woven | I167: Printemps-Ete 2021 | J167: Solid | K167: 1 | L167: 395 | M167: 395
A168: High Defintion Photos Available upon Request | C168: FB52RO0269CW.01.36 | D168: 3612230070783 | E168: 36 | F168: R.Women | G168: R.W.Dress | H168: Woven | I168: Printemps-Ete 2021 | J168: Solid | K168: 6 | L168: 395 | M168: 2370
A169: High Defintion Photos Available upon Request | C169: FB52RO0269CW.01.40 | D169: 3612230070691 | E169: 40 | F169: R.Women | G169: R.W.Dress | H169: Woven | I169: Printemps-Ete 2021 | J169: Solid | K169: 1 | L169: 395 | M169: 395
A170: High Defintion Photos Available upon Request | B170: FB52RO0269CW.88 | C170: FB52RO0269CW.88.36 | D170: 3612230070721 | E170: 36 | F170: R.Women | G170: R.W.Dress | H170: Woven | I170: Printemps-Ete 2021 | J170: Solid | K170: 1 | L170: 395 | M170: 395
A171: High Defintion Photos Available upon Request | C171: FB52RO0269CW.88.38 | D171: 3612230070790 | E171: 38 | F171: R.Women | G171: R.W.Dress | H171: Woven | I171: Printemps-Ete 2021 | J171: Solid | K171: 1 | L171: 395 | M171: 395
A172: High Defintion Photos Available upon Request | C172: FB52RO0269CW.88.40 | D172: 3612230070745 | E172: 40 | F172: R.Women | G172: R.W.Dress | H172: Woven | I172: Printemps-Ete 2021 | J172: Solid | K172: 1 | L172: 395 | M172: 395
A173: High Defintion Photos Available upon Request | C173: FB52RO0269CW.88.42 | D173: 3612230070738 | E173: 42 | F173: R.Women | G173: R.W.Dress | H173: Woven | I173: Printemps-Ete 2021 | J173: Solid | K173: 1 | L173: 395 | M173: 395
A174: High Defintion Photos Available upon Request | B174: FB52RO0281PC.02 | C174: FB52RO0281PC.02.34 | D174: 3603679973711 | E174: 34 | F174: R.Women | G174: R.W.Dress | H174: Woven | I174: Printemps-Ete 2021 | J174: Print | K174: 5 | L174: 395 | M174: 1975
A175: High Defintion Photos Available upon Request | C175: FB52RO0281PC.02.36 | D175: 3603679973742 | E175: 36 | F175: R.Women | G175: R.W.Dress | H175: Woven | I175: Printemps-Ete 2021 | J175: Print | K175: 18 | L175: 395 | M175: 7110
A176: High Defintion Photos Available upon Request | C176: FB52RO0281PC.02.38 | D176: 3603679973704 | E176: 38 | F176: R.Women | G176: R.W.Dress | H176: Woven | I176: Printemps-Ete 2021 | J176: Print | K176: 17 | L176: 395 | M176: 6715
A177: High Defintion Photos Available upon Request | C177: FB52RO0281PC.02.40 | D177: 3603679973759 | E177: 40 | F177: R.Women | G177: R.W.Dress | H177: Woven | I177: Printemps-Ete 2021 | J177: Print | K177: 13 | L177: 395 | M177: 5135
A178: High Defintion Photos Available upon Request | C178: FB52RO0281PC.02.42 | D178: 3603679973735 | E178: 42 | F178: R.Women | G178: R.W.Dress | H178: Woven | I178: Printemps-Ete 2021 | J178: Print | K178: 1 | L178: 395 | M178: 395
A179: High Defintion Photos Available upon Request | B179: FB52RO0311LA.51 | C179: FB52RO0311LA.51.34 | D179: 3603679973797 | E179: 34 | F179: R.Women | G179: R.W.Dress | H179: Woven | I179: Printemps-Ete 2021 | J179: Solid | K179: 1 | L179: 350 | M179: 350
A180: High Defintion Photos Available upon Request | C180: FB52RO0311LA.51.36 | D180: 3603679973766 | E180: 36 | F180: R.Women | G180: R.W.Dress | H180: Woven | I180: Printemps-Ete 2021 | J180: Solid | K180: 2 | L180: 350 | M180: 700
A181: High Defintion Photos Available upon Request | C181: FB52RO0311LA.51.38 | D181: 3603679973773 | E181: 38 | F181: R.Women | G181: R.W.Dress | H181: Woven | I181: Printemps-Ete 2021 | J181: Solid | K181: 1 | L181: 350 | M181: 350
A182: High Defintion Photos Available upon Request | C182: FB52RO0311LA.51.44 | D182: 3603679973803 | E182: 44 | F182: R.Women | G182: R.W.Dress | H182: Woven | I182: Printemps-Ete 2021 | J182: Solid | K182: 1 | L182: 350 | M182: 350
A183: High Defintion Photos Available upon Request | C183: FB52RO0311LA.51.46 | D183: 3603679973780 | E183: 46 | F183: R.Women | G183: R.W.Dress | H183: Woven | I183: Printemps-Ete 2021 | J183: Solid | K183: 1 | L183: 350 | M183: 350
A184: High Defintion Photos Available upon Request | B184: FB52RO0319LT.65 | C184: FB52RO0319LT.65.36 | D184: 3603679973865 | E184: 36 | F184: R.Women | G184: R.W.Dress | H184: Woven | I184: Printemps-Ete 2021 | J184: Print | K184: 3 | L184: 395 | M184: 1185
A185: High Defintion Photos Available upon Request | C185: FB52RO0319LT.65.42 | D185: 3603679973841 | E185: 42 | F185: R.Women | G185: R.W.Dress | H185: Woven | I185: Printemps-Ete 2021 | J185: Print | K185: 1 | L185: 395 | M185: 395
A186: High Defintion Photos Available upon Request | B186: FB52RO0331LA.18 | C186: FB52RO0331LA.18.38 | D186: 3603679974015 | E186: 38 | F186: R.Women | G186: R.W.Dress | H186: Woven | I186: Printemps-Ete 2021 | J186: Solid | K186: 2 | L186: 395 | M186: 790
A187: High Defintion Photos Available upon Request | C187: FB52RO0331LA.18.40 | D187: 3603679973971 | E187: 40 | F187: R.Women | G187: R.W.Dress | H187: Woven | I187: Printemps-Ete 2021 | J187: Solid | K187: 2 | L187: 395 | M187: 790
A188: High Defintion Photos Available upon Request | C188: FB52RO0331LA.18.42 | D188: 3603679973988 | E188: 42 | F188: R.Women | G188: R.W.Dress | H188: Woven | I188: Printemps-Ete 2021 | J188: Solid | K188: 3 | L188: 395 | M188: 1185
A189: High Defintion Photos Available upon Request | C189: FB52RO0331LA.18.44 | D189: 3603679973995 | E189: 44 | F189: R.Women | G189: R.W.Dress | H189: Woven | I189: Printemps-Ete 2021 | J189: Solid | K189: 2 | L189: 395 | M189: 790
A190: High Defintion Photos Available upon Request | B190: FB52RO0331LA.76 | C190: FB52RO0331LA.76.34 | D190: 3603679973957 | E190: 34 | F190: R.Women | G190: R.W.Dress | H190: Woven | I190: Printemps-Ete 2021 | J190: Solid | K190: 3 | L190: 395 | M190: 1185
A191: High Defintion Photos Available upon Request | C191: FB52RO0331LA.76.36 | D191: 3603679974008 | E191: 36 | F191: R.Women | G191: R.W.Dress | H191: Woven | I191: Printemps-Ete 2021 | J191: Solid | K191: 15 | L191: 395 | M191: 5925
A192: High Defintion Photos Available upon Request | C192: FB52RO0331LA.76.38 | D192: 3603679973919 | E192: 38 | F192: R.Women | G192: R.W.Dress | H192: Woven | I192: Printemps-Ete 2021 | J192: Solid | K192: 12 | L192: 395 | M192: 4740
A193: High Defintion Photos Available upon Request | C193: FB52RO0331LA.76.40 | D193: 3603679973902 | E193: 40 | F193: R.Women | G193: R.W.Dress | H193: Woven | I193: Printemps-Ete 2021 | J193: Solid | K193: 10 | L193: 395 | M193: 3950
A194: High Defintion Photos Available upon Request | C194: FB52RO0331LA.76.42 | D194: 3603679973926 | E194: 42 | F194: R.Women | G194: R.W.Dress | H194: Woven | I194: Printemps-Ete 2021 | J194: Solid | K194: 9 | L194: 395 | M194: 3555
A195: High Defintion Photos Available upon Request | C195: FB52RO0331LA.76.44 | D195: 3603679973933 | E195: 44 | F195: R.Women | G195: R.W.Dress | H195: Woven | I195: Printemps-Ete 2021 | J195: Solid | K195: 7 | L195: 395 | M195: =+K195*L195 -> 2765
A196: High Defintion Photos Available upon Request | C196: FB52RO0331LA.76.46 | D196: 3603679973940 | E196: 46 | F196: R.Women | G196: R.W.Dress | H196: Woven | I196: Printemps-Ete 2021 | J196: Solid | K196: 2 | L196: 395 | M196: 790
A197: High Defintion Photos Available upon Request | B197: FB52RO0349SA.49 | C197: FB52RO0349SA.49.34 | D197: 3603679974046 | E197: 34 | F197: R.Women | G197: R.W.Dress | H197: Woven | I197: Printemps-Ete 2021 | J197: Solid | K197: 1 | L197: 695 | M197: 695
A198: High Defintion Photos Available upon Request | C198: FB52RO0349SA.49.36 | D198: 3603679974077 | E198: 36 | F198: R.Women | G198: R.W.Dress | H198: Woven | I198: Printemps-Ete 2021 | J198: Solid | K198: 2 | L198: 695 | M198: 1390
A199: High Defintion Photos Available upon Request | C199: FB52RO0349SA.49.38 | D199: 3603679974053 | E199: 38 | F199: R.Women | G199: R.W.Dress | H199: Woven | I199: Printemps-Ete 2021 | J199: Solid | K199: 1 | L199: 695 | M199: 695
A200: High Defintion Photos Available upon Request | C200: FB52RO0349SA.49.40 | D200: 3603679974107 | E200: 40 | F200: R.Women | G200: R.W.Dress | H200: Woven | I200: Printemps-Ete 2021 | J200: Solid | K200: 1 | L200: 695 | M200: 695
... 2043 more rows

Sheet Shoes M
A1: PHOTOS | B1: MTC | C1: Mtct | D1: EAN | E1: Size | F1: L2 Department | G1: L3 Category | H1: Knowhow new | I1: Creation season | J1: Universe | K1: Quantity | L1: Prix retail EUR | M1: TOT Prix retail EUR | N1: Purchase Order Quantity
A2: High Defintion Photos Available upon Request | B2: F865BT346L52.14 | C2: F865BT346L52.14.39 | D2: 3603679382643 | E2: 39 | F2: S.Men | G2: S.M.City | H2: Shoes | I2: Automne-Hiver 2018 | J2: - | K2: 1 | L2: 360 | M2: =L2*K2 -> 360
A3: High Defintion Photos Available upon Request | C3: F865BT346L52.14.41 | D3: 3603679382520 | E3: 41 | F3: S.Men | G3: S.M.City | H3: Shoes | I3: Automne-Hiver 2018 | J3: - | K3: 1 | L3: 360 | M3: =L3*K3 -> 360
A4: High Defintion Photos Available upon Request | C4: F865BT346L52.14.42 | D4: 3603679382506 | E4: 42 | F4: S.Men | G4: S.M.City | H4: Shoes | I4: Automne-Hiver 2018 | J4: - | K4: 1 | L4: 360 | M4: 360
A5: High Defintion Photos Available upon Request | B5: F865BT346L52.99 | C5: F865BT346L52.99.39 | D5: 3603679382476 | E5: 39 | F5: S.Men | G5: S.M.City | H5: Shoes | I5: Automne-Hiver 2018 | J5: - | K5: 3 | L5: 360 | M5: 1080
A6: High Defintion Photos Available upon Request | C6: F865BT346L52.99.40 | D6: 3603679382599 | E6: 40 | F6: S.Men | G6: S.M.City | H6: Shoes | I6: Automne-Hiver 2018 | J6: - | K6: 3 | L6: 360 | M6: 1080
A7: High Defintion Photos Available upon Request | C7: F865BT346L52.99.41 | D7: 3603679382605 | E7: 41 | F7: S.Men | G7: S.M.City | H7: Shoes | I7: Automne-Hiver 2018 | J7: - | K7: 2 | L7: 360 | M7: 720
A8: High Defintion Photos Available upon Request | C8: F865BT346L52.99.42 | D8: 3603679382612 | E8: 42 | F8: S.Men | G8: S.M.City | H8: Shoes | I8: Automne-Hiver 2018 | J8: - | K8: 1 | L8: 360 | M8: 360
A9: High Defintion Photos Available upon Request | C9: F865BT346L52.99.43 | D9: 3603679382650 | E9: 43 | F9: S.Men | G9: S.M.City | H9: Shoes | I9: Automne-Hiver 2018 | J9: - | K9: 2 | L9: 360 | M9: 720
A10: High Defintion Photos Available upon Request | B10: FA65BT010L66.99 | C10: FA65BT010L66.99.39 | D10: 3603679934323 | E10: 39 | F10: S.Men | G10: S.M.City | H10: ND | I10: Automne-Hiver 2020 | J10: - | K10: 1 | L10: 395 | M10: 395
A11: High Defintion Photos Available upon Request | C11: FA65BT010L66.99.40 | D11: 3603679934354 | E11: 40 | F11: S.Men | G11: S.M.City | H11: ND | I11: Automne-Hiver 2020 | J11: - | K11: 4 | L11: 395 | M11: 1580
A12: High Defintion Photos Available upon Request | C12: FA65BT010L66.99.41 | D12: 3603679934347 | E12: 41 | F12: S.Men | G12: S.M.City | H12: ND | I12: Automne-Hiver 2020 | J12: - | K12: 10 | L12: 395 | M12: 3950
A13: High Defintion Photos Available upon Request | C13: FA65BT010L66.99.42 | D13: 3603679934316 | E13: 42 | F13: S.Men | G13: S.M.City | H13: ND | I13: Automne-Hiver 2020 | J13: - | K13: 9 | L13: 395 | M13: 3555
A14: High Defintion Photos Available upon Request | C14: FA65BT010L66.99.43 | D14: 3603679934309 | E14: 43 | F14: S.Men | G14: S.M.City | H14: ND | I14: Automne-Hiver 2020 | J14: - | K14: 17 | L14: 395 | M14: 6715
A15: High Defintion Photos Available upon Request | C15: FA65BT010L66.99.44 | D15: 3603679934361 | E15: 44 | F15: S.Men | G15: S.M.City | H15: ND | I15: Automne-Hiver 2020 | J15: - | K15: 13 | L15: 395 | M15: 5135
A16: High Defintion Photos Available upon Request | C16: FA65BT010L66.99.45 | D16: 3603679934330 | E16: 45 | F16: S.Men | G16: S.M.City | H16: ND | I16: Automne-Hiver 2020 | J16: - | K16: 13 | L16: 395 | M16: 5135
A17: High Defintion Photos Available upon Request | B17: FA65BT015L58.14 | C17: FA65BT015L58.14.39 | D17: 3603679934729 | E17: 39 | F17: S.Men | G17: S.M.City | H17: ND | I17: Automne-Hiver 2020 | J17: - | K17: 2 | L17: 445 | M17: 890
A18: High Defintion Photos Available upon Request | C18: FA65BT015L58.14.40 | D18: 3603679934798 | E18: 40 | F18: S.Men | G18: S.M.City | H18: ND | I18: Automne-Hiver 2020 | J18: - | K18: 3 | L18: 445 | M18: 1335
A19: High Defintion Photos Available upon Request | C19: FA65BT015L58.14.41 | D19: 3603679934774 | E19: 41 | F19: S.Men | G19: S.M.City | H19: ND | I19: Automne-Hiver 2020 | J19: - | K19: 4 | L19: 445 | M19: 1780
A20: High Defintion Photos Available upon Request | C20: FA65BT015L58.14.42 | D20: 3603679934842 | E20: 42 | F20: S.Men | G20: S.M.City | H20: ND | I20: Automne-Hiver 2020 | J20: - | K20: 3 | L20: 445 | M20: 1335
A21: High Defintion Photos Available upon Request | C21: FA65BT015L58.14.43 | D21: 3603679934828 | E21: 43 | F21: S.Men | G21: S.M.City | H21: ND | I21: Automne-Hiver 2020 | J21: - | K21: 3 | L21: 445 | M21: 1335
A22: High Defintion Photos Available upon Request | C22: FA65BT015L58.14.44 | D22: 3603679934750 | E22: 44 | F22: S.Men | G22: S.M.City | H22: ND | I22: Automne-Hiver 2020 | J22: - | K22: 3 | L22: 445 | M22: 1335
A23: High Defintion Photos Available upon Request | C23: FA65BT015L58.14.45 | D23: 3603679934859 | E23: 45 | F23: S.Men | G23: S.M.City | H23: ND | I23: Automne-Hiver 2020 | J23: - | K23: 1 | L23: 445 | M23: 445
A24: High Defintion Photos Available upon Request | B24: FA65BT340L62.99 | C24: FA65BT340L62.99.42 | D24: 3603679934989 | E24: 42 | F24: S.Men | G24: S.M.City | H24: ND | I24: Automne-Hiver 2020 | J24: - | K24: 1 | L24: 350 | M24: 350
A25: High Defintion Photos Available upon Request | C25: FA65BT340L62.99.44 | D25: 3603679934996 | E25: 44 | F25: S.Men | G25: S.M.City | H25: ND | I25: Automne-Hiver 2020 | J25: - | K25: 2 | L25: 350 | M25: 700
A26: High Defintion Photos Available upon Request | C26: FA65BT340L62.99.45 | D26: 3603679934958 | E26: 45 | F26: S.Men | G26: S.M.City | H26: ND | I26: Automne-Hiver 2020 | J26: - | K26: 3 | L26: 350 | M26: 1050
A27: High Defintion Photos Available upon Request | B27: FA65BT341L63.99 | C27: FA65BT341L63.99.42 | D27: 3603679935016 | E27: 42 | F27: S.Men | G27: S.M.City | H27: ND | I27: Automne-Hiver 2020 | J27: - | K27: 1 | L27: 395 | M27: 395
A28: High Defintion Photos Available upon Request | B28: FA65DB003L66.99 | C28: FA65DB003L66.99.40 | D28: 3603679935252 | E28: 40 | F28: S.Men | G28: S.M.City | H28: ND | I28: Automne-Hiver 2020 | J28: - | K28: 1 | L28: 350 | M28: 350
A29: High Defintion Photos Available upon Request | C29: FA65DB003L66.99.44 | D29: 3603679935245 | E29: 44 | F29: S.Men | G29: S.M.City | H29: ND | I29: Automne-Hiver 2020 | J29: - | K29: 2 | L29: 350 | M29: 700
A30: High Defintion Photos Available upon Request | C30: FA65DB003L66.99.45 | D30: 3603679935177 | E30: 45 | F30: S.Men | G30: S.M.City | H30: ND | I30: Automne-Hiver 2020 | J30: - | K30: 2 | L30: 350 | M30: 700
A31: High Defintion Photos Available upon Request | B31: FB55BT010L66.99 | C31: FB55BT010L66.99.44 | D31: 3612230174719 | E31: 44 | F31: S.Men | G31: S.M.City | H31: ND | I31: Printemps-Ete 2021 | J31: - | K31: 2 | L31: 395 | M31: 790
A32: High Defintion Photos Available upon Request | B32: FB55BT011L66.99 | C32: FB55BT011L66.99.39 | D32: 3612230174795 | E32: 39 | F32: S.Men | G32: S.M.City | H32: ND | I32: Printemps-Ete 2021 | J32: - | K32: 4 | L32: 395 | M32: 1580
A33: High Defintion Photos Available upon Request | C33: FB55BT011L66.99.40 | D33: 3612230174771 | E33: 40 | F33: S.Men | G33: S.M.City | H33: ND | I33: Printemps-Ete 2021 | J33: - | K33: 8 | L33: 395 | M33: 3160
A34: High Defintion Photos Available upon Request | C34: FB55BT011L66.99.41 | D34: 3612230174764 | E34: 41 | F34: S.Men | G34: S.M.City | H34: ND | I34: Printemps-Ete 2021 | J34: - | K34: 14 | L34: 395 | M34: 5530
A35: High Defintion Photos Available upon Request | C35: FB55BT011L66.99.42 | D35: 3612230174788 | E35: 42 | F35: S.Men | G35: S.M.City | H35: ND | I35: Printemps-Ete 2021 | J35: - | K35: 19 | L35: 395 | M35: 7505
A36: High Defintion Photos Available upon Request | C36: FB55BT011L66.99.43 | D36: 3612230174757 | E36: 43 | F36: S.Men | G36: S.M.City | H36: ND | I36: Printemps-Ete 2021 | J36: - | K36: 12 | L36: 395 | M36: 4740
A37: High Defintion Photos Available upon Request | C37: FB55BT011L66.99.44 | D37: 3612230174733 | E37: 44 | F37: S.Men | G37: S.M.City | H37: ND | I37: Printemps-Ete 2021 | J37: - | K37: 22 | L37: 395 | M37: 8690
A38: High Defintion Photos Available upon Request | C38: FB55BT011L66.99.45 | D38: 3612230174740 | E38: 45 | F38: S.Men | G38: S.M.City | H38: ND | I38: Printemps-Ete 2021 | J38: - | K38: 5 | L38: 395 | M38: 1975
A39: High Defintion Photos Available upon Request | B39: FB55DB003L66.99 | C39: FB55DB003L66.99.39 | D39: 3612230174931 | E39: 39 | F39: S.Men | G39: S.M.City | H39: ND | I39: Printemps-Ete 2021 | J39: - | K39: 5 | L39: 350 | M39: 1750
A40: High Defintion Photos Available upon Request | C40: FB55DB003L66.99.40 | D40: 3612230174825 | E40: 40 | F40: S.Men | G40: S.M.City | H40: ND | I40: Printemps-Ete 2021 | J40: - | K40: 9 | L40: 350 | M40: 3150
A41: High Defintion Photos Available upon Request | C41: FB55DB003L66.99.41 | D41: 3612230174887 | E41: 41 | F41: S.Men | G41: S.M.City | H41: ND | I41: Printemps-Ete 2021 | J41: - | K41: 15 | L41: 350 | M41: 5250
A42: High Defintion Photos Available upon Request | C42: FB55DB003L66.99.42 | D42: 3612230174832 | E42: 42 | F42: S.Men | G42: S.M.City | H42: ND | I42: Printemps-Ete 2021 | J42: - | K42: 20 | L42: 350 | M42: 7000
A43: High Defintion Photos Available upon Request | C43: FB55DB003L66.99.43 | D43: 3612230174924 | E43: 43 | F43: S.Men | G43: S.M.City | H43: ND | I43: Printemps-Ete 2021 | J43: - | K43: 21 | L43: 350 | M43: 7350
A44: High Defintion Photos Available upon Request | C44: FB55DB003L66.99.44 | D44: 3612230174863 | E44: 44 | F44: S.Men | G44: S.M.City | H44: ND | I44: Printemps-Ete 2021 | J44: - | K44: 14 | L44: 350 | M44: 4900
A45: High Defintion Photos Available upon Request | C45: FB55DB003L66.99.45 | D45: 3612230174900 | E45: 45 | F45: S.Men | G45: S.M.City | H45: ND | I45: Printemps-Ete 2021 | J45: - | K45: 9 | L45: 350 | M45: 3150
A46: High Defintion Photos Available upon Request | B46: FB55LO010F74.99 | C46: FB55LO010F74.99.39 | D46: 3612230083233 | E46: 39 | F46: S.Men | G46: S.M.City | H46: ND | I46: Printemps-Ete 2021 | J46: Kenzo Sport | K46: 4 | L46: 150 | M46: 600
A47: High Defintion Photos Available upon Request | C47: FB55LO010F74.99.40 | D47: 3612230083264 | E47: 40 | F47: S.Men | G47: S.M.City | H47: ND | I47: Printemps-Ete 2021 | J47: Kenzo Sport | K47: 20 | L47: 150 | M47: 3000
A48: High Defintion Photos Available upon Request | C48: FB55LO010F74.99.41 | D48: 3612230083240 | E48: 41 | F48: S.Men | G48: S.M.City | H48: ND | I48: Printemps-Ete 2021 | J48: Kenzo Sport | K48: 21 | L48: 150 | M48: 3150
A49: High Defintion Photos Available upon Request | C49: FB55LO010F74.99.42 | D49: 3612230083271 | E49: 42 | F49: S.Men | G49: S.M.City | H49: ND | I49: Printemps-Ete 2021 | J49: Kenzo Sport | K49: 11 | L49: 150 | M49: 1650
A50: High Defintion Photos Available upon Request | C50: FB55LO010F74.99.43 | D50: 3612230083257 | E50: 43 | F50: S.Men | G50: S.M.City | H50: ND | I50: Printemps-Ete 2021 | J50: Kenzo Sport | K50: 11 | L50: 150 | M50: 1650
A51: High Defintion Photos Available upon Request | C51: FB55LO010F74.99.44 | D51: 3612230083219 | E51: 44 | F51: S.Men | G51: S.M.City | H51: ND | I51: Printemps-Ete 2021 | J51: Kenzo Sport | K51: 6 | L51: 150 | M51: 900
A52: High Defintion Photos Available upon Request | B52: FB55MU023L65.13 | C52: FB55MU023L65.13.40 | D52: 3612230052741 | E52: 40 | F52: S.Men | G52: S.M.City | H52: ND | I52: Printemps-Ete 2021 | J52: - | K52: 8 | L52: 295 | M52: 2360
A53: High Defintion Photos Available upon Request | C53: FB55MU023L65.13.41 | D53: 3612230052758 | E53: 41 | F53: S.Men | G53: S.M.City | H53: ND | I53: Printemps-Ete 2021 | J53: - | K53: 12 | L53: 295 | M53: 3540
A54: High Defintion Photos Available upon Request | C54: FB55MU023L65.13.42 | D54: 3612230052819 | E54: 42 | F54: S.Men | G54: S.M.City | H54: ND | I54: Printemps-Ete 2021 | J54: - | K54: 10 | L54: 295 | M54: 2950
A55: High Defintion Photos Available upon Request | C55: FB55MU023L65.13.43 | D55: 3612230052765 | E55: 43 | F55: S.Men | G55: S.M.City | H55: ND | I55: Printemps-Ete 2021 | J55: - | K55: 11 | L55: 295 | M55: 3245
A56: High Defintion Photos Available upon Request | C56: FB55MU023L65.13.44 | D56: 3612230052789 | E56: 44 | F56: S.Men | G56: S.M.City | H56: ND | I56: Printemps-Ete 2021 | J56: - | K56: 4 | L56: 295 | M56: 1180
A57: High Defintion Photos Available upon Request | C57: FB55MU023L65.13.45 | D57: 3612230052826 | E57: 45 | F57: S.Men | G57: S.M.City | H57: ND | I57: Printemps-Ete 2021 | J57: - | K57: 3 | L57: 295 | M57: 885
A58: High Defintion Photos Available upon Request | B58: FB55MU023L65.99 | C58: FB55MU023L65.99.40 | D58: 3612230052901 | E58: 40 | F58: S.Men | G58: S.M.City | H58: ND | I58: Printemps-Ete 2021 | J58: - | K58: 8 | L58: 295 | M58: 2360
A59: High Defintion Photos Available upon Request | C59: FB55MU023L65.99.41 | D59: 3612230052680 | E59: 41 | F59: S.Men | G59: S.M.City | H59: ND | I59: Printemps-Ete 2021 | J59: - | K59: 19 | L59: 295 | M59: 5605
A60: High Defintion Photos Available upon Request | C60: FB55MU023L65.99.42 | D60: 3612230052673 | E60: 42 | F60: S.Men | G60: S.M.City | H60: ND | I60: Printemps-Ete 2021 | J60: - | K60: 16 | L60: 295 | M60: 4720
A61: High Defintion Photos Available upon Request | C61: FB55MU023L65.99.43 | D61: 3612230052697 | E61: 43 | F61: S.Men | G61: S.M.City | H61: ND | I61: Printemps-Ete 2021 | J61: - | K61: 16 | L61: 295 | M61: 4720
A62: High Defintion Photos Available upon Request | C62: FB55MU023L65.99.44 | D62: 3612230052666 | E62: 44 | F62: S.Men | G62: S.M.City | H62: ND | I62: Printemps-Ete 2021 | J62: - | K62: 11 | L62: 295 | M62: 3245
A63: High Defintion Photos Available upon Request | C63: FB55MU023L65.99.45 | D63: 3612230052833 | E63: 45 | F63: S.Men | G63: S.M.City | H63: ND | I63: Printemps-Ete 2021 | J63: - | K63: 2 | L63: 295 | M63: 590
A64: High Defintion Photos Available upon Request | B64: FB65BT012L59.99 | C64: FB65BT012L59.99.40 | D64: 3612230179110 | E64: 40 | F64: S.Men | G64: S.M.City | H64: ND | I64: Automne-Hiver 2021 | J64: - | K64: 1 | L64: 450 | M64: 450
A65: High Defintion Photos Available upon Request | C65: FB65BT012L59.99.41 | D65: 3612230179080 | E65: 41 | F65: S.Men | G65: S.M.City | H65: ND | I65: Automne-Hiver 2021 | J65: - | K65: 1 | L65: 450 | M65: 450
A66: High Defintion Photos Available upon Request | C66: FB65BT012L59.99.42 | D66: 3612230179127 | E66: 42 | F66: S.Men | G66: S.M.City | H66: ND | I66: Automne-Hiver 2021 | J66: - | K66: 4 | L66: 450 | M66: 1800
A67: High Defintion Photos Available upon Request | C67: FB65BT012L59.99.43 | D67: 3612230179073 | E67: 43 | F67: S.Men | G67: S.M.City | H67: ND | I67: Automne-Hiver 2021 | J67: - | K67: 3 | L67: 450 | M67: =L67*K67 -> 1350
A68: High Defintion Photos Available upon Request | C68: FB65BT012L59.99.44 | D68: 3612230179103 | E68: 44 | F68: S.Men | G68: S.M.City | H68: ND | I68: Automne-Hiver 2021 | J68: - | K68: 2 | L68: 450 | M68: 900
A69: High Defintion Photos Available upon Request | C69: FB65BT012L59.99.45 | D69: 3612230179097 | E69: 45 | F69: S.Men | G69: S.M.City | H69: ND | I69: Automne-Hiver 2021 | J69: - | K69: 1 | L69: 450 | M69: 450
A70: High Defintion Photos Available upon Request | B70: FB65BT013L59.99 | C70: FB65BT013L59.99.40 | D70: 3612230179189 | E70: 40 | F70: S.Men | G70: S.M.City | H70: ND | I70: Automne-Hiver 2021 | J70: - | K70: 3 | L70: 450 | M70: 1350
A71: High Defintion Photos Available upon Request | C71: FB65BT013L59.99.41 | D71: 3612230179141 | E71: 41 | F71: S.Men | G71: S.M.City | H71: ND | I71: Automne-Hiver 2021 | J71: - | K71: 1 | L71: 450 | M71: 450
A72: High Defintion Photos Available upon Request | C72: FB65BT013L59.99.42 | D72: 3612230179196 | E72: 42 | F72: S.Men | G72: S.M.City | H72: ND | I72: Automne-Hiver 2021 | J72: - | K72: 1 | L72: 450 | M72: 450
A73: High Defintion Photos Available upon Request | C73: FB65BT013L59.99.43 | D73: 3612230179158 | E73: 43 | F73: S.Men | G73: S.M.City | H73: ND | I73: Automne-Hiver 2021 | J73: - | K73: 4 | L73: 450 | M73: 1800
A74: High Defintion Photos Available upon Request | C74: FB65BT013L59.99.45 | D74: 3612230179165 | E74: 45 | F74: S.Men | G74: S.M.City | H74: ND | I74: Automne-Hiver 2021 | J74: - | K74: 2 | L74: 450 | M74: 900
A75: High Defintion Photos Available upon Request | B75: FB65BT061L75.99 | C75: FB65BT061L75.99.41 | D75: 3612230179783 | E75: 41 | F75: S.Men | G75: S.M.City | H75: ND | I75: Automne-Hiver 2021 | J75: - | K75: 1 | L75: 450 | M75: 450
A76: High Defintion Photos Available upon Request | C76: FB65BT061L75.99.42 | D76: 3612230179813 | E76: 42 | F76: S.Men | G76: S.M.City | H76: ND | I76: Automne-Hiver 2021 | J76: - | K76: 2 | L76: 450 | M76: 900
A77: High Defintion Photos Available upon Request | C77: FB65BT061L75.99.45 | D77: 3612230179820 | E77: 45 | F77: S.Men | G77: S.M.City | H77: ND | I77: Automne-Hiver 2021 | J77: - | K77: 1 | L77: 450 | M77: 450
A78: High Defintion Photos Available upon Request | B78: FB65BT071F74.99G | C78: FB65BT071F74.99G.43 | D78: 3612230221826 | E78: 43 | F78: S.Men | G78: S.M.City | H78: ND | I78: Automne-Hiver 2021 | J78: - | K78: 11 | L78: 750 | M78: 8250
A79: High Defintion Photos Available upon Request | B79: F855ES123F94.01 | C79: F855ES123F94.01.40 | D79: 3603679255855 | E79: 40 | F79: S.Men | G79: S.M.Espadrilles | H79: Shoes | I79: Printemps-Ete 2018 | J79: Bamboo Tiger | K79: 1 | L79: 265 | M79: 265
A80: High Defintion Photos Available upon Request | C80: F855ES123F94.01.42 | D80: 3603679255916 | E80: 42 | F80: S.Men | G80: S.M.Espadrilles | H80: Shoes | I80: Printemps-Ete 2018 | J80: Bamboo Tiger | K80: 1 | L80: 265 | M80: 265
A81: High Defintion Photos Available upon Request | B81: F855ES123F94.99 | C81: F855ES123F94.99.40 | D81: 3603679255947 | E81: 40 | F81: S.Men | G81: S.M.Espadrilles | H81: Shoes | I81: Printemps-Ete 2018 | J81: Bamboo Tiger | K81: 1 | L81: 265 | M81: 265
A82: High Defintion Photos Available upon Request | B82: F855ES180F70.21 | C82: F855ES180F70.21.44 | D82: 3603679226664 | E82: 44 | F82: S.Men | G82: S.M.Espadrilles | H82: Shoes | I82: Printemps-Ete 2018 | J82: Tiger | K82: 1 | L82: 145 | M82: 145
A83: High Defintion Photos Available upon Request | B83: F855ES180F76.01 | C83: F855ES180F76.01.42 | D83: 3603679226824 | E83: 42 | F83: S.Men | G83: S.M.Espadrilles | H83: Shoes | I83: Printemps-Ete 2018 | J83: Seasonal Logo | K83: 1 | L83: 145 | M83: 145
A84: High Defintion Photos Available upon Request | C84: F855ES180F76.01.45 | D84: 3603679226770 | E84: 45 | F84: S.Men | G84: S.M.Espadrilles | H84: Shoes | I84: Printemps-Ete 2018 | J84: Seasonal Logo | K84: 1 | L84: 145 | M84: 145
A85: High Defintion Photos Available upon Request | B85: F965ES188L73.99 | C85: F965ES188L73.99.39 | D85: 3603679712921 | E85: 39 | F85: S.Men | G85: S.M.Espadrilles | H85: ND | I85: Automne-Hiver 2019 | J85: Tiger | K85: 8 | L85: 220 | M85: 1760
A86: High Defintion Photos Available upon Request | C86: F965ES188L73.99.40 | D86: 3603679712938 | E86: 40 | F86: S.Men | G86: S.M.Espadrilles | H86: ND | I86: Automne-Hiver 2019 | J86: Tiger | K86: 1 | L86: 220 | M86: 220
A87: High Defintion Photos Available upon Request | C87: F965ES188L73.99.41 | D87: 3603679712976 | E87: 41 | F87: S.Men | G87: S.M.Espadrilles | H87: ND | I87: Automne-Hiver 2019 | J87: Tiger | K87: 17 | L87: 220 | M87: 3740
A88: High Defintion Photos Available upon Request | C88: F965ES188L73.99.42 | D88: 3603679712914 | E88: 42 | F88: S.Men | G88: S.M.Espadrilles | H88: ND | I88: Automne-Hiver 2019 | J88: Tiger | K88: 1 | L88: 220 | M88: 220
A89: High Defintion Photos Available upon Request | B89: FA55ES188F85.01 | C89: FA55ES188F85.01.39 | D89: 3603679843694 | E89: 39 | F89: S.Men | G89: S.M.Espadrilles | H89: ND | I89: Printemps-Ete 2020 | J89: Tiger | K89: 4 | L89: 180 | M89: 720
A90: High Defintion Photos Available upon Request | C90: FA55ES188F85.01.40 | D90: 3603679843793 | E90: 40 | F90: S.Men | G90: S.M.Espadrilles | H90: ND | I90: Printemps-Ete 2020 | J90: Tiger | K90: 11 | L90: 180 | M90: 1980
A91: High Defintion Photos Available upon Request | C91: FA55ES188F85.01.41 | D91: 3603679843786 | E91: 41 | F91: S.Men | G91: S.M.Espadrilles | H91: ND | I91: Printemps-Ete 2020 | J91: Tiger | K91: 13 | L91: 180 | M91: 2340
A92: High Defintion Photos Available upon Request | C92: FA55ES188F85.01.42 | D92: 3603679843717 | E92: 42 | F92: S.Men | G92: S.M.Espadrilles | H92: ND | I92: Printemps-Ete 2020 | J92: Tiger | K92: 5 | L92: 180 | M92: 900
A93: High Defintion Photos Available upon Request | C93: FA55ES188F85.01.43 | D93: 3603679843724 | E93: 43 | F93: S.Men | G93: S.M.Espadrilles | H93: ND | I93: Printemps-Ete 2020 | J93: Tiger | K93: 17 | L93: 180 | M93: 3060
A94: High Defintion Photos Available upon Request | C94: FA55ES188F85.01.44 | D94: 3603679843670 | E94: 44 | F94: S.Men | G94: S.M.Espadrilles | H94: ND | I94: Printemps-Ete 2020 | J94: Tiger | K94: 8 | L94: 180 | M94: 1440
A95: High Defintion Photos Available upon Request | B95: FA55ES188F85.99 | C95: FA55ES188F85.99.39 | D95: 3603679843762 | E95: 39 | F95: S.Men | G95: S.M.Espadrilles | H95: ND | I95: Printemps-Ete 2020 | J95: Tiger | K95: 28 | L95: 180 | M95: 5040
A96: High Defintion Photos Available upon Request | C96: FA55ES188F85.99.40 | D96: 3603679843779 | E96: 40 | F96: S.Men | G96: S.M.Espadrilles | H96: ND | I96: Printemps-Ete 2020 | J96: Tiger | K96: 70 | L96: 180 | M96: 12600
A97: High Defintion Photos Available upon Request | C97: FA55ES188F85.99.41 | D97: 3603679843687 | E97: 41 | F97: S.Men | G97: S.M.Espadrilles | H97: ND | I97: Printemps-Ete 2020 | J97: Tiger | K97: 59 | L97: 180 | M97: 10620
A98: High Defintion Photos Available upon Request | C98: FA55ES188F85.99.42 | D98: 3603679843755 | E98: 42 | F98: S.Men | G98: S.M.Espadrilles | H98: ND | I98: Printemps-Ete 2020 | J98: Tiger | K98: 69 | L98: 180 | M98: 12420
A99: High Defintion Photos Available upon Request | C99: FA55ES188F85.99.43 | D99: 3603679843663 | E99: 43 | F99: S.Men | G99: S.M.Espadrilles | H99: ND | I99: Printemps-Ete 2020 | J99: Tiger | K99: 45 | L99: 180 | M99: 8100
A100: High Defintion Photos Available upon Request | C100: FA55ES188F85.99.44 | D100: 3603679843731 | E100: 44 | F100: S.Men | G100: S.M.Espadrilles | H100: ND | I100: Printemps-Ete 2020 | J100: Tiger | K100: 2 | L100: 180 | M100: 360
A101: High Defintion Photos Available upon Request | B101: FA65ES188F70.03 | C101: FA65ES188F70.03.40 | D101: 3603679921552 | E101: 40 | F101: S.Men | G101: S.M.Espadrilles | H101: ND | I101: Automne-Hiver 2020 | J101: Tiger | K101: 1 | L101: 180 | M101: 180
A102: High Defintion Photos Available upon Request | B102: FA65ES188F70.76 | C102: FA65ES188F70.76.41 | D102: 3603679921613 | E102: 41 | F102: S.Men | G102: S.M.Espadrilles | H102: ND | I102: Automne-Hiver 2020 | J102: Tiger | K102: 3 | L102: 180 | M102: 540
A103: High Defintion Photos Available upon Request | C103: FA65ES188F70.76.42 | D103: 3603679921293 | E103: 42 | F103: S.Men | G103: S.M.Espadrilles | H103: ND | I103: Automne-Hiver 2020 | J103: Tiger | K103: 4 | L103: 180 | M103: 720
A104: High Defintion Photos Available upon Request | C104: FA65ES188F70.76.43 | D104: 3603679921538 | E104: 43 | F104: S.Men | G104: S.M.Espadrilles | H104: ND | I104: Automne-Hiver 2020 | J104: Tiger | K104: 3 | L104: 180 | M104: 540
A105: High Defintion Photos Available upon Request | B105: FA65ES188F70.99 | C105: FA65ES188F70.99.39 | D105: 3603679921453 | E105: 39 | F105: S.Men | G105: S.M.Espadrilles | H105: ND | I105: Automne-Hiver 2020 | J105: Tiger | K105: 1 | L105: 180 | M105: 180
A106: High Defintion Photos Available upon Request | C106: FA65ES188F70.99.40 | D106: 3603679921378 | E106: 40 | F106: S.Men | G106: S.M.Espadrilles | H106: ND | I106: Automne-Hiver 2020 | J106: Tiger | K106: 11 | L106: 180 | M106: 1980
A107: High Defintion Photos Available upon Request | C107: FA65ES188F70.99.41 | D107: 3603679921521 | E107: 41 | F107: S.Men | G107: S.M.Espadrilles | H107: ND | I107: Automne-Hiver 2020 | J107: Tiger | K107: 16 | L107: 180 | M107: 2880
A108: High Defintion Photos Available upon Request | C108: FA65ES188F70.99.42 | D108: 3603679921279 | E108: 42 | F108: S.Men | G108: S.M.Espadrilles | H108: ND | I108: Automne-Hiver 2020 | J108: Tiger | K108: 14 | L108: 180 | M108: 2520
A109: High Defintion Photos Available upon Request | C109: FA65ES188F70.99.43 | D109: 3603679921323 | E109: 43 | F109: S.Men | G109: S.M.Espadrilles | H109: ND | I109: Automne-Hiver 2020 | J109: Tiger | K109: 13 | L109: 180 | M109: 2340
A110: High Defintion Photos Available upon Request | C110: FA65ES188F70.99.44 | D110: 3603679921583 | E110: 44 | F110: S.Men | G110: S.M.Espadrilles | H110: ND | I110: Automne-Hiver 2020 | J110: Tiger | K110: 6 | L110: 180 | M110: 1080
A111: High Defintion Photos Available upon Request | C111: FA65ES188F70.99.45 | D111: 3603679921392 | E111: 45 | F111: S.Men | G111: S.M.Espadrilles | H111: ND | I111: Automne-Hiver 2020 | J111: Tiger | K111: 7 | L111: 180 | M111: 1260
A112: High Defintion Photos Available upon Request | B112: FA65ES188L73.03 | C112: FA65ES188L73.03.39 | D112: 3603679923563 | E112: 39 | F112: S.Men | G112: S.M.Espadrilles | H112: ND | I112: Automne-Hiver 2020 | J112: Tiger | K112: 3 | L112: 220 | M112: 660
A113: High Defintion Photos Available upon Request | C113: FA65ES188L73.03.40 | D113: 3603679923532 | E113: 40 | F113: S.Men | G113: S.M.Espadrilles | H113: ND | I113: Automne-Hiver 2020 | J113: Tiger | K113: 5 | L113: 220 | M113: 1100
A114: High Defintion Photos Available upon Request | C114: FA65ES188L73.03.41 | D114: 3603679923600 | E114: 41 | F114: S.Men | G114: S.M.Espadrilles | H114: ND | I114: Automne-Hiver 2020 | J114: Tiger | K114: 6 | L114: 220 | M114: 1320
A115: High Defintion Photos Available upon Request | C115: FA65ES188L73.03.42 | D115: 3603679923488 | E115: 42 | F115: S.Men | G115: S.M.Espadrilles | H115: ND | I115: Automne-Hiver 2020 | J115: Tiger | K115: 5 | L115: 220 | M115: 1100
A116: High Defintion Photos Available upon Request | B116: FB55ES188F82.01B | C116: FB55ES188F82.01B.41 | D116: 3612230109865 | E116: 41 | F116: S.Men | G116: S.M.Espadrilles | H116: ND | I116: Printemps-Ete 2021 | J116: Tiger | K116: 3 | L116: 180 | M116: 540
A117: High Defintion Photos Available upon Request | C117: FB55ES188F82.01B.42 | D117: 3612230109940 | E117: 42 | F117: S.Men | G117: S.M.Espadrilles | H117: ND | I117: Printemps-Ete 2021 | J117: Tiger | K117: 2 | L117: 180 | M117: 360
A118: High Defintion Photos Available upon Request | C118: FB55ES188F82.01B.43 | D118: 3612230109926 | E118: 43 | F118: S.Men | G118: S.M.Espadrilles | H118: ND | I118: Printemps-Ete 2021 | J118: Tiger | K118: 5 | L118: 180 | M118: 900
A119: High Defintion Photos Available upon Request | B119: FC55ES188F71.01 | C119: FC55ES188F71.01.39 | D119: 3612230287914 | E119: 39 | F119: S.Men | G119: S.M.Espadrilles | H119: ND | I119: Printemps-Ete 2022 | J119: Tiger | K119: 2 | L119: 180 | M119: 360
A120: High Defintion Photos Available upon Request | B120: L85SHM615C29.02 | C120: L85SHM615C29.02.43 | D120: 3608533451909 | E120: 43 | F120: S.Men | G120: S.M.Espadrilles | H120: Accessories | I120: Printemps-Ete 2018 | J120: - | K120: 1 | L120: 150 | M120: 150
A121: High Defintion Photos Available upon Request | B121: FA65MU103P64.01 | C121: FA65MU103P64.01.41 | D121: 3603679857394 | E121: 41 | F121: S.Men | G121: S.M.Slide Shoes | H121: ND | I121: Automne-Hiver 2020 | J121: Kenzo Logo | K121: 2 | L121: 115 | M121: 230
A122: High Defintion Photos Available upon Request | B122: FA65MU103P64.99 | C122: FA65MU103P64.99.39 | D122: 3603679857448 | E122: 39 | F122: S.Men | G122: S.M.Slide Shoes | H122: ND | I122: Automne-Hiver 2020 | J122: Kenzo Logo | K122: 2 | L122: 115 | M122: 230
A123: High Defintion Photos Available upon Request | C123: FA65MU103P64.99.40 | D123: 3603679857264 | E123: 40 | F123: S.Men | G123: S.M.Slide Shoes | H123: ND | I123: Automne-Hiver 2020 | J123: Kenzo Logo | K123: 2 | L123: 115 | M123: 230
A124: High Defintion Photos Available upon Request | C124: FA65MU103P64.99.44 | D124: 3603679857455 | E124: 44 | F124: S.Men | G124: S.M.Slide Shoes | H124: ND | I124: Automne-Hiver 2020 | J124: Kenzo Logo | K124: 1 | L124: 115 | M124: 115
A125: High Defintion Photos Available upon Request | B125: FA65MU104P60.76 | C125: FA65MU104P60.76.39 | D125: 3603679857578 | E125: 39 | F125: S.Men | G125: S.M.Slide Shoes | H125: ND | I125: Automne-Hiver 2020 | J125: Tiger | K125: 2 | L125: 120 | M125: 240
A126: High Defintion Photos Available upon Request | C126: FA65MU104P60.76.40 | D126: 3603679857561 | E126: 40 | F126: S.Men | G126: S.M.Slide Shoes | H126: ND | I126: Automne-Hiver 2020 | J126: Tiger | K126: 1 | L126: 120 | M126: 120
A127: High Defintion Photos Available upon Request | C127: FA65MU104P60.76.41 | D127: 3603679857523 | E127: 41 | F127: S.Men | G127: S.M.Slide Shoes | H127: ND | I127: Automne-Hiver 2020 | J127: Tiger | K127: 17 | L127: 120 | M127: 2040
A128: High Defintion Photos Available upon Request | C128: FA65MU104P60.76.42 | D128: 3603679857479 | E128: 42 | F128: S.Men | G128: S.M.Slide Shoes | H128: ND | I128: Automne-Hiver 2020 | J128: Tiger | K128: 8 | L128: 120 | M128: 960
A129: High Defintion Photos Available upon Request | C129: FA65MU104P60.76.43 | D129: 3603679857509 | E129: 43 | F129: S.Men | G129: S.M.Slide Shoes | H129: ND | I129: Automne-Hiver 2020 | J129: Tiger | K129: 1 | L129: 120 | M129: 120
A130: High Defintion Photos Available upon Request | B130: FA65MU104P60.99 | C130: FA65MU104P60.99.39 | D130: 3603679857608 | E130: 39 | F130: S.Men | G130: S.M.Slide Shoes | H130: ND | I130: Automne-Hiver 2020 | J130: Tiger | K130: 26 | L130: 120 | M130: 3120
A131: High Defintion Photos Available upon Request | C131: FA65MU104P60.99.40 | D131: 3603679857585 | E131: 40 | F131: S.Men | G131: S.M.Slide Shoes | H131: ND | I131: Automne-Hiver 2020 | J131: Tiger | K131: 28 | L131: 120 | M131: =L131*K131 -> 3360
A132: High Defintion Photos Available upon Request | C132: FA65MU104P60.99.41 | D132: 3603679857486 | E132: 41 | F132: S.Men | G132: S.M.Slide Shoes | H132: ND | I132: Automne-Hiver 2020 | J132: Tiger | K132: 33 | L132: 120 | M132: 3960
A133: High Defintion Photos Available upon Request | C133: FA65MU104P60.99.42 | D133: 3603679857554 | E133: 42 | F133: S.Men | G133: S.M.Slide Shoes | H133: ND | I133: Automne-Hiver 2020 | J133: Tiger | K133: 17 | L133: 120 | M133: 2040
A134: High Defintion Photos Available upon Request | C134: FA65MU104P60.99.43 | D134: 3603679857547 | E134: 43 | F134: S.Men | G134: S.M.Slide Shoes | H134: ND | I134: Automne-Hiver 2020 | J134: Tiger | K134: 3 | L134: 120 | M134: 360
A135: High Defintion Photos Available upon Request | C135: FA65MU104P60.99.44 | D135: 3603679857516 | E135: 44 | F135: S.Men | G135: S.M.Slide Shoes | H135: ND | I135: Automne-Hiver 2020 | J135: Tiger | K135: 2 | L135: 120 | M135: 240
A136: High Defintion Photos Available upon Request | B136: FB55MU100P62.01 | C136: FB55MU100P62.01.40 | D136: 3612230053151 | E136: 40 | F136: S.Men | G136: S.M.Slide Shoes | H136: ND | I136: Printemps-Ete 2021 | J136: - | K136: 1 | L136: 95 | M136: 95
A137: High Defintion Photos Available upon Request | C137: FB55MU100P62.01.41 | D137: 3612230053168 | E137: 41 | F137: S.Men | G137: S.M.Slide Shoes | H137: ND | I137: Printemps-Ete 2021 | J137: - | K137: 1 | L137: 95 | M137: 95
A138: High Defintion Photos Available upon Request | C138: FB55MU100P62.01.44 | D138: 3612230053120 | E138: 44 | F138: S.Men | G138: S.M.Slide Shoes | H138: ND | I138: Printemps-Ete 2021 | J138: - | K138: 1 | L138: 95 | M138: 95
A139: High Defintion Photos Available upon Request | B139: FB55MU100P62.99 | C139: FB55MU100P62.99.39 | D139: 3612230053212 | E139: 39 | F139: S.Men | G139: S.M.Slide Shoes | H139: ND | I139: Printemps-Ete 2021 | J139: - | K139: 8 | L139: 95 | M139: 760
A140: High Defintion Photos Available upon Request | C140: FB55MU100P62.99.40 | D140: 3612230053229 | E140: 40 | F140: S.Men | G140: S.M.Slide Shoes | H140: ND | I140: Printemps-Ete 2021 | J140: - | K140: 7 | L140: 95 | M140: 665
A141: High Defintion Photos Available upon Request | C141: FB55MU100P62.99.41 | D141: 3612230053205 | E141: 41 | F141: S.Men | G141: S.M.Slide Shoes | H141: ND | I141: Printemps-Ete 2021 | J141: - | K141: 6 | L141: 95 | M141: 570
A142: High Defintion Photos Available upon Request | C142: FB55MU100P62.99.42 | D142: 3612230053236 | E142: 42 | F142: S.Men | G142: S.M.Slide Shoes | H142: ND | I142: Printemps-Ete 2021 | J142: - | K142: 4 | L142: 95 | M142: 380
A143: High Defintion Photos Available upon Request | C143: FB55MU100P62.99.45 | D143: 3612230053274 | E143: 45 | F143: S.Men | G143: S.M.Slide Shoes | H143: ND | I143: Printemps-Ete 2021 | J143: - | K143: 1 | L143: 95 | M143: 95
A144: High Defintion Photos Available upon Request | B144: F765SN100L50.99 | C144: F765SN100L50.99.43 | D144: 3603679247591 | E144: 43 | F144: S.Men | G144: S.M.Sneakers | H144: Shoes | I144: Automne-Hiver 2017 | J144: Tiger | K144: 1 | L144: 160 | M144: 160
A145: High Defintion Photos Available upon Request | B145: F765SN226F52.67 | C145: F765SN226F52.67.43 | D145: 3603679248901 | E145: 43 | F145: S.Men | G145: S.M.Sneakers | H145: Shoes | I145: Automne-Hiver 2017 | J145: - | K145: 1 | L145: 280 | M145: 280
A146: High Defintion Photos Available upon Request | B146: F765SN350F54.01 | C146: F765SN350F54.01.44 | D146: 3603679249960 | E146: 44 | F146: S.Men | G146: S.M.Sneakers | H146: Shoes | I146: Automne-Hiver 2017 | J146: - | K146: 1 | L146: 270 | M146: 270
A147: High Defintion Photos Available upon Request | B147: F855SN100F76.99 | C147: F855SN100F76.99.45 | D147: 3603679229832 | E147: 45 | F147: S.Men | G147: S.M.Sneakers | H147: Shoes | I147: Printemps-Ete 2018 | J147: - | K147: 1 | L147: 145 | M147: 145
A148: High Defintion Photos Available upon Request | B148: F955SN103F86.21 | C148: F955SN103F86.21.44 | D148: 3603679565381 | E148: 44 | F148: S.Men | G148: S.M.Sneakers | H148: Shoes | I148: Printemps-Ete 2019 | J148: Tiger | K148: 1 | L148: 175 | M148: 175
A149: High Defintion Photos Available upon Request | B149: F955SN108L92.23 | C149: F955SN108L92.23.42 | D149: 3603679572303 | E149: 42 | F149: S.Men | G149: S.M.Sneakers | H149: Shoes | I149: Printemps-Ete 2019 | J149: - | K149: 1 | L149: 195 | M149: 195
A150: High Defintion Photos Available upon Request | B150: F965SN163L56.70 | C150: F965SN163L56.70.41 | D150: 3603679694050 | E150: 41 | F150: S.Men | G150: S.M.Sneakers | H150: ND | I150: Automne-Hiver 2019 | J150: Seasonal Logo | K150: 1 | L150: 220 | M150: 220
A151: High Defintion Photos Available upon Request | B151: F965SN260L61.51 | C151: F965SN260L61.51.42 | D151: 3603679696566 | E151: 42 | F151: S.Men | G151: S.M.Sneakers | H151: ND | I151: Automne-Hiver 2019 | J151: Kenzo Paris | K151: 1 | L151: 225 | M151: 225
A152: High Defintion Photos Available upon Request | B152: F965SN300L69.41 | C152: F965SN300L69.41.39 | D152: 3603679714406 | E152: 39 | F152: S.Men | G152: S.M.Sneakers | H152: ND | I152: Automne-Hiver 2019 | J152: - | K152: 2 | L152: 375 | M152: 750
A153: High Defintion Photos Available upon Request | C153: F965SN300L69.41.40 | D153: 3603679714413 | E153: 40 | F153: S.Men | G153: S.M.Sneakers | H153: ND | I153: Automne-Hiver 2019 | J153: - | K153: 1 | L153: 375 | M153: 375
A154: High Defintion Photos Available upon Request | C154: F965SN300L69.41.42 | D154: 3603679714239 | E154: 42 | F154: S.Men | G154: S.M.Sneakers | H154: ND | I154: Automne-Hiver 2019 | J154: - | K154: 1 | L154: 375 | M154: 375
A155: High Defintion Photos Available upon Request | C155: F965SN300L69.41.44 | D155: 3603679714246 | E155: 44 | F155: S.Men | G155: S.M.Sneakers | H155: ND | I155: Automne-Hiver 2019 | J155: - | K155: 1 | L155: 375 | M155: 375
A156: High Defintion Photos Available upon Request | C156: F965SN300L69.41.45 | D156: 3603679714338 | E156: 45 | F156: S.Men | G156: S.M.Sneakers | H156: ND | I156: Automne-Hiver 2019 | J156: - | K156: 1 | L156: 375 | M156: 375
A157: High Defintion Photos Available upon Request | B157: F965SN300L69.99 | C157: F965SN300L69.99.40 | D157: 3603679803407 | E157: 40 | F157: S.Men | G157: S.M.Sneakers | H157: ND | I157: Printemps-Ete 2020 | J157: - | K157: 8 | L157: 375 | M157: 3000
A158: High Defintion Photos Available upon Request | C158: F965SN300L69.99.41 | D158: 3603679803452 | E158: 41 | F158: S.Men | G158: S.M.Sneakers | H158: ND | I158: Printemps-Ete 2020 | J158: - | K158: 3 | L158: 375 | M158: 1125
A159: High Defintion Photos Available upon Request | B159: F965SN450F65.46 | C159: F965SN450F65.46.40 | D159: 3603679714727 | E159: 40 | F159: S.Men | G159: S.M.Sneakers | H159: ND | I159: Automne-Hiver 2019 | J159: - | K159: 2 | L159: 295 | M159: 590
A160: High Defintion Photos Available upon Request | C160: F965SN450F65.46.41 | D160: 3603679714758 | E160: 41 | F160: S.Men | G160: S.M.Sneakers | H160: ND | I160: Automne-Hiver 2019 | J160: - | K160: 1 | L160: 295 | M160: 295
A161: High Defintion Photos Available upon Request | C161: F965SN450F65.46.42 | D161: 3603679714789 | E161: 42 | F161: S.Men | G161: S.M.Sneakers | H161: ND | I161: Automne-Hiver 2019 | J161: - | K161: 2 | L161: 295 | M161: 590
A162: High Defintion Photos Available upon Request | C162: F965SN450F65.46.43 | D162: 3603679714772 | E162: 43 | F162: S.Men | G162: S.M.Sneakers | H162: ND | I162: Automne-Hiver 2019 | J162: - | K162: 1 | L162: 295 | M162: 295
A163: High Defintion Photos Available upon Request | B163: F965SN450F65.MU | C163: F965SN450F65.MU.39 | D163: 3603679803575 | E163: 39 | F163: S.Men | G163: S.M.Sneakers | H163: ND | I163: Printemps-Ete 2020 | J163: - | K163: 1 | L163: 295 | M163: 295
A164: High Defintion Photos Available upon Request | B164: FA55SN004F57.99 | C164: FA55SN004F57.99.39 | D164: 3603679823665 | E164: 39 | F164: S.Men | G164: S.M.Sneakers | H164: ND | I164: Printemps-Ete 2020 | J164: - | K164: 11 | L164: 295 | M164: 3245
A165: High Defintion Photos Available upon Request | C165: FA55SN004F57.99.40 | D165: 3603679823788 | E165: 40 | F165: S.Men | G165: S.M.Sneakers | H165: ND | I165: Printemps-Ete 2020 | J165: - | K165: 24 | L165: 295 | M165: 7080
A166: High Defintion Photos Available upon Request | C166: FA55SN004F57.99.41 | D166: 3603679823795 | E166: 41 | F166: S.Men | G166: S.M.Sneakers | H166: ND | I166: Printemps-Ete 2020 | J166: - | K166: 29 | L166: 295 | M166: 8555
A167: High Defintion Photos Available upon Request | C167: FA55SN004F57.99.42 | D167: 3603679823825 | E167: 42 | F167: S.Men | G167: S.M.Sneakers | H167: ND | I167: Printemps-Ete 2020 | J167: - | K167: 39 | L167: 295 | M167: 11505
A168: High Defintion Photos Available upon Request | C168: FA55SN004F57.99.43 | D168: 3603679823801 | E168: 43 | F168: S.Men | G168: S.M.Sneakers | H168: ND | I168: Printemps-Ete 2020 | J168: - | K168: 22 | L168: 295 | M168: 6490
A169: High Defintion Photos Available upon Request | C169: FA55SN004F57.99.44 | D169: 3603679823818 | E169: 44 | F169: S.Men | G169: S.M.Sneakers | H169: ND | I169: Printemps-Ete 2020 | J169: - | K169: 32 | L169: 295 | M169: 9440
A170: High Defintion Photos Available upon Request | C170: FA55SN004F57.99.45 | D170: 3603679823894 | E170: 45 | F170: S.Men | G170: S.M.Sneakers | H170: ND | I170: Printemps-Ete 2020 | J170: - | K170: 3 | L170: 295 | M170: 885
A171: High Defintion Photos Available upon Request | B171: FA55SN232L74.21 | C171: FA55SN232L74.21.39 | D171: 3603679832551 | E171: 39 | F171: S.Men | G171: S.M.Sneakers | H171: ND | I171: Printemps-Ete 2020 | J171: - | K171: 1 | L171: 265 | M171: 265
A172: High Defintion Photos Available upon Request | B172: FA55SN260F77.03 | C172: FA55SN260F77.03.39 | D172: 3603679832988 | E172: 39 | F172: S.Men | G172: S.M.Sneakers | H172: ND | I172: Printemps-Ete 2020 | J172: Kenzo Paris | K172: 1 | L172: 245 | M172: 245
A173: High Defintion Photos Available upon Request | B173: FA55SN600F87.39 | C173: FA55SN600F87.39.39 | D173: 3603679847975 | E173: 39 | F173: S.Men | G173: S.M.Sneakers | H173: ND | I173: Printemps-Ete 2020 | J173: Print | K173: 1 | L173: 195 | M173: 195
A174: High Defintion Photos Available upon Request | C174: FA55SN600F87.39.40 | D174: 3603679847876 | E174: 40 | F174: S.Men | G174: S.M.Sneakers | H174: ND | I174: Printemps-Ete 2020 | J174: Print | K174: 6 | L174: 195 | M174: 1170
A175: High Defintion Photos Available upon Request | C175: FA55SN600F87.39.42 | D175: 3603679847883 | E175: 42 | F175: S.Men | G175: S.M.Sneakers | H175: ND | I175: Printemps-Ete 2020 | J175: Print | K175: 5 | L175: 195 | M175: 975
A176: High Defintion Photos Available upon Request | C176: FA55SN600F87.39.43 | D176: 3603679847920 | E176: 43 | F176: S.Men | G176: S.M.Sneakers | H176: ND | I176: Printemps-Ete 2020 | J176: Print | K176: 1 | L176: 195 | M176: 195
A177: High Defintion Photos Available upon Request | C177: FA55SN600F87.39.44 | D177: 3603679847968 | E177: 44 | F177: S.Men | G177: S.M.Sneakers | H177: ND | I177: Printemps-Ete 2020 | J177: Print | K177: 1 | L177: 195 | M177: 195
A178: High Defintion Photos Available upon Request | B178: FA55SN601F87.39 | C178: FA55SN601F87.39.40 | D178: 3603679848194 | E178: 40 | F178: S.Men | G178: S.M.Sneakers | H178: ND | I178: Printemps-Ete 2020 | J178: Print | K178: 5 | L178: 175 | M178: 875
A179: High Defintion Photos Available upon Request | C179: FA55SN601F87.39.41 | D179: 3603679848132 | E179: 41 | F179: S.Men | G179: S.M.Sneakers | H179: ND | I179: Printemps-Ete 2020 | J179: Print | K179: 5 | L179: 175 | M179: 875
A180: High Defintion Photos Available upon Request | B180: FA55SN601F87.99 | C180: FA55SN601F87.99.40 | D180: 3603679848118 | E180: 40 | F180: S.Men | G180: S.M.Sneakers | H180: ND | I180: Printemps-Ete 2020 | J180: Print | K180: 11 | L180: 175 | M180: 1925
A181: High Defintion Photos Available upon Request | B181: FA65SN004F57.01 | C181: FA65SN004F57.01.39 | D181: 3603679857721 | E181: 39 | F181: S.Men | G181: S.M.Sneakers | H181: ND | I181: Automne-Hiver 2020 | J181: Kenzo Sport | K181: 33 | L181: 295 | M181: 9735
A182: High Defintion Photos Available upon Request | C182: FA65SN004F57.01.40 | D182: 3603679857790 | E182: 40 | F182: S.Men | G182: S.M.Sneakers | H182: ND | I182: Automne-Hiver 2020 | J182: Kenzo Sport | K182: 71 | L182: 295 | M182: 20945
A183: High Defintion Photos Available upon Request | C183: FA65SN004F57.01.41 | D183: 3603679857912 | E183: 41 | F183: S.Men | G183: S.M.Sneakers | H183: ND | I183: Automne-Hiver 2020 | J183: Kenzo Sport | K183: 126 | L183: 295 | M183: 37170
A184: High Defintion Photos Available upon Request | C184: FA65SN004F57.01.42 | D184: 3603679857929 | E184: 42 | F184: S.Men | G184: S.M.Sneakers | H184: ND | I184: Automne-Hiver 2020 | J184: Kenzo Sport | K184: 140 | L184: 295 | M184: 41300
A185: High Defintion Photos Available upon Request | C185: FA65SN004F57.01.43 | D185: 3603679857936 | E185: 43 | F185: S.Men | G185: S.M.Sneakers | H185: ND | I185: Automne-Hiver 2020 | J185: Kenzo Sport | K185: 109 | L185: 295 | M185: 32155
A186: High Defintion Photos Available upon Request | C186: FA65SN004F57.01.44 | D186: 3603679857943 | E186: 44 | F186: S.Men | G186: S.M.Sneakers | H186: ND | I186: Automne-Hiver 2020 | J186: Kenzo Sport | K186: 64 | L186: 295 | M186: 18880
A187: High Defintion Photos Available upon Request | C187: FA65SN004F57.01.45 | D187: 3603679858032 | E187: 45 | F187: S.Men | G187: S.M.Sneakers | H187: ND | I187: Automne-Hiver 2020 | J187: Kenzo Sport | K187: 35 | L187: 295 | M187: 10325
A188: High Defintion Photos Available upon Request | B188: FA65SN004F57.99 | C188: FA65SN004F57.99.39 | D188: 3603679857851 | E188: 39 | F188: S.Men | G188: S.M.Sneakers | H188: ND | I188: Automne-Hiver 2020 | J188: Kenzo Sport | K188: 22 | L188: 295 | M188: 6490
A189: High Defintion Photos Available upon Request | C189: FA65SN004F57.99.40 | D189: 3603679858056 | E189: 40 | F189: S.Men | G189: S.M.Sneakers | H189: ND | I189: Automne-Hiver 2020 | J189: Kenzo Sport | K189: 63 | L189: 295 | M189: 18585
A190: High Defintion Photos Available upon Request | C190: FA65SN004F57.99.41 | D190: 3603679857905 | E190: 41 | F190: S.Men | G190: S.M.Sneakers | H190: ND | I190: Automne-Hiver 2020 | J190: Kenzo Sport | K190: 97 | L190: 295 | M190: 28615
A191: High Defintion Photos Available upon Request | C191: FA65SN004F57.99.42 | D191: 3603679857882 | E191: 42 | F191: S.Men | G191: S.M.Sneakers | H191: ND | I191: Automne-Hiver 2020 | J191: Kenzo Sport | K191: 110 | L191: 295 | M191: 32450
A192: High Defintion Photos Available upon Request | C192: FA65SN004F57.99.43 | D192: 3603679857844 | E192: 43 | F192: S.Men | G192: S.M.Sneakers | H192: ND | I192: Automne-Hiver 2020 | J192: Kenzo Sport | K192: 86 | L192: 295 | M192: 25370
A193: High Defintion Photos Available upon Request | C193: FA65SN004F57.99.44 | D193: 3603679857837 | E193: 44 | F193: S.Men | G193: S.M.Sneakers | H193: ND | I193: Automne-Hiver 2020 | J193: Kenzo Sport | K193: 76 | L193: 295 | M193: 22420
A194: High Defintion Photos Available upon Request | C194: FA65SN004F57.99.45 | D194: 3603679857875 | E194: 45 | F194: S.Men | G194: S.M.Sneakers | H194: ND | I194: Automne-Hiver 2020 | J194: Kenzo Sport | K194: 25 | L194: 295 | M194: 7375
A195: High Defintion Photos Available upon Request | B195: FA65SN170L50.01 | C195: FA65SN170L50.01.40 | D195: 3603679935757 | E195: 40 | F195: S.Men | G195: S.M.Sneakers | H195: ND | I195: Automne-Hiver 2020 | J195: K Logo | K195: 2 | L195: 295 | M195: =L195*K195 -> 590
A196: High Defintion Photos Available upon Request | C196: FA65SN170L50.01.44 | D196: 3603679935795 | E196: 44 | F196: S.Men | G196: S.M.Sneakers | H196: ND | I196: Automne-Hiver 2020 | J196: K Logo | K196: 2 | L196: 295 | M196: 590
A197: High Defintion Photos Available upon Request | B197: FA65SN170L50.71 | C197: FA65SN170L50.71.40 | D197: 3603679982713 | E197: 40 | F197: S.Men | G197: S.M.Sneakers | H197: ND | I197: Printemps-Ete 2021 | J197: K Logo | K197: 10 | L197: 295 | M197: 2950
A198: High Defintion Photos Available upon Request | C198: FA65SN170L50.71.41 | D198: 3603679982829 | E198: 41 | F198: S.Men | G198: S.M.Sneakers | H198: ND | I198: Printemps-Ete 2021 | J198: K Logo | K198: 3 | L198: 295 | M198: 885
A199: High Defintion Photos Available upon Request | C199: FA65SN170L50.71.44 | D199: 3603679982911 | E199: 44 | F199: S.Men | G199: S.M.Sneakers | H199: ND | I199: Printemps-Ete 2021 | J199: K Logo | K199: 2 | L199: 295 | M199: 590
A200: High Defintion Photos Available upon Request | B200: FA65SN171L50.55 | C200: FA65SN171L50.55.45 | D200: 3603679935832 | E200: 45 | F200: S.Men | G200: S.M.Sneakers | H200: ND | I200: Automne-Hiver 2020 | J200: K Logo | K200: 2 | L200: 250 | M200: 500
... 44 more rows

Sheet Shoes W
A1: PHOTOS | B1: MTC | C1: Mtct | D1: EAN | E1: Size | F1: L2 Department | G1: L3 Category | H1: Knowhow new | I1: Creation season | J1: Universe | K1: Quantity | L1: Prix retail EUR | M1: TOT Prix retail EUR | N1: Purchase Order Quantity
A2: High Defintion Photos Upon Request | B2: F852SD512L51.99 | C2: F852SD512L51.99.37 | D2: 3603679216504 | E2: 37 | F2: S.Women | G2: S.W.City | H2: Shoes | I2: Printemps-Ete 2018 | J2: - | K2: 1 | L2: 450 | M2: =L2*K2 -> 450
A3: High Defintion Photos Upon Request | B3: F952LO126L58.99 | C3: F952LO126L58.99.35 | D3: 3603679509958 | E3: 35 | F3: S.Women | G3: S.W.City | H3: Shoes | I3: Printemps-Ete 2019 | J3: - | K3: 2 | L3: 265 | M3: =L3*K3 -> 530
A4: High Defintion Photos Upon Request | C4: F952LO126L58.99.36 | D4: 3603679509996 | E4: 36 | F4: S.Women | G4: S.W.City | H4: Shoes | I4: Printemps-Ete 2019 | J4: - | K4: 2 | L4: 265 | M4: 530
A5: High Defintion Photos Upon Request | B5: F962BT005F55.30 | C5: F962BT005F55.30.40 | D5: 3603679704148 | E5: 40 | F5: S.Women | G5: S.W.City | H5: ND | I5: Automne-Hiver 2019 | J5: - | K5: 1 | L5: 395 | M5: 395
A6: High Defintion Photos Upon Request | B6: F962BT006L51.99 | C6: F962BT006L51.99.37 | D6: 3603679721688 | E6: 37 | F6: S.Women | G6: S.W.City | H6: ND | I6: Automne-Hiver 2019 | J6: - | K6: 35 | L6: 495 | M6: 17325
A7: High Defintion Photos Upon Request | C7: F962BT006L51.99.38 | D7: 3603679721671 | E7: 38 | F7: S.Women | G7: S.W.City | H7: ND | I7: Automne-Hiver 2019 | J7: - | K7: 32 | L7: 495 | M7: 15840
A8: High Defintion Photos Upon Request | C8: F962BT006L51.99.39 | D8: 3603679721572 | E8: 39 | F8: S.Women | G8: S.W.City | H8: ND | I8: Automne-Hiver 2019 | J8: - | K8: 10 | L8: 495 | M8: 4950
A9: High Defintion Photos Upon Request | C9: F962BT006L51.99.41 | D9: 3603679721510 | E9: 41 | F9: S.Women | G9: S.W.City | H9: ND | I9: Automne-Hiver 2019 | J9: - | K9: 1 | L9: 495 | M9: 495
A10: High Defintion Photos Upon Request | B10: F962BT354L56.99 | C10: F962BT354L56.99.36 | D10: 3603679718039 | E10: 36 | F10: S.Women | G10: S.W.City | H10: ND | I10: Automne-Hiver 2019 | J10: - | K10: 2 | L10: 375 | M10: 750
A11: High Defintion Photos Upon Request | C11: F962BT354L56.99.37 | D11: 3603679718084 | E11: 37 | F11: S.Women | G11: S.W.City | H11: ND | I11: Automne-Hiver 2019 | J11: - | K11: 16 | L11: 375 | M11: 6000
A12: High Defintion Photos Upon Request | C12: F962BT354L56.99.38 | D12: 3603679718060 | E12: 38 | F12: S.Women | G12: S.W.City | H12: ND | I12: Automne-Hiver 2019 | J12: - | K12: 14 | L12: 375 | M12: 5250
A13: High Defintion Photos Upon Request | C13: F962BT354L56.99.39 | D13: 3603679718091 | E13: 39 | F13: S.Women | G13: S.W.City | H13: ND | I13: Automne-Hiver 2019 | J13: - | K13: 5 | L13: 375 | M13: 1875
A14: High Defintion Photos Upon Request | C14: F962BT354L56.99.40 | D14: 3603679718077 | E14: 40 | F14: S.Women | G14: S.W.City | H14: ND | I14: Automne-Hiver 2019 | J14: - | K14: 1 | L14: 375 | M14: 375
A15: High Defintion Photos Upon Request | C15: F962BT354L56.99.41 | D15: 3603679718046 | E15: 41 | F15: S.Women | G15: S.W.City | H15: ND | I15: Automne-Hiver 2019 | J15: - | K15: 1 | L15: 375 | M15: 375
A16: High Defintion Photos Upon Request | B16: FA62BT017L58.14 | C16: FA62BT017L58.14.36 | D16: 3603679930233 | E16: 36 | F16: S.Women | G16: S.W.City | H16: ND | I16: Automne-Hiver 2020 | J16: - | K16: 1 | L16: 395 | M16: 395
A17: High Defintion Photos Upon Request | C17: FA62BT017L58.14.37 | D17: 3603679930141 | E17: 37 | F17: S.Women | G17: S.W.City | H17: ND | I17: Automne-Hiver 2020 | J17: - | K17: 21 | L17: 395 | M17: 8295
A18: High Defintion Photos Upon Request | C18: FA62BT017L58.14.38 | D18: 3603679930219 | E18: 38 | F18: S.Women | G18: S.W.City | H18: ND | I18: Automne-Hiver 2020 | J18: - | K18: 14 | L18: 395 | M18: 5530
A19: High Defintion Photos Upon Request | C19: FA62BT017L58.14.39 | D19: 3603679930189 | E19: 39 | F19: S.Women | G19: S.W.City | H19: ND | I19: Automne-Hiver 2020 | J19: - | K19: 9 | L19: 395 | M19: 3555
A20: High Defintion Photos Upon Request | C20: FA62BT017L58.14.40 | D20: 3603679930202 | E20: 40 | F20: S.Women | G20: S.W.City | H20: ND | I20: Automne-Hiver 2020 | J20: - | K20: 8 | L20: 395 | M20: 3160
A21: High Defintion Photos Upon Request | C21: FA62BT017L58.14.41 | D21: 3603679930172 | E21: 41 | F21: S.Women | G21: S.W.City | H21: ND | I21: Automne-Hiver 2020 | J21: - | K21: 10 | L21: 395 | M21: 3950
A22: High Defintion Photos Upon Request | B22: FA62BT018L52.11 | C22: FA62BT018L52.11.36 | D22: 3603679945671 | E22: 36 | F22: S.Women | G22: S.W.City | H22: ND | I22: Automne-Hiver 2020 | J22: - | K22: 5 | L22: 495 | M22: 2475
A23: High Defintion Photos Upon Request | C23: FA62BT018L52.11.37 | D23: 3603679945602 | E23: 37 | F23: S.Women | G23: S.W.City | H23: ND | I23: Automne-Hiver 2020 | J23: - | K23: 4 | L23: 495 | M23: 1980
A24: High Defintion Photos Upon Request | C24: FA62BT018L52.11.38 | D24: 3603679945619 | E24: 38 | F24: S.Women | G24: S.W.City | H24: ND | I24: Automne-Hiver 2020 | J24: - | K24: 8 | L24: 495 | M24: 3960
A25: High Defintion Photos Upon Request | C25: FA62BT018L52.11.39 | D25: 3603679945732 | E25: 39 | F25: S.Women | G25: S.W.City | H25: ND | I25: Automne-Hiver 2020 | J25: - | K25: 3 | L25: 495 | M25: 1485
A26: High Defintion Photos Upon Request | C26: FA62BT018L52.11.40 | D26: 3603679945701 | E26: 40 | F26: S.Women | G26: S.W.City | H26: ND | I26: Automne-Hiver 2020 | J26: - | K26: 1 | L26: 495 | M26: 495
A27: High Defintion Photos Upon Request | B27: FA62BT025L66.99 | C27: FA62BT025L66.99.36 | D27: 3603679925475 | E27: 36 | F27: S.Women | G27: S.W.City | H27: ND | I27: Automne-Hiver 2020 | J27: - | K27: 13 | L27: 545 | M27: 7085
A28: High Defintion Photos Upon Request | B28: FA62BT026L58.14 | C28: FA62BT026L58.14.36 | D28: 3603679925581 | E28: 36 | F28: S.Women | G28: S.W.City | H28: ND | I28: Automne-Hiver 2020 | J28: - | K28: 12 | L28: 575 | M28: 6900
A29: High Defintion Photos Upon Request | C29: FA62BT026L58.14.37 | D29: 3603679925598 | E29: 37 | F29: S.Women | G29: S.W.City | H29: ND | I29: Automne-Hiver 2020 | J29: - | K29: 16 | L29: 575 | M29: 9200
A30: High Defintion Photos Upon Request | C30: FA62BT026L58.14.38 | D30: 3603679925567 | E30: 38 | F30: S.Women | G30: S.W.City | H30: ND | I30: Automne-Hiver 2020 | J30: - | K30: 17 | L30: 575 | M30: 9775
A31: High Defintion Photos Upon Request | C31: FA62BT026L58.14.39 | D31: 3603679925611 | E31: 39 | F31: S.Women | G31: S.W.City | H31: ND | I31: Automne-Hiver 2020 | J31: - | K31: 19 | L31: 575 | M31: 10925
A32: High Defintion Photos Upon Request | C32: FA62BT026L58.14.40 | D32: 3603679925604 | E32: 40 | F32: S.Women | G32: S.W.City | H32: ND | I32: Automne-Hiver 2020 | J32: - | K32: 14 | L32: 575 | M32: 8050
A33: High Defintion Photos Upon Request | C33: FA62BT026L58.14.41 | D33: 3603679925574 | E33: 41 | F33: S.Women | G33: S.W.City | H33: ND | I33: Automne-Hiver 2020 | J33: - | K33: 9 | L33: 575 | M33: 5175
A34: High Defintion Photos Upon Request | B34: FA62BT027L66.03 | C34: FA62BT027L66.03.36 | D34: 3603679925758 | E34: 36 | F34: S.Women | G34: S.W.City | H34: ND | I34: Automne-Hiver 2020 | J34: - | K34: 1 | L34: 595 | M34: 595
A35: High Defintion Photos Upon Request | B35: FA62BT028L57.14 | C35: FA62BT028L57.14.36 | D35: 3603679925796 | E35: 36 | F35: S.Women | G35: S.W.City | H35: ND | I35: Automne-Hiver 2020 | J35: - | K35: 15 | L35: 395 | M35: 5925
A36: High Defintion Photos Upon Request | C36: FA62BT028L57.14.37 | D36: 3603679925802 | E36: 37 | F36: S.Women | G36: S.W.City | H36: ND | I36: Automne-Hiver 2020 | J36: - | K36: 12 | L36: 395 | M36: 4740
A37: High Defintion Photos Upon Request | C37: FA62BT028L57.14.38 | D37: 3603679925819 | E37: 38 | F37: S.Women | G37: S.W.City | H37: ND | I37: Automne-Hiver 2020 | J37: - | K37: 15 | L37: 395 | M37: 5925
A38: High Defintion Photos Upon Request | C38: FA62BT028L57.14.39 | D38: 3603679925772 | E38: 39 | F38: S.Women | G38: S.W.City | H38: ND | I38: Automne-Hiver 2020 | J38: - | K38: 5 | L38: 395 | M38: 1975
A39: High Defintion Photos Upon Request | C39: FA62BT028L57.14.40 | D39: 3603679925833 | E39: 40 | F39: S.Women | G39: S.W.City | H39: ND | I39: Automne-Hiver 2020 | J39: - | K39: 4 | L39: 395 | M39: 1580
A40: High Defintion Photos Upon Request | C40: FA62BT028L57.14.41 | D40: 3603679925789 | E40: 41 | F40: S.Women | G40: S.W.City | H40: ND | I40: Automne-Hiver 2020 | J40: - | K40: 5 | L40: 395 | M40: 1975
A41: High Defintion Photos Upon Request | B41: FA62BT028L64.99 | C41: FA62BT028L64.99.36 | D41: 3603679925888 | E41: 36 | F41: S.Women | G41: S.W.City | H41: ND | I41: Automne-Hiver 2020 | J41: - | K41: 15 | L41: 395 | M41: 5925
A42: High Defintion Photos Upon Request | C42: FA62BT028L64.99.39 | D42: 3603679925949 | E42: 39 | F42: S.Women | G42: S.W.City | H42: ND | I42: Automne-Hiver 2020 | J42: - | K42: 2 | L42: 395 | M42: 790
A43: High Defintion Photos Upon Request | B43: FA62BT041L60.03 | C43: FA62BT041L60.03.39 | D43: 3603679947149 | E43: 39 | F43: S.Women | G43: S.W.City | H43: ND | I43: Automne-Hiver 2020 | J43: - | K43: 6 | L43: 850 | M43: 5100
A44: High Defintion Photos Upon Request | C44: FA62BT041L60.03.40 | D44: 3603679946937 | E44: 40 | F44: S.Women | G44: S.W.City | H44: ND | I44: Automne-Hiver 2020 | J44: - | K44: 2 | L44: 850 | M44: 1700
A45: High Defintion Photos Upon Request | B45: FA62BT041L60.49 | C45: FA62BT041L60.49.36 | D45: 3603679947170 | E45: 36 | F45: S.Women | G45: S.W.City | H45: ND | I45: Automne-Hiver 2020 | J45: - | K45: 5 | L45: 850 | M45: 4250
A46: High Defintion Photos Upon Request | C46: FA62BT041L60.49.37 | D46: 3603679946715 | E46: 37 | F46: S.Women | G46: S.W.City | H46: ND | I46: Automne-Hiver 2020 | J46: - | K46: 19 | L46: 850 | M46: 16150
A47: High Defintion Photos Upon Request | C47: FA62BT041L60.49.38 | D47: 3603679946739 | E47: 38 | F47: S.Women | G47: S.W.City | H47: ND | I47: Automne-Hiver 2020 | J47: - | K47: 13 | L47: 850 | M47: 11050
A48: High Defintion Photos Upon Request | C48: FA62BT041L60.49.39 | D48: 3603679946982 | E48: 39 | F48: S.Women | G48: S.W.City | H48: ND | I48: Automne-Hiver 2020 | J48: - | K48: 3 | L48: 850 | M48: 2550
A49: High Defintion Photos Upon Request | C49: FA62BT041L60.49.40 | D49: 3603679947156 | E49: 40 | F49: S.Women | G49: S.W.City | H49: ND | I49: Automne-Hiver 2020 | J49: - | K49: 2 | L49: 850 | M49: 1700
A50: High Defintion Photos Upon Request | B50: FA62BT301L64.99 | C50: FA62BT301L64.99.36 | D50: 3603679939335 | E50: 36 | F50: S.Women | G50: S.W.City | H50: ND | I50: Automne-Hiver 2020 | J50: - | K50: 1 | L50: 345 | M50: 345
A51: High Defintion Photos Upon Request | C51: FA62BT301L64.99.37 | D51: 3603679939342 | E51: 37 | F51: S.Women | G51: S.W.City | H51: ND | I51: Automne-Hiver 2020 | J51: - | K51: 3 | L51: 345 | M51: 1035
A52: High Defintion Photos Upon Request | C52: FA62BT301L64.99.38 | D52: 3603679939359 | E52: 38 | F52: S.Women | G52: S.W.City | H52: ND | I52: Automne-Hiver 2020 | J52: - | K52: 3 | L52: 345 | M52: 1035
A53: High Defintion Photos Upon Request | C53: FA62BT301L64.99.39 | D53: 3603679939304 | E53: 39 | F53: S.Women | G53: S.W.City | H53: ND | I53: Automne-Hiver 2020 | J53: - | K53: 1 | L53: 345 | M53: 345
A54: High Defintion Photos Upon Request | C54: FA62BT301L64.99.40 | D54: 3603679939328 | E54: 40 | F54: S.Women | G54: S.W.City | H54: ND | I54: Automne-Hiver 2020 | J54: - | K54: 1 | L54: 345 | M54: 345
A55: High Defintion Photos Upon Request | C55: FA62BT301L64.99.41 | D55: 3603679939311 | E55: 41 | F55: S.Women | G55: S.W.City | H55: ND | I55: Automne-Hiver 2020 | J55: - | K55: 1 | L55: 345 | M55: 345
A56: High Defintion Photos Upon Request | B56: FA62BT340L62.99 | C56: FA62BT340L62.99.36 | D56: 3603679931582 | E56: 36 | F56: S.Women | G56: S.W.City | H56: ND | I56: Automne-Hiver 2020 | J56: - | K56: 11 | L56: 350 | M56: 3850
A57: High Defintion Photos Upon Request | B57: FA62BT340L77.03 | C57: FA62BT340L77.03.37 | D57: 3603679931681 | E57: 37 | F57: S.Women | G57: S.W.City | H57: ND | I57: Automne-Hiver 2020 | J57: - | K57: 8 | L57: 395 | M57: 3160
A58: High Defintion Photos Upon Request | C58: FA62BT340L77.03.38 | D58: 3603679931643 | E58: 38 | F58: S.Women | G58: S.W.City | H58: ND | I58: Automne-Hiver 2020 | J58: - | K58: 5 | L58: 395 | M58: 1975
A59: High Defintion Photos Upon Request | C59: FA62BT340L77.03.39 | D59: 3603679931674 | E59: 39 | F59: S.Women | G59: S.W.City | H59: ND | I59: Automne-Hiver 2020 | J59: - | K59: 1 | L59: 395 | M59: 395
A60: High Defintion Photos Upon Request | B60: FA62BT340L79.99 | C60: FA62BT340L79.99.38 | D60: 3603679942298 | E60: 38 | F60: S.Women | G60: S.W.City | H60: ND | I60: Automne-Hiver 2020 | J60: Multi Logos | K60: 1 | L60: 395 | M60: 395
A61: High Defintion Photos Upon Request | C61: FA62BT340L79.99.39 | D61: 3603679942274 | E61: 39 | F61: S.Women | G61: S.W.City | H61: ND | I61: Automne-Hiver 2020 | J61: Multi Logos | K61: 1 | L61: 395 | M61: 395
A62: High Defintion Photos Upon Request | B62: FA62BT341L63.99 | C62: FA62BT341L63.99.36 | D62: 3603679931728 | E62: 36 | F62: S.Women | G62: S.W.City | H62: ND | I62: Automne-Hiver 2020 | J62: - | K62: 12 | L62: 395 | M62: 4740
A63: High Defintion Photos Upon Request | C63: FA62BT341L63.99.37 | D63: 3603679931711 | E63: 37 | F63: S.Women | G63: S.W.City | H63: ND | I63: Automne-Hiver 2020 | J63: - | K63: 4 | L63: 395 | M63: 1580
A64: High Defintion Photos Upon Request | C64: FA62BT341L63.99.38 | D64: 3603679931773 | E64: 38 | F64: S.Women | G64: S.W.City | H64: ND | I64: Automne-Hiver 2020 | J64: - | K64: 1 | L64: 395 | M64: 395
A65: High Defintion Photos Upon Request | C65: FA62BT341L63.99.41 | D65: 3603679931735 | E65: 41 | F65: S.Women | G65: S.W.City | H65: ND | I65: Automne-Hiver 2020 | J65: - | K65: 3 | L65: 395 | M65: 1185
A66: High Defintion Photos Upon Request | B66: FB52LO010F73.99 | C66: FB52LO010F73.99.36 | D66: 3612230078024 | E66: 36 | F66: S.Women | G66: S.W.City | H66: ND | I66: Printemps-Ete 2021 | J66: K-Tiger | K66: 20 | L66: 150 | M66: 3000
A67: High Defintion Photos Upon Request | C67: FB52LO010F73.99.37 | D67: 3612230077997 | E67: 37 | F67: S.Women | G67: S.W.City | H67: ND | I67: Printemps-Ete 2021 | J67: K-Tiger | K67: 3 | L67: 150 | M67: =L67*K67 -> 450
A68: High Defintion Photos Upon Request | C68: FB52LO010F73.99.38 | D68: 3612230078093 | E68: 38 | F68: S.Women | G68: S.W.City | H68: ND | I68: Printemps-Ete 2021 | J68: K-Tiger | K68: 4 | L68: 150 | M68: 600
A69: High Defintion Photos Upon Request | C69: FB52LO010F73.99.39 | D69: 3612230078000 | E69: 39 | F69: S.Women | G69: S.W.City | H69: ND | I69: Printemps-Ete 2021 | J69: K-Tiger | K69: 1 | L69: 150 | M69: 150
A70: High Defintion Photos Upon Request | B70: FB52LO010F74.99 | C70: FB52LO010F74.99.35 | D70: 3612230078291 | E70: 35 | F70: S.Women | G70: S.W.City | H70: ND | I70: Printemps-Ete 2021 | J70: Kenzo Sport | K70: 5 | L70: 150 | M70: 750
A71: High Defintion Photos Upon Request | C71: FB52LO010F74.99.36 | D71: 3612230078307 | E71: 36 | F71: S.Women | G71: S.W.City | H71: ND | I71: Printemps-Ete 2021 | J71: Kenzo Sport | K71: 19 | L71: 150 | M71: 2850
A72: High Defintion Photos Upon Request | C72: FB52LO010F74.99.37 | D72: 3612230078277 | E72: 37 | F72: S.Women | G72: S.W.City | H72: ND | I72: Printemps-Ete 2021 | J72: Kenzo Sport | K72: 17 | L72: 150 | M72: 2550
A73: High Defintion Photos Upon Request | C73: FB52LO010F74.99.38 | D73: 3612230078253 | E73: 38 | F73: S.Women | G73: S.W.City | H73: ND | I73: Printemps-Ete 2021 | J73: Kenzo Sport | K73: 7 | L73: 150 | M73: 1050
A74: High Defintion Photos Upon Request | C74: FB52LO010F74.99.39 | D74: 3612230078284 | E74: 39 | F74: S.Women | G74: S.W.City | H74: ND | I74: Printemps-Ete 2021 | J74: Kenzo Sport | K74: 1 | L74: 150 | M74: 150
A75: High Defintion Photos Upon Request | C75: FB52LO010F74.99.40 | D75: 3612230078314 | E75: 40 | F75: S.Women | G75: S.W.City | H75: ND | I75: Printemps-Ete 2021 | J75: Kenzo Sport | K75: 4 | L75: 150 | M75: 600
A76: High Defintion Photos Upon Request | B76: FB52MU021L65.13 | C76: FB52MU021L65.13.36 | D76: 3603679999827 | E76: 36 | F76: S.Women | G76: S.W.City | H76: ND | I76: Printemps-Ete 2021 | J76: - | K76: 29 | L76: 275 | M76: 7975
A77: High Defintion Photos Upon Request | C77: FB52MU021L65.13.37 | D77: 3603679999834 | E77: 37 | F77: S.Women | G77: S.W.City | H77: ND | I77: Printemps-Ete 2021 | J77: - | K77: 33 | L77: 275 | M77: 9075
A78: High Defintion Photos Upon Request | C78: FB52MU021L65.13.38 | D78: 3603679999865 | E78: 38 | F78: S.Women | G78: S.W.City | H78: ND | I78: Printemps-Ete 2021 | J78: - | K78: 29 | L78: 275 | M78: 7975
A79: High Defintion Photos Upon Request | C79: FB52MU021L65.13.39 | D79: 3603679999735 | E79: 39 | F79: S.Women | G79: S.W.City | H79: ND | I79: Printemps-Ete 2021 | J79: - | K79: 33 | L79: 275 | M79: 9075
A80: High Defintion Photos Upon Request | C80: FB52MU021L65.13.40 | D80: 3603679999841 | E80: 40 | F80: S.Women | G80: S.W.City | H80: ND | I80: Printemps-Ete 2021 | J80: - | K80: 18 | L80: 275 | M80: 4950
A81: High Defintion Photos Upon Request | C81: FB52MU021L65.13.41 | D81: 3603679999797 | E81: 41 | F81: S.Women | G81: S.W.City | H81: ND | I81: Printemps-Ete 2021 | J81: - | K81: 7 | L81: 275 | M81: 1925
A82: High Defintion Photos Upon Request | B82: FB52MU021L65.39 | C82: FB52MU021L65.39.36 | D82: 3603679999933 | E82: 36 | F82: S.Women | G82: S.W.City | H82: ND | I82: Printemps-Ete 2021 | J82: - | K82: 1 | L82: 275 | M82: 275
A83: High Defintion Photos Upon Request | C83: FB52MU021L65.39.37 | D83: 3603679999896 | E83: 37 | F83: S.Women | G83: S.W.City | H83: ND | I83: Printemps-Ete 2021 | J83: - | K83: 2 | L83: 275 | M83: 550
A84: High Defintion Photos Upon Request | C84: FB52MU021L65.39.38 | D84: 3603679999605 | E84: 38 | F84: S.Women | G84: S.W.City | H84: ND | I84: Printemps-Ete 2021 | J84: - | K84: 1 | L84: 275 | M84: 275
A85: High Defintion Photos Upon Request | C85: FB52MU021L65.39.39 | D85: 3603679999902 | E85: 39 | F85: S.Women | G85: S.W.City | H85: ND | I85: Printemps-Ete 2021 | J85: - | K85: 2 | L85: 275 | M85: 550
A86: High Defintion Photos Upon Request | B86: FB52MU021L65.99 | C86: FB52MU021L65.99.35 | D86: 3603679999926 | E86: 35 | F86: S.Women | G86: S.W.City | H86: ND | I86: Printemps-Ete 2021 | J86: - | K86: 1 | L86: 275 | M86: 275
A87: High Defintion Photos Upon Request | C87: FB52MU021L65.99.36 | D87: 3603679999636 | E87: 36 | F87: S.Women | G87: S.W.City | H87: ND | I87: Printemps-Ete 2021 | J87: - | K87: 13 | L87: 275 | M87: 3575
A88: High Defintion Photos Upon Request | C88: FB52MU021L65.99.37 | D88: 3603679999872 | E88: 37 | F88: S.Women | G88: S.W.City | H88: ND | I88: Printemps-Ete 2021 | J88: - | K88: 19 | L88: 275 | M88: 5225
A89: High Defintion Photos Upon Request | C89: FB52MU021L65.99.38 | D89: 3603679999858 | E89: 38 | F89: S.Women | G89: S.W.City | H89: ND | I89: Printemps-Ete 2021 | J89: - | K89: 15 | L89: 275 | M89: 4125
A90: High Defintion Photos Upon Request | C90: FB52MU021L65.99.39 | D90: 3603679999674 | E90: 39 | F90: S.Women | G90: S.W.City | H90: ND | I90: Printemps-Ete 2021 | J90: - | K90: 7 | L90: 275 | M90: 1925
A91: High Defintion Photos Upon Request | C91: FB52MU021L65.99.40 | D91: 3603679999773 | E91: 40 | F91: S.Women | G91: S.W.City | H91: ND | I91: Printemps-Ete 2021 | J91: - | K91: 4 | L91: 275 | M91: 1100
A92: High Defintion Photos Upon Request | B92: FB52PP131L60.99 | C92: FB52PP131L60.99.36 | D92: 3612230050853 | E92: 36 | F92: S.Women | G92: S.W.City | H92: ND | I92: Printemps-Ete 2021 | J92: - | K92: 6 | L92: 445 | M92: 2670
A93: High Defintion Photos Upon Request | C93: FB52PP131L60.99.37 | D93: 3612230050921 | E93: 37 | F93: S.Women | G93: S.W.City | H93: ND | I93: Printemps-Ete 2021 | J93: - | K93: 5 | L93: 445 | M93: 2225
A94: High Defintion Photos Upon Request | C94: FB52PP131L60.99.38 | D94: 3612230050877 | E94: 38 | F94: S.Women | G94: S.W.City | H94: ND | I94: Printemps-Ete 2021 | J94: - | K94: 4 | L94: 445 | M94: 1780
A95: High Defintion Photos Upon Request | C95: FB52PP131L60.99.39 | D95: 3612230050860 | E95: 39 | F95: S.Women | G95: S.W.City | H95: ND | I95: Printemps-Ete 2021 | J95: - | K95: 4 | L95: 445 | M95: 1780
A96: High Defintion Photos Upon Request | C96: FB52PP131L60.99.40 | D96: 3612230050815 | E96: 40 | F96: S.Women | G96: S.W.City | H96: ND | I96: Printemps-Ete 2021 | J96: - | K96: 5 | L96: 445 | M96: 2225
A97: High Defintion Photos Upon Request | C97: FB52PP131L60.99.41 | D97: 3612230050822 | E97: 41 | F97: S.Women | G97: S.W.City | H97: ND | I97: Printemps-Ete 2021 | J97: - | K97: 5 | L97: 445 | M97: 2225
A98: High Defintion Photos Upon Request | B98: FB52SD190L66.99 | C98: FB52SD190L66.99.35 | D98: 3612230093751 | E98: 35 | F98: S.Women | G98: S.W.City | H98: ND | I98: Printemps-Ete 2021 | J98: - | K98: 3 | L98: 345 | M98: 1035
A99: High Defintion Photos Upon Request | C99: FB52SD190L66.99.36 | D99: 3612230093775 | E99: 36 | F99: S.Women | G99: S.W.City | H99: ND | I99: Printemps-Ete 2021 | J99: - | K99: 31 | L99: 345 | M99: 10695
A100: High Defintion Photos Upon Request | C100: FB52SD190L66.99.37 | D100: 3612230093768 | E100: 37 | F100: S.Women | G100: S.W.City | H100: ND | I100: Printemps-Ete 2021 | J100: - | K100: 36 | L100: 345 | M100: 12420
A101: High Defintion Photos Upon Request | C101: FB52SD190L66.99.38 | D101: 3612230093669 | E101: 38 | F101: S.Women | G101: S.W.City | H101: ND | I101: Printemps-Ete 2021 | J101: - | K101: 32 | L101: 345 | M101: 11040
A102: High Defintion Photos Upon Request | C102: FB52SD190L66.99.39 | D102: 3612230093676 | E102: 39 | F102: S.Women | G102: S.W.City | H102: ND | I102: Printemps-Ete 2021 | J102: - | K102: 11 | L102: 345 | M102: 3795
A103: High Defintion Photos Upon Request | C103: FB52SD190L66.99.40 | D103: 3612230093805 | E103: 40 | F103: S.Women | G103: S.W.City | H103: ND | I103: Printemps-Ete 2021 | J103: - | K103: 13 | L103: 345 | M103: 4485
A104: High Defintion Photos Upon Request | C104: FB52SD190L66.99.41 | D104: 3612230093706 | E104: 41 | F104: S.Women | G104: S.W.City | H104: ND | I104: Printemps-Ete 2021 | J104: - | K104: 13 | L104: 345 | M104: 4485
A105: High Defintion Photos Upon Request | B105: FB52SD192L66.99 | C105: FB52SD192L66.99.36 | D105: 3612230094048 | E105: 36 | F105: S.Women | G105: S.W.City | H105: ND | I105: Printemps-Ete 2021 | J105: - | K105: 25 | L105: 395 | M105: 9875
A106: High Defintion Photos Upon Request | C106: FB52SD192L66.99.37 | D106: 3612230093836 | E106: 37 | F106: S.Women | G106: S.W.City | H106: ND | I106: Printemps-Ete 2021 | J106: - | K106: 29 | L106: 395 | M106: 11455
A107: High Defintion Photos Upon Request | C107: FB52SD192L66.99.38 | D107: 3612230094055 | E107: 38 | F107: S.Women | G107: S.W.City | H107: ND | I107: Printemps-Ete 2021 | J107: - | K107: 24 | L107: 395 | M107: 9480
A108: High Defintion Photos Upon Request | C108: FB52SD192L66.99.39 | D108: 3612230093928 | E108: 39 | F108: S.Women | G108: S.W.City | H108: ND | I108: Printemps-Ete 2021 | J108: - | K108: 15 | L108: 395 | M108: 5925
A109: High Defintion Photos Upon Request | C109: FB52SD192L66.99.40 | D109: 3612230094031 | E109: 40 | F109: S.Women | G109: S.W.City | H109: ND | I109: Printemps-Ete 2021 | J109: - | K109: 41 | L109: 395 | M109: 16195
A110: High Defintion Photos Upon Request | C110: FB52SD192L66.99.41 | D110: 3612230093850 | E110: 41 | F110: S.Women | G110: S.W.City | H110: ND | I110: Printemps-Ete 2021 | J110: - | K110: 12 | L110: 395 | M110: 4740
A111: High Defintion Photos Upon Request | B111: FB62BT054L53.99 | C111: FB62BT054L53.99.36 | D111: 3612230175679 | E111: 36 | F111: S.Women | G111: S.W.City | H111: ND | I111: Automne-Hiver 2021 | J111: - | K111: 1 | L111: 350 | M111: 350
A112: High Defintion Photos Upon Request | C112: FB62BT054L53.99.37 | D112: 3612230175648 | E112: 37 | F112: S.Women | G112: S.W.City | H112: ND | I112: Automne-Hiver 2021 | J112: - | K112: 2 | L112: 350 | M112: 700
A113: High Defintion Photos Upon Request | C113: FB62BT054L53.99.41 | D113: 3612230175655 | E113: 41 | F113: S.Women | G113: S.W.City | H113: ND | I113: Automne-Hiver 2021 | J113: - | K113: 5 | L113: 350 | M113: 1750
A114: High Defintion Photos Upon Request | B114: FB62BT060L76.13 | C114: FB62BT060L76.13.36 | D114: 3612230176140 | E114: 36 | F114: S.Women | G114: S.W.City | H114: ND | I114: Automne-Hiver 2021 | J114: - | K114: 5 | L114: 395 | M114: 1975
A115: High Defintion Photos Upon Request | C115: FB62BT060L76.13.37 | D115: 3612230176171 | E115: 37 | F115: S.Women | G115: S.W.City | H115: ND | I115: Automne-Hiver 2021 | J115: - | K115: 4 | L115: 395 | M115: 1580
A116: High Defintion Photos Upon Request | C116: FB62BT060L76.13.38 | D116: 3612230176225 | E116: 38 | F116: S.Women | G116: S.W.City | H116: ND | I116: Automne-Hiver 2021 | J116: - | K116: 1 | L116: 395 | M116: 395
A117: High Defintion Photos Upon Request | C117: FB62BT060L76.13.39 | D117: 3612230176164 | E117: 39 | F117: S.Women | G117: S.W.City | H117: ND | I117: Automne-Hiver 2021 | J117: - | K117: 2 | L117: 395 | M117: 790
A118: High Defintion Photos Upon Request | B118: FB62BT071F74.99F | C118: FB62BT071F74.99F.38 | D118: 3612230221802 | E118: 38 | F118: S.Women | G118: S.W.City | H118: ND | I118: Automne-Hiver 2021 | J118: - | K118: 10 | L118: 750 | M118: 7500
A119: High Defintion Photos Upon Request | B119: FB62BT073F75.03 | C119: FB62BT073F75.03.36 | D119: 3612230219465 | E119: 36 | F119: S.Women | G119: S.W.City | H119: ND | I119: Automne-Hiver 2021 | J119: - | K119: 3 | L119: 495 | M119: 1485
A120: High Defintion Photos Upon Request | C120: FB62BT073F75.03.37 | D120: 3612230219472 | E120: 37 | F120: S.Women | G120: S.W.City | H120: ND | I120: Automne-Hiver 2021 | J120: - | K120: 4 | L120: 495 | M120: 1980
A121: High Defintion Photos Upon Request | C121: FB62BT073F75.03.38 | D121: 3612230219434 | E121: 38 | F121: S.Women | G121: S.W.City | H121: ND | I121: Automne-Hiver 2021 | J121: - | K121: 2 | L121: 495 | M121: 990
A122: High Defintion Photos Upon Request | C122: FB62BT073F75.03.39 | D122: 3612230219427 | E122: 39 | F122: S.Women | G122: S.W.City | H122: ND | I122: Automne-Hiver 2021 | J122: - | K122: 3 | L122: 495 | M122: 1485
A123: High Defintion Photos Upon Request | B123: FB62BT341L55.90 | C123: FB62BT341L55.90.38 | D123: 3612230177116 | E123: 38 | F123: S.Women | G123: S.W.City | H123: ND | I123: Automne-Hiver 2021 | J123: - | K123: 1 | L123: 425 | M123: 425
A124: High Defintion Photos Upon Request | B124: F752ES180F53.26 | C124: F752ES180F53.26.39 | D124: 3603678884865 | E124: 39 | F124: S.Women | G124: S.W.Espadrilles | H124: Shoes | I124: Printemps-Ete 2017 | J124: - | K124: 1 | L124: 145 | M124: 145
A125: High Defintion Photos Upon Request | B125: F762ES180F90.34 | C125: F762ES180F90.34.35 | D125: 3603679069056 | E125: 35 | F125: S.Women | G125: S.W.Espadrilles | H125: Shoes | I125: Automne-Hiver 2017 | J125: - | K125: 3 | L125: 145 | M125: 435
A126: High Defintion Photos Upon Request | B126: F762ES180F99.17 | C126: F762ES180F99.17.35 | D126: 3603679098506 | E126: 35 | F126: S.Women | G126: S.W.Espadrilles | H126: Shoes | I126: Automne-Hiver 2017 | J126: Tiger | K126: 3 | L126: 145 | M126: 435
A127: High Defintion Photos Upon Request | B127: F762ES180F99.64 | C127: F762ES180F99.64.35 | D127: 3603679098711 | E127: 35 | F127: S.Women | G127: S.W.Espadrilles | H127: Shoes | I127: Automne-Hiver 2017 | J127: Tiger | K127: 1 | L127: 145 | M127: 145
A128: High Defintion Photos Upon Request | B128: F762ES180F99.99A | C128: F762ES180F99.99A.35 | D128: 3603679098414 | E128: 35 | F128: S.Women | G128: S.W.Espadrilles | H128: Shoes | I128: Automne-Hiver 2017 | J128: Tiger | K128: 2 | L128: 145 | M128: 290
A129: High Defintion Photos Upon Request | B129: F851ES123F94.01 | C129: F851ES123F94.01.36 | D129: 3603679241285 | E129: 36 | F129: S.Women | G129: S.W.Espadrilles | H129: Shoes | I129: Printemps-Ete 2018 | J129: Bamboo Tiger | K129: 1 | L129: 265 | M129: 265
A130: High Defintion Photos Upon Request | B130: F851ES123F94.99 | C130: F851ES123F94.99.38 | D130: 3603679241278 | E130: 38 | F130: S.Women | G130: S.W.Espadrilles | H130: Shoes | I130: Printemps-Ete 2018 | J130: Bamboo Tiger | K130: 1 | L130: 265 | M130: 265
A131: High Defintion Photos Upon Request | C131: F851ES123F94.99.39 | D131: 3603679241353 | E131: 39 | F131: S.Women | G131: S.W.Espadrilles | H131: Shoes | I131: Printemps-Ete 2018 | J131: Bamboo Tiger | K131: 2 | L131: 265 | M131: =L131*K131 -> 530
A132: High Defintion Photos Upon Request | B132: F852ES120L75.23 | C132: F852ES120L75.23.35 | D132: 3603679209902 | E132: 35 | F132: S.Women | G132: S.W.Espadrilles | H132: Shoes | I132: Printemps-Ete 2018 | J132: - | K132: 2 | L132: 245 | M132: 490
A133: High Defintion Photos Upon Request | C133: F852ES120L75.23.36 | D133: 3603679209933 | E133: 36 | F133: S.Women | G133: S.W.Espadrilles | H133: Shoes | I133: Printemps-Ete 2018 | J133: - | K133: 1 | L133: 245 | M133: 245
A134: High Defintion Photos Upon Request | B134: F852ES180F70.21 | C134: F852ES180F70.21.35 | D134: 3603679210502 | E134: 35 | F134: S.Women | G134: S.W.Espadrilles | H134: Shoes | I134: Printemps-Ete 2018 | J134: Tiger | K134: 1 | L134: 150 | M134: 150
A135: High Defintion Photos Upon Request | B135: F852ES180F97.32 | C135: F852ES180F97.32.37 | D135: 3603679243531 | E135: 37 | F135: S.Women | G135: S.W.Espadrilles | H135: Shoes | I135: Printemps-Ete 2018 | J135: Tiger | K135: 1 | L135: 145 | M135: 145
A136: High Defintion Photos Upon Request | B136: F862ES180F70.23 | C136: F862ES180F70.23.35 | D136: 3603679372590 | E136: 35 | F136: S.Women | G136: S.W.Espadrilles | H136: Shoes | I136: Automne-Hiver 2018 | J136: Tiger | K136: 1 | L136: 150 | M136: 150
A137: High Defintion Photos Upon Request | B137: F862ES180F93.98 | C137: F862ES180F93.98.35 | D137: 3603679406479 | E137: 35 | F137: S.Women | G137: S.W.Espadrilles | H137: Shoes | I137: Automne-Hiver 2018 | J137: Tiger | K137: 1 | L137: 150 | M137: 150
A138: High Defintion Photos Upon Request | B138: F862ES190F70.23 | C138: F862ES190F70.23.35 | D138: 3603679373290 | E138: 35 | F138: S.Women | G138: S.W.Espadrilles | H138: Shoes | I138: Automne-Hiver 2018 | J138: Tiger | K138: 1 | L138: 150 | M138: 150
A139: High Defintion Photos Upon Request | B139: F952ES180F88.99 | C139: F952ES180F88.99.36 | D139: 3603679564049 | E139: 36 | F139: S.Women | G139: S.W.Espadrilles | H139: Shoes | I139: Printemps-Ete 2019 | J139: Eye | K139: 1 | L139: 150 | M139: 150
